Body Name,Date Paid,Transaction Number,Amount,Supplier Name,Supplier Type ,Expense Area,Cost Centre Description,Expense Type
Cambridgeshire County Council,30-Oct-19,51301241724,"-32,918.05",HUNTINGDONSHIRE DISTRICT COUNCIL,OTHER PUBLIC BODIES,Corporate Offices,"Units 3 & 7, The Meadows St Ives",Business rates
Cambridgeshire County Council,03-Oct-19,51301203592,"-27,664.00",MIDAS CARE LTD,CARE ESTABLISHMENT,Commissioning - Dom Cars,City and South - Dom Blocks,Domiciliary Care
Cambridgeshire County Council,28-Oct-19,51301177646,"-26,993.37",ARTHUR J GALLAGHER,TRADE SUPPLIER,Insurance Fund,Insurance General,Insurance Fund External
Cambridgeshire County Council,15-Oct-19,51301164847,"-10,387.94",CORPORATE DOCUMENT SERVICES LIMITED,TRADE SUPPLIER,Debt Service,Revenue Services,Printing
Cambridgeshire County Council,30-Oct-19,51301242854,"-8,021.91",ESPO,TRADE SUPPLIER,Catering,[CLOSED] Catering - Linton Heights Junior School;,Gas
Cambridgeshire County Council,17-Oct-19,51301021345,"-6,788.32",HUNTINGDON MENCAP LTD,CARE ESTABLISHMENT,LD - Hunts Locality - Cost of Care,LD - Huntingdonshire - Care,Residential Care - Property Voids
Cambridgeshire County Council,18-Oct-19,51301233229,"-5,514.97",PITNEY BOWES MANAGEMENT SERVICES LTD,TRADE SUPPLIER,Information Management,Resources Franking Machine,General Office Expenses & Stationery
Cambridgeshire County Council,17-Oct-19,51301232833,"-5,320.00",Active Ark Ltd,CARE ESTABLISHMENT,LAC Placements,Placements - residential homes,Agency Placements - Out of  County
Cambridgeshire County Council,03-Oct-19,51301201291,"-4,655.00",Accomplish Group Support Limited,CARE ESTABLISHMENT,LD - Hunts Locality - Cost of Care,LD - Huntingdonshire - Special Needs,Rehabilitation And Respite Care
Cambridgeshire County Council,03-Oct-19,51301201297,"-4,655.00",Accomplish Group Support Limited,CARE ESTABLISHMENT,LD - Hunts Locality - Cost of Care,LD - Huntingdonshire - Special Needs,Rehabilitation And Respite Care
Cambridgeshire County Council,03-Oct-19,51301201303,"-4,655.00",Accomplish Group Support Limited,CARE ESTABLISHMENT,LD - Hunts Locality - Cost of Care,LD - Huntingdonshire - Special Needs,Rehabilitation And Respite Care
Cambridgeshire County Council,03-Oct-19,51301201292,"-4,655.00",Accomplish Group Support Limited,CARE ESTABLISHMENT,LD - Hunts Locality - Cost of Care,LD - Huntingdonshire - Care,Rehabilitation And Respite Care
Cambridgeshire County Council,03-Oct-19,51301201295,"-4,655.00",Accomplish Group Support Limited,CARE ESTABLISHMENT,LD - Hunts Locality - Cost of Care,LD - Huntingdonshire - Care,Rehabilitation And Respite Care
Cambridgeshire County Council,03-Oct-19,51301201287,"-4,655.00",Accomplish Group Support Limited,CARE ESTABLISHMENT,LD - Hunts Locality - Cost of Care,LD - Huntingdonshire - Care,Rehabilitation And Respite Care
Cambridgeshire County Council,03-Oct-19,51301201301,"-4,655.00",Accomplish Group Support Limited,CARE ESTABLISHMENT,LD - Hunts Locality - Cost of Care,LD - Huntingdonshire - Care,Rehabilitation And Respite Care
Cambridgeshire County Council,03-Oct-19,51301201300,"-4,655.00",Accomplish Group Support Limited,CARE ESTABLISHMENT,LD - Hunts Locality - Cost of Care,LD - Huntingdonshire - Care,Rehabilitation And Respite Care
Cambridgeshire County Council,03-Oct-19,51301201296,"-4,655.00",Accomplish Group Support Limited,CARE ESTABLISHMENT,LD - Hunts Locality - Cost of Care,LD - Huntingdonshire - Care,Rehabilitation And Respite Care
Cambridgeshire County Council,10-Oct-19,51301194084,"-4,655.00",Accomplish Group Support Limited,CARE ESTABLISHMENT,LD - Hunts Locality - Cost of Care,LD - Huntingdonshire - Special Needs,Rehabilitation And Respite Care
Cambridgeshire County Council,10-Oct-19,51301216975,"-4,655.00",Accomplish Group Support Limited,CARE ESTABLISHMENT,LD - Hunts Locality - Cost of Care,LD - Huntingdonshire - Special Needs,Rehabilitation And Respite Care
Cambridgeshire County Council,10-Oct-19,51301194076,"-4,655.00",Accomplish Group Support Limited,CARE ESTABLISHMENT,LD - Hunts Locality - Cost of Care,LD - Huntingdonshire - Special Needs,Rehabilitation And Respite Care
Cambridgeshire County Council,10-Oct-19,51301226281,"-4,655.00",Accomplish Group Support Limited,CARE ESTABLISHMENT,LD - Hunts Locality - Cost of Care,LD - Huntingdonshire - Special Needs,Rehabilitation And Respite Care
Cambridgeshire County Council,10-Oct-19,51301216977,"-4,655.00",Accomplish Group Support Limited,CARE ESTABLISHMENT,LD - Hunts Locality - Cost of Care,LD - Huntingdonshire - Special Needs,Rehabilitation And Respite Care
Cambridgeshire County Council,10-Oct-19,51301216971,"-4,655.00",Accomplish Group Support Limited,CARE ESTABLISHMENT,LD - Hunts Locality - Cost of Care,LD - Huntingdonshire - Special Needs,Rehabilitation And Respite Care
Cambridgeshire County Council,10-Oct-19,51301194075,"-4,655.00",Accomplish Group Support Limited,CARE ESTABLISHMENT,LD - Hunts Locality - Cost of Care,LD - Huntingdonshire - Special Needs,Rehabilitation And Respite Care
Cambridgeshire County Council,10-Oct-19,51301226282,"-4,655.00",Accomplish Group Support Limited,CARE ESTABLISHMENT,LD - Hunts Locality - Cost of Care,LD - Huntingdonshire - Special Needs,Rehabilitation And Respite Care
Cambridgeshire County Council,10-Oct-19,51301226287,"-4,655.00",Accomplish Group Support Limited,CARE ESTABLISHMENT,LD - Hunts Locality - Cost of Care,LD - Huntingdonshire - Special Needs,Rehabilitation And Respite Care
Cambridgeshire County Council,10-Oct-19,51301216978,"-4,655.00",Accomplish Group Support Limited,CARE ESTABLISHMENT,LD - Hunts Locality - Cost of Care,LD - Huntingdonshire - Special Needs,Rehabilitation And Respite Care
Cambridgeshire County Council,10-Oct-19,51301194081,"-4,655.00",Accomplish Group Support Limited,CARE ESTABLISHMENT,LD - Hunts Locality - Cost of Care,LD - Huntingdonshire - Special Needs,Rehabilitation And Respite Care
Cambridgeshire County Council,10-Oct-19,51301216985,"-4,655.00",Accomplish Group Support Limited,CARE ESTABLISHMENT,LD - Hunts Locality - Cost of Care,LD - Huntingdonshire - Special Needs,Rehabilitation And Respite Care
Cambridgeshire County Council,10-Oct-19,51301226290,"-4,655.00",Accomplish Group Support Limited,CARE ESTABLISHMENT,LD - Hunts Locality - Cost of Care,LD - Huntingdonshire - Special Needs,Rehabilitation And Respite Care
Cambridgeshire County Council,10-Oct-19,51301226291,"-4,655.00",Accomplish Group Support Limited,CARE ESTABLISHMENT,LD - Hunts Locality - Cost of Care,LD - Huntingdonshire - Special Needs,Rehabilitation And Respite Care
Cambridgeshire County Council,10-Oct-19,51301216972,"-4,655.00",Accomplish Group Support Limited,CARE ESTABLISHMENT,LD - Hunts Locality - Cost of Care,LD - Huntingdonshire - Special Needs,Rehabilitation And Respite Care
Cambridgeshire County Council,10-Oct-19,51301226292,"-4,655.00",Accomplish Group Support Limited,CARE ESTABLISHMENT,LD - Hunts Locality - Cost of Care,LD - Huntingdonshire - Care,Rehabilitation And Respite Care
Cambridgeshire County Council,10-Oct-19,51301216987,"-4,655.00",Accomplish Group Support Limited,CARE ESTABLISHMENT,LD - Hunts Locality - Cost of Care,LD - Huntingdonshire - Care,Rehabilitation And Respite Care
Cambridgeshire County Council,10-Oct-19,51301226288,"-4,655.00",Accomplish Group Support Limited,CARE ESTABLISHMENT,LD - Hunts Locality - Cost of Care,LD - Huntingdonshire - Care,Rehabilitation And Respite Care
Cambridgeshire County Council,10-Oct-19,51301216980,"-4,655.00",Accomplish Group Support Limited,CARE ESTABLISHMENT,LD - Hunts Locality - Cost of Care,LD - Huntingdonshire - Care,Rehabilitation And Respite Care
Cambridgeshire County Council,10-Oct-19,51301226285,"-4,655.00",Accomplish Group Support Limited,CARE ESTABLISHMENT,LD - Hunts Locality - Cost of Care,LD - Huntingdonshire - Care,Rehabilitation And Respite Care
Cambridgeshire County Council,10-Oct-19,51301216990,"-4,655.00",Accomplish Group Support Limited,CARE ESTABLISHMENT,LD - Hunts Locality - Cost of Care,LD - Huntingdonshire - Care,Rehabilitation And Respite Care
Cambridgeshire County Council,10-Oct-19,51301194094,"-4,655.00",Accomplish Group Support Limited,CARE ESTABLISHMENT,LD - Hunts Locality - Cost of Care,LD - Huntingdonshire - Care,Rehabilitation And Respite Care
Cambridgeshire County Council,10-Oct-19,51301226296,"-4,655.00",Accomplish Group Support Limited,CARE ESTABLISHMENT,LD - Hunts Locality - Cost of Care,LD - Huntingdonshire - Care,Rehabilitation And Respite Care
Cambridgeshire County Council,10-Oct-19,51301194078,"-4,655.00",Accomplish Group Support Limited,CARE ESTABLISHMENT,LD - Hunts Locality - Cost of Care,LD - Huntingdonshire - Care,Rehabilitation And Respite Care
Cambridgeshire County Council,10-Oct-19,51301194092,"-4,655.00",Accomplish Group Support Limited,CARE ESTABLISHMENT,LD - Hunts Locality - Cost of Care,LD - Huntingdonshire - Care,Rehabilitation And Respite Care
Cambridgeshire County Council,31-Oct-19,51301240772,"-4,655.00",Accomplish Group Support Limited,CARE ESTABLISHMENT,LD - Hunts Locality - Cost of Care,LD - Huntingdonshire - Special Needs,Rehabilitation And Respite Care
Cambridgeshire County Council,31-Oct-19,51301240766,"-4,655.00",Accomplish Group Support Limited,CARE ESTABLISHMENT,LD - Hunts Locality - Cost of Care,LD - Huntingdonshire - Special Needs,Rehabilitation And Respite Care
Cambridgeshire County Council,31-Oct-19,51301240781,"-4,655.00",Accomplish Group Support Limited,CARE ESTABLISHMENT,LD - Hunts Locality - Cost of Care,LD - Huntingdonshire - Special Needs,Rehabilitation And Respite Care
Cambridgeshire County Council,31-Oct-19,51301240778,"-4,655.00",Accomplish Group Support Limited,CARE ESTABLISHMENT,LD - Hunts Locality - Cost of Care,LD - Huntingdonshire - Special Needs,Rehabilitation And Respite Care
Cambridgeshire County Council,31-Oct-19,51301240776,"-4,655.00",Accomplish Group Support Limited,CARE ESTABLISHMENT,LD - Hunts Locality - Cost of Care,LD - Huntingdonshire - Care,Rehabilitation And Respite Care
Cambridgeshire County Council,31-Oct-19,51301240771,"-4,655.00",Accomplish Group Support Limited,CARE ESTABLISHMENT,LD - Hunts Locality - Cost of Care,LD - Huntingdonshire - Care,Rehabilitation And Respite Care
Cambridgeshire County Council,31-Oct-19,51301240774,"-4,655.00",Accomplish Group Support Limited,CARE ESTABLISHMENT,LD - Hunts Locality - Cost of Care,LD - Huntingdonshire - Care,Rehabilitation And Respite Care
Cambridgeshire County Council,31-Oct-19,51301240769,"-4,655.00",Accomplish Group Support Limited,CARE ESTABLISHMENT,LD - Hunts Locality - Cost of Care,LD - Huntingdonshire - Care,Rehabilitation And Respite Care
Cambridgeshire County Council,31-Oct-19,51301240777,"-4,655.00",Accomplish Group Support Limited,CARE ESTABLISHMENT,LD - Hunts Locality - Cost of Care,LD - Huntingdonshire - Care,Rehabilitation And Respite Care
Cambridgeshire County Council,03-Oct-19,51300823806,"-4,333.56",DECOY FARM,CARE ESTABLISHMENT,LD - East Locality - Cost of Care,LD - East Cambs - Care,Residential Care
Cambridgeshire County Council,03-Oct-19,51300823794,"-4,333.56",DECOY FARM,CARE ESTABLISHMENT,LD - East Locality - Cost of Care,LD - East Cambs - Care,Residential Care
Cambridgeshire County Council,03-Oct-19,51300823782,"-4,333.56",DECOY FARM,CARE ESTABLISHMENT,LD - East Locality - Cost of Care,LD - East Cambs - Care,Residential Care
Cambridgeshire County Council,03-Oct-19,51300823801,"-4,333.56",DECOY FARM,CARE ESTABLISHMENT,LD - East Locality - Cost of Care,LD - East Cambs - Care,Residential Care
Cambridgeshire County Council,03-Oct-19,51300823792,"-4,333.56",DECOY FARM,CARE ESTABLISHMENT,LD - East Locality - Cost of Care,LD - East Cambs - Care,Residential Care
Cambridgeshire County Council,03-Oct-19,51300823791,"-4,333.56",DECOY FARM,CARE ESTABLISHMENT,LD - East Locality - Cost of Care,LD - East Cambs - Care,Residential Care
Cambridgeshire County Council,30-Oct-19,51301237210,"-4,200.50",DIMENSIONS (UK) LTD,CARE ESTABLISHMENT,LD - South Locality - Cost of Care,LD - South Cambs - Special Needs,Supported Living
Cambridgeshire County Council,30-Oct-19,51301237209,"-4,200.50",DIMENSIONS (UK) LTD,CARE ESTABLISHMENT,LD - South Locality - Cost of Care,LD - South Cambs - Special Needs,Supported Living
Cambridgeshire County Council,31-Oct-19,51301234637,"-4,165.00",Accomplish Group Support Limited,CARE ESTABLISHMENT,LD - Hunts Locality - Cost of Care,LD - Huntingdonshire - Special Needs,Supporting People
Cambridgeshire County Council,31-Oct-19,51301234636,"-4,165.00",Accomplish Group Support Limited,CARE ESTABLISHMENT,LD - Hunts Locality - Cost of Care,LD - Huntingdonshire - Special Needs,Supporting People
Cambridgeshire County Council,30-Oct-19,51301239734,"-3,908.64",THE EDMUND TRUST,CARE ESTABLISHMENT,LD - South Locality - Cost of Care,LD - South Cambs - Special Needs,Supported Living
Cambridgeshire County Council,30-Oct-19,51301239736,"-3,908.64",THE EDMUND TRUST,CARE ESTABLISHMENT,LD - South Locality - Cost of Care,LD - South Cambs - Special Needs,Supported Living
Cambridgeshire County Council,30-Oct-19,51301234810,"-3,792.06",CARETECH COMMUNITY SERVICES,CARE ESTABLISHMENT,LD - Fenland Locality - Cost of Care,LD - Fenland  - Special Needs,Supported Living
Cambridgeshire County Council,30-Oct-19,51301234809,"-3,792.06",CARETECH COMMUNITY SERVICES,CARE ESTABLISHMENT,LD - Fenland Locality - Cost of Care,LD - Fenland  - Special Needs,Supported Living
Cambridgeshire County Council,30-Oct-19,51301239990,"-3,719.95",THE EDMUND TRUST,CARE ESTABLISHMENT,LD - Young Adults Team,LD - Young Adults - Special Needs,Supported Living
Cambridgeshire County Council,30-Oct-19,51301239989,"-3,719.95",THE EDMUND TRUST,CARE ESTABLISHMENT,LD - Young Adults Team,LD - Young Adults - Special Needs,Supported Living
Cambridgeshire County Council,03-Oct-19,51300823783,"-3,714.48",DECOY FARM,CARE ESTABLISHMENT,LD - East Locality - Cost of Care,LD - East Cambs - Care,Residential Care
Cambridgeshire County Council,30-Oct-19,51301238299,"-3,711.28",DIMENSIONS (UK) LTD,CARE ESTABLISHMENT,LD - City Locality - Cost of Care,LD - City - Special Needs,Supported Living
Cambridgeshire County Council,30-Oct-19,51301238298,"-3,711.28",DIMENSIONS (UK) LTD,CARE ESTABLISHMENT,LD - City Locality - Cost of Care,LD - City - Special Needs,Supported Living
Cambridgeshire County Council,25-Oct-19,51301234017,"-3,672.26",FOSTERING SOLUTIONS LTD,CARE ESTABLISHMENT,LAC Placements,Placements - independent fostering,Agency Placements - Out of  County
Cambridgeshire County Council,25-Oct-19,51301234019,"-3,672.26",FOSTERING SOLUTIONS LTD,CARE ESTABLISHMENT,LAC Placements,Placements - independent fostering,Agency Placements - Out of  County
Cambridgeshire County Council,25-Oct-19,51301233750,"-3,672.26",FOSTERING SOLUTIONS LTD,CARE ESTABLISHMENT,LAC Placements,Placements - independent fostering,Agency Placements - Out of  County
Cambridgeshire County Council,25-Oct-19,51301233754,"-3,672.26",FOSTERING SOLUTIONS LTD,CARE ESTABLISHMENT,LAC Placements,Placements - independent fostering,Agency Placements - Out of  County
Cambridgeshire County Council,25-Oct-19,51301234320,"-3,492.00",FOSTERING SOLUTIONS LTD,CARE ESTABLISHMENT,LAC Placements,Placements - independent fostering,Agency Placements - Out of  County
Cambridgeshire County Council,03-Oct-19,51301201289,"-3,325.00",Accomplish Group Support Limited,CARE ESTABLISHMENT,LD - Hunts Locality - Cost of Care,LD - Huntingdonshire - Special Needs,Rehabilitation And Respite Care
Cambridgeshire County Council,10-Oct-19,51301194077,"-3,325.00",Accomplish Group Support Limited,CARE ESTABLISHMENT,LD - Hunts Locality - Cost of Care,LD - Huntingdonshire - Special Needs,Rehabilitation And Respite Care
Cambridgeshire County Council,10-Oct-19,51301216989,"-3,325.00",Accomplish Group Support Limited,CARE ESTABLISHMENT,LD - Hunts Locality - Cost of Care,LD - Huntingdonshire - Special Needs,Rehabilitation And Respite Care
Cambridgeshire County Council,10-Oct-19,51301226289,"-3,325.00",Accomplish Group Support Limited,CARE ESTABLISHMENT,LD - Hunts Locality - Cost of Care,LD - Huntingdonshire - Special Needs,Rehabilitation And Respite Care
Cambridgeshire County Council,31-Oct-19,51301240767,"-3,325.00",Accomplish Group Support Limited,CARE ESTABLISHMENT,LD - Hunts Locality - Cost of Care,LD - Huntingdonshire - Care,Rehabilitation And Respite Care
Cambridgeshire County Council,14-Oct-19,51301195392,"-3,320.96",CAPITA BUSINESS SERVICES LTD,OTHER PUBLIC BODIES,Digital Systems,One vision - Capita Annual Maintenance,Computer software - annual licence agreement
Cambridgeshire County Council,03-Oct-19,51300829948,"-3,111.72",DECOY FARM,CARE ESTABLISHMENT,LD - Hunts Locality - Cost of Care,LD - Huntingdonshire - Special Needs,Nursing Care
Cambridgeshire County Council,03-Oct-19,51300829947,"-3,111.72",DECOY FARM,CARE ESTABLISHMENT,LD - Hunts Locality - Cost of Care,LD - Huntingdonshire - Special Needs,Nursing Care
Cambridgeshire County Council,03-Oct-19,51300829922,"-3,111.72",DECOY FARM,CARE ESTABLISHMENT,LD - Hunts Locality - Cost of Care,LD - Huntingdonshire - Special Needs,Nursing Care
Cambridgeshire County Council,03-Oct-19,51300829936,"-3,111.72",DECOY FARM,CARE ESTABLISHMENT,LD - Hunts Locality - Cost of Care,LD - Huntingdonshire - Special Needs,Nursing Care
Cambridgeshire County Council,03-Oct-19,51300829954,"-3,111.72",DECOY FARM,CARE ESTABLISHMENT,LD - Hunts Locality - Cost of Care,LD - Huntingdonshire - Special Needs,Nursing Care
Cambridgeshire County Council,03-Oct-19,51300829930,"-3,111.72",DECOY FARM,CARE ESTABLISHMENT,LD - Hunts Locality - Cost of Care,LD - Huntingdonshire - Special Needs,Nursing Care
Cambridgeshire County Council,03-Oct-19,51300829938,"-3,111.72",DECOY FARM,CARE ESTABLISHMENT,LD - Hunts Locality - Cost of Care,LD - Huntingdonshire - Special Needs,Nursing Care
Cambridgeshire County Council,03-Oct-19,51300829931,"-3,111.72",DECOY FARM,CARE ESTABLISHMENT,LD - Hunts Locality - Cost of Care,LD - Huntingdonshire - Special Needs,Nursing Care
Cambridgeshire County Council,03-Oct-19,51300840907,"-3,048.34",DECOY FARM,CARE ESTABLISHMENT,LD - Hunts Locality - Cost of Care,LD - Huntingdonshire - Special Needs,Nursing Care
Cambridgeshire County Council,03-Oct-19,51300840909,"-3,048.34",DECOY FARM,CARE ESTABLISHMENT,LD - Hunts Locality - Cost of Care,LD - Huntingdonshire - Special Needs,Nursing Care
Cambridgeshire County Council,03-Oct-19,51300840904,"-3,048.34",DECOY FARM,CARE ESTABLISHMENT,LD - Hunts Locality - Cost of Care,LD - Huntingdonshire - Special Needs,Nursing Care
Cambridgeshire County Council,03-Oct-19,51300840908,"-3,048.34",DECOY FARM,CARE ESTABLISHMENT,LD - Hunts Locality - Cost of Care,LD - Huntingdonshire - Special Needs,Nursing Care
Cambridgeshire County Council,03-Oct-19,51300840903,"-3,048.34",DECOY FARM,CARE ESTABLISHMENT,LD - Hunts Locality - Cost of Care,LD - Huntingdonshire - Special Needs,Nursing Care
Cambridgeshire County Council,03-Oct-19,51300840914,"-3,048.34",DECOY FARM,CARE ESTABLISHMENT,LD - Hunts Locality - Cost of Care,LD - Huntingdonshire - Special Needs,Nursing Care
Cambridgeshire County Council,03-Oct-19,51300840910,"-3,048.34",DECOY FARM,CARE ESTABLISHMENT,LD - Hunts Locality - Cost of Care,LD - Huntingdonshire - Special Needs,Nursing Care
Cambridgeshire County Council,03-Oct-19,51300840905,"-3,048.34",DECOY FARM,CARE ESTABLISHMENT,LD - Hunts Locality - Cost of Care,LD - Huntingdonshire - Special Needs,Nursing Care
Cambridgeshire County Council,14-Oct-19,51301216489,"-2,997.54",AFFINITY TRUST,CARE ESTABLISHMENT,LD - Fenland Locality - Cost of Care,LD - Fenland  - Special Needs,Domiciliary Care
Cambridgeshire County Council,14-Oct-19,51301216490,"-2,997.54",AFFINITY TRUST,CARE ESTABLISHMENT,LD - Fenland Locality - Cost of Care,LD - Fenland  - Special Needs,Domiciliary Care
Cambridgeshire County Council,03-Oct-19,51300981251,"-2,977.44",DECOY FARM,CARE ESTABLISHMENT,LD - East Locality - Cost of Care,LD - East Cambs - Special Needs,Residential Care
Cambridgeshire County Council,03-Oct-19,51300981262,"-2,977.44",DECOY FARM,CARE ESTABLISHMENT,LD - East Locality - Cost of Care,LD - East Cambs - Special Needs,Residential Care
Cambridgeshire County Council,03-Oct-19,51300990587,"-2,977.44",DECOY FARM,CARE ESTABLISHMENT,LD - East Locality - Cost of Care,LD - East Cambs - Special Needs,Residential Care
Cambridgeshire County Council,03-Oct-19,51300990592,"-2,977.44",DECOY FARM,CARE ESTABLISHMENT,LD - East Locality - Cost of Care,LD - East Cambs - Special Needs,Residential Care
Cambridgeshire County Council,03-Oct-19,51300990608,"-2,977.44",DECOY FARM,CARE ESTABLISHMENT,LD - East Locality - Cost of Care,LD - East Cambs - Special Needs,Residential Care
Cambridgeshire County Council,03-Oct-19,51300990599,"-2,977.44",DECOY FARM,CARE ESTABLISHMENT,LD - East Locality - Cost of Care,LD - East Cambs - Special Needs,Residential Care
Cambridgeshire County Council,03-Oct-19,51301014015,"-2,977.44",DECOY FARM,CARE ESTABLISHMENT,LD - East Locality - Cost of Care,LD - East Cambs - Special Needs,Residential Care
Cambridgeshire County Council,03-Oct-19,51301014136,"-2,977.44",DECOY FARM,CARE ESTABLISHMENT,LD - East Locality - Cost of Care,LD - East Cambs - Special Needs,Residential Care
Cambridgeshire County Council,03-Oct-19,51301023558,"-2,977.44",DECOY FARM,CARE ESTABLISHMENT,LD - East Locality - Cost of Care,LD - East Cambs - Special Needs,Residential Care
Cambridgeshire County Council,03-Oct-19,51301023688,"-2,977.44",DECOY FARM,CARE ESTABLISHMENT,LD - East Locality - Cost of Care,LD - East Cambs - Special Needs,Residential Care
Cambridgeshire County Council,03-Oct-19,51301098793,"-2,977.44",DECOY FARM,CARE ESTABLISHMENT,LD - East Locality - Cost of Care,LD - East Cambs - Special Needs,Residential Care
Cambridgeshire County Council,03-Oct-19,51301135210,"-2,977.44",DECOY FARM,CARE ESTABLISHMENT,LD - East Locality - Cost of Care,LD - East Cambs - Special Needs,Residential Care
Cambridgeshire County Council,03-Oct-19,51301135205,"-2,977.44",DECOY FARM,CARE ESTABLISHMENT,LD - East Locality - Cost of Care,LD - East Cambs - Special Needs,Residential Care
Cambridgeshire County Council,03-Oct-19,51301135264,"-2,977.44",DECOY FARM,CARE ESTABLISHMENT,LD - East Locality - Cost of Care,LD - East Cambs - Special Needs,Residential Care
Cambridgeshire County Council,03-Oct-19,51301146573,"-2,977.44",DECOY FARM,CARE ESTABLISHMENT,LD - East Locality - Cost of Care,LD - East Cambs - Special Needs,Residential Care
Cambridgeshire County Council,03-Oct-19,51300907778,"-2,977.44",DECOY FARM,CARE ESTABLISHMENT,LD - East Locality - Cost of Care,LD - East Cambs - Special Needs,Residential Care
Cambridgeshire County Council,03-Oct-19,51300907844,"-2,977.44",DECOY FARM,CARE ESTABLISHMENT,LD - East Locality - Cost of Care,LD - East Cambs - Special Needs,Residential Care
Cambridgeshire County Council,03-Oct-19,51300871873,"-2,977.44",DECOY FARM,CARE ESTABLISHMENT,LD - East Locality - Cost of Care,LD - East Cambs - Special Needs,Residential Care
Cambridgeshire County Council,03-Oct-19,51300907866,"-2,977.44",DECOY FARM,CARE ESTABLISHMENT,LD - East Locality - Cost of Care,LD - East Cambs - Special Needs,Residential Care
Cambridgeshire County Council,03-Oct-19,51301078213,"-2,977.44",DECOY FARM,CARE ESTABLISHMENT,LD - East Locality - Cost of Care,LD - East Cambs - Special Needs,Residential Care
Cambridgeshire County Council,03-Oct-19,51301098777,"-2,977.44",DECOY FARM,CARE ESTABLISHMENT,LD - East Locality - Cost of Care,LD - East Cambs - Special Needs,Residential Care
Cambridgeshire County Council,03-Oct-19,51300897878,"-2,977.44",DECOY FARM,CARE ESTABLISHMENT,LD - East Locality - Cost of Care,LD - East Cambs - Special Needs,Residential Care
Cambridgeshire County Council,03-Oct-19,51301078220,"-2,977.44",DECOY FARM,CARE ESTABLISHMENT,LD - East Locality - Cost of Care,LD - East Cambs - Special Needs,Residential Care
Cambridgeshire County Council,03-Oct-19,51301078137,"-2,977.44",DECOY FARM,CARE ESTABLISHMENT,LD - East Locality - Cost of Care,LD - East Cambs - Special Needs,Residential Care
Cambridgeshire County Council,03-Oct-19,51301189756,"-2,977.44",DECOY FARM,CARE ESTABLISHMENT,LD - East Locality - Cost of Care,LD - East Cambs - Special Needs,Residential Care
Cambridgeshire County Council,03-Oct-19,51301196739,"-2,977.44",DECOY FARM,CARE ESTABLISHMENT,LD - East Locality - Cost of Care,LD - East Cambs - Special Needs,Residential Care
Cambridgeshire County Council,03-Oct-19,51301196770,"-2,977.44",DECOY FARM,CARE ESTABLISHMENT,LD - East Locality - Cost of Care,LD - East Cambs - Special Needs,Residential Care
Cambridgeshire County Council,03-Oct-19,51301196656,"-2,977.44",DECOY FARM,CARE ESTABLISHMENT,LD - East Locality - Cost of Care,LD - East Cambs - Special Needs,Residential Care
Cambridgeshire County Council,03-Oct-19,51301196733,"-2,977.44",DECOY FARM,CARE ESTABLISHMENT,LD - East Locality - Cost of Care,LD - East Cambs - Special Needs,Residential Care
Cambridgeshire County Council,03-Oct-19,51301086714,"-2,977.44",DECOY FARM,CARE ESTABLISHMENT,LD - East Locality - Cost of Care,LD - East Cambs - Special Needs,Residential Care
Cambridgeshire County Council,03-Oct-19,51301098828,"-2,977.44",DECOY FARM,CARE ESTABLISHMENT,LD - East Locality - Cost of Care,LD - East Cambs - Special Needs,Residential Care
Cambridgeshire County Council,03-Oct-19,51301098804,"-2,977.44",DECOY FARM,CARE ESTABLISHMENT,LD - East Locality - Cost of Care,LD - East Cambs - Special Needs,Residential Care
Cambridgeshire County Council,03-Oct-19,51301098812,"-2,977.44",DECOY FARM,CARE ESTABLISHMENT,LD - East Locality - Cost of Care,LD - East Cambs - Special Needs,Residential Care
Cambridgeshire County Council,03-Oct-19,51301098886,"-2,977.44",DECOY FARM,CARE ESTABLISHMENT,LD - East Locality - Cost of Care,LD - East Cambs - Special Needs,Residential Care
Cambridgeshire County Council,03-Oct-19,51301098792,"-2,977.44",DECOY FARM,CARE ESTABLISHMENT,LD - East Locality - Cost of Care,LD - East Cambs - Special Needs,Residential Care
Cambridgeshire County Council,03-Oct-19,51301098753,"-2,977.44",DECOY FARM,CARE ESTABLISHMENT,LD - East Locality - Cost of Care,LD - East Cambs - Special Needs,Residential Care
Cambridgeshire County Council,03-Oct-19,51301135330,"-2,977.44",DECOY FARM,CARE ESTABLISHMENT,LD - East Locality - Cost of Care,LD - East Cambs - Special Needs,Residential Care
Cambridgeshire County Council,03-Oct-19,51301135270,"-2,977.44",DECOY FARM,CARE ESTABLISHMENT,LD - East Locality - Cost of Care,LD - East Cambs - Special Needs,Residential Care
Cambridgeshire County Council,03-Oct-19,51301135215,"-2,977.44",DECOY FARM,CARE ESTABLISHMENT,LD - East Locality - Cost of Care,LD - East Cambs - Special Needs,Residential Care
Cambridgeshire County Council,03-Oct-19,51300864456,"-2,977.44",DECOY FARM,CARE ESTABLISHMENT,LD - East Locality - Cost of Care,LD - East Cambs - Special Needs,Residential Care
Cambridgeshire County Council,03-Oct-19,51300871886,"-2,977.44",DECOY FARM,CARE ESTABLISHMENT,LD - East Locality - Cost of Care,LD - East Cambs - Special Needs,Residential Care
Cambridgeshire County Council,03-Oct-19,51300897797,"-2,977.44",DECOY FARM,CARE ESTABLISHMENT,LD - East Locality - Cost of Care,LD - East Cambs - Special Needs,Residential Care
Cambridgeshire County Council,03-Oct-19,51300845197,"-2,977.44",DECOY FARM,CARE ESTABLISHMENT,LD - East Locality - Cost of Care,LD - East Cambs - Special Needs,Residential Care
Cambridgeshire County Council,03-Oct-19,51300854297,"-2,977.44",DECOY FARM,CARE ESTABLISHMENT,LD - East Locality - Cost of Care,LD - East Cambs - Special Needs,Residential Care
Cambridgeshire County Council,03-Oct-19,51300813313,"-2,977.44",DECOY FARM,CARE ESTABLISHMENT,LD - East Locality - Cost of Care,LD - East Cambs - Special Needs,Residential Care
Cambridgeshire County Council,03-Oct-19,51300813248,"-2,977.44",DECOY FARM,CARE ESTABLISHMENT,LD - East Locality - Cost of Care,LD - East Cambs - Special Needs,Residential Care
Cambridgeshire County Council,03-Oct-19,51300845095,"-2,977.44",DECOY FARM,CARE ESTABLISHMENT,LD - East Locality - Cost of Care,LD - East Cambs - Special Needs,Residential Care
Cambridgeshire County Council,03-Oct-19,51300845163,"-2,977.44",DECOY FARM,CARE ESTABLISHMENT,LD - East Locality - Cost of Care,LD - East Cambs - Special Needs,Residential Care
Cambridgeshire County Council,03-Oct-19,51300854230,"-2,977.44",DECOY FARM,CARE ESTABLISHMENT,LD - East Locality - Cost of Care,LD - East Cambs - Special Needs,Residential Care
Cambridgeshire County Council,03-Oct-19,51300813223,"-2,977.44",DECOY FARM,CARE ESTABLISHMENT,LD - East Locality - Cost of Care,LD - East Cambs - Special Needs,Residential Care
Cambridgeshire County Council,03-Oct-19,51300813218,"-2,977.44",DECOY FARM,CARE ESTABLISHMENT,LD - East Locality - Cost of Care,LD - East Cambs - Special Needs,Residential Care
Cambridgeshire County Council,03-Oct-19,51300845124,"-2,977.44",DECOY FARM,CARE ESTABLISHMENT,LD - East Locality - Cost of Care,LD - East Cambs - Special Needs,Residential Care
Cambridgeshire County Council,03-Oct-19,51300845176,"-2,977.44",DECOY FARM,CARE ESTABLISHMENT,LD - East Locality - Cost of Care,LD - East Cambs - Special Needs,Residential Care
Cambridgeshire County Council,03-Oct-19,51300845191,"-2,977.44",DECOY FARM,CARE ESTABLISHMENT,LD - East Locality - Cost of Care,LD - East Cambs - Special Needs,Residential Care
Cambridgeshire County Council,03-Oct-19,51300854280,"-2,977.44",DECOY FARM,CARE ESTABLISHMENT,LD - East Locality - Cost of Care,LD - East Cambs - Special Needs,Residential Care
Cambridgeshire County Council,03-Oct-19,51300864511,"-2,977.44",DECOY FARM,CARE ESTABLISHMENT,LD - East Locality - Cost of Care,LD - East Cambs - Special Needs,Residential Care
Cambridgeshire County Council,03-Oct-19,51300845146,"-2,977.44",DECOY FARM,CARE ESTABLISHMENT,LD - East Locality - Cost of Care,LD - East Cambs - Special Needs,Residential Care
Cambridgeshire County Council,03-Oct-19,51300845132,"-2,977.44",DECOY FARM,CARE ESTABLISHMENT,LD - East Locality - Cost of Care,LD - East Cambs - Special Needs,Residential Care
Cambridgeshire County Council,03-Oct-19,51300871757,"-2,977.44",DECOY FARM,CARE ESTABLISHMENT,LD - East Locality - Cost of Care,LD - East Cambs - Special Needs,Residential Care
Cambridgeshire County Council,03-Oct-19,51300871894,"-2,977.44",DECOY FARM,CARE ESTABLISHMENT,LD - East Locality - Cost of Care,LD - East Cambs - Special Needs,Residential Care
Cambridgeshire County Council,03-Oct-19,51300871759,"-2,977.44",DECOY FARM,CARE ESTABLISHMENT,LD - East Locality - Cost of Care,LD - East Cambs - Special Needs,Residential Care
Cambridgeshire County Council,03-Oct-19,51300897789,"-2,977.44",DECOY FARM,CARE ESTABLISHMENT,LD - East Locality - Cost of Care,LD - East Cambs - Special Needs,Residential Care
Cambridgeshire County Council,03-Oct-19,51300897856,"-2,977.44",DECOY FARM,CARE ESTABLISHMENT,LD - East Locality - Cost of Care,LD - East Cambs - Special Needs,Residential Care
Cambridgeshire County Council,03-Oct-19,51300956583,"-2,977.44",DECOY FARM,CARE ESTABLISHMENT,LD - East Locality - Cost of Care,LD - East Cambs - Special Needs,Residential Care
Cambridgeshire County Council,03-Oct-19,51300956623,"-2,977.44",DECOY FARM,CARE ESTABLISHMENT,LD - East Locality - Cost of Care,LD - East Cambs - Special Needs,Residential Care
Cambridgeshire County Council,03-Oct-19,51300956534,"-2,977.44",DECOY FARM,CARE ESTABLISHMENT,LD - East Locality - Cost of Care,LD - East Cambs - Special Needs,Residential Care
Cambridgeshire County Council,03-Oct-19,51300956519,"-2,977.44",DECOY FARM,CARE ESTABLISHMENT,LD - East Locality - Cost of Care,LD - East Cambs - Special Needs,Residential Care
Cambridgeshire County Council,03-Oct-19,51300972989,"-2,977.44",DECOY FARM,CARE ESTABLISHMENT,LD - East Locality - Cost of Care,LD - East Cambs - Special Needs,Residential Care
Cambridgeshire County Council,03-Oct-19,51300973067,"-2,977.44",DECOY FARM,CARE ESTABLISHMENT,LD - East Locality - Cost of Care,LD - East Cambs - Special Needs,Residential Care
Cambridgeshire County Council,03-Oct-19,51300864453,"-2,977.44",DECOY FARM,CARE ESTABLISHMENT,LD - East Locality - Cost of Care,LD - East Cambs - Special Needs,Residential Care
Cambridgeshire County Council,03-Oct-19,51300973095,"-2,977.44",DECOY FARM,CARE ESTABLISHMENT,LD - East Locality - Cost of Care,LD - East Cambs - Special Needs,Residential Care
Cambridgeshire County Council,03-Oct-19,51300854220,"-2,977.44",DECOY FARM,CARE ESTABLISHMENT,LD - East Locality - Cost of Care,LD - East Cambs - Special Needs,Residential Care
Cambridgeshire County Council,03-Oct-19,51300864432,"-2,977.44",DECOY FARM,CARE ESTABLISHMENT,LD - East Locality - Cost of Care,LD - East Cambs - Special Needs,Residential Care
Cambridgeshire County Council,03-Oct-19,51300956479,"-2,977.44",DECOY FARM,CARE ESTABLISHMENT,LD - East Locality - Cost of Care,LD - East Cambs - Special Needs,Residential Care
Cambridgeshire County Council,03-Oct-19,51300907871,"-2,977.44",DECOY FARM,CARE ESTABLISHMENT,LD - East Locality - Cost of Care,LD - East Cambs - Special Needs,Residential Care
Cambridgeshire County Council,03-Oct-19,51300854179,"-2,977.44",DECOY FARM,CARE ESTABLISHMENT,LD - East Locality - Cost of Care,LD - East Cambs - Special Needs,Residential Care
Cambridgeshire County Council,03-Oct-19,51300854244,"-2,977.44",DECOY FARM,CARE ESTABLISHMENT,LD - East Locality - Cost of Care,LD - East Cambs - Special Needs,Residential Care
Cambridgeshire County Council,03-Oct-19,51300854325,"-2,977.44",DECOY FARM,CARE ESTABLISHMENT,LD - East Locality - Cost of Care,LD - East Cambs - Special Needs,Residential Care
Cambridgeshire County Council,03-Oct-19,51300854319,"-2,977.44",DECOY FARM,CARE ESTABLISHMENT,LD - East Locality - Cost of Care,LD - East Cambs - Special Needs,Residential Care
Cambridgeshire County Council,03-Oct-19,51300907755,"-2,977.44",DECOY FARM,CARE ESTABLISHMENT,LD - East Locality - Cost of Care,LD - East Cambs - Special Needs,Residential Care
Cambridgeshire County Council,03-Oct-19,51301043812,"-2,977.44",DECOY FARM,CARE ESTABLISHMENT,LD - East Locality - Cost of Care,LD - East Cambs - Special Needs,Residential Care
Cambridgeshire County Council,03-Oct-19,51301135319,"-2,977.44",DECOY FARM,CARE ESTABLISHMENT,LD - East Locality - Cost of Care,LD - East Cambs - Special Needs,Residential Care
Cambridgeshire County Council,03-Oct-19,51301033326,"-2,977.44",DECOY FARM,CARE ESTABLISHMENT,LD - East Locality - Cost of Care,LD - East Cambs - Special Needs,Residential Care
Cambridgeshire County Council,03-Oct-19,51301033340,"-2,977.44",DECOY FARM,CARE ESTABLISHMENT,LD - East Locality - Cost of Care,LD - East Cambs - Special Needs,Residential Care
Cambridgeshire County Council,03-Oct-19,51300813237,"-2,977.44",DECOY FARM,CARE ESTABLISHMENT,LD - East Locality - Cost of Care,LD - East Cambs - Special Needs,Residential Care
Cambridgeshire County Council,03-Oct-19,51300813286,"-2,977.44",DECOY FARM,CARE ESTABLISHMENT,LD - East Locality - Cost of Care,LD - East Cambs - Special Needs,Residential Care
Cambridgeshire County Council,03-Oct-19,51300845093,"-2,977.44",DECOY FARM,CARE ESTABLISHMENT,LD - East Locality - Cost of Care,LD - East Cambs - Special Needs,Residential Care
Cambridgeshire County Council,03-Oct-19,51300973089,"-2,977.44",DECOY FARM,CARE ESTABLISHMENT,LD - East Locality - Cost of Care,LD - East Cambs - Special Needs,Residential Care
Cambridgeshire County Council,03-Oct-19,51300973052,"-2,977.44",DECOY FARM,CARE ESTABLISHMENT,LD - East Locality - Cost of Care,LD - East Cambs - Special Needs,Residential Care
Cambridgeshire County Council,03-Oct-19,51300972984,"-2,977.44",DECOY FARM,CARE ESTABLISHMENT,LD - East Locality - Cost of Care,LD - East Cambs - Special Needs,Residential Care
Cambridgeshire County Council,03-Oct-19,51300981279,"-2,977.44",DECOY FARM,CARE ESTABLISHMENT,LD - East Locality - Cost of Care,LD - East Cambs - Special Needs,Residential Care
Cambridgeshire County Council,03-Oct-19,51300981193,"-2,977.44",DECOY FARM,CARE ESTABLISHMENT,LD - East Locality - Cost of Care,LD - East Cambs - Special Needs,Residential Care
Cambridgeshire County Council,03-Oct-19,51300981275,"-2,977.44",DECOY FARM,CARE ESTABLISHMENT,LD - East Locality - Cost of Care,LD - East Cambs - Special Needs,Residential Care
Cambridgeshire County Council,03-Oct-19,51301014091,"-2,977.44",DECOY FARM,CARE ESTABLISHMENT,LD - East Locality - Cost of Care,LD - East Cambs - Special Needs,Residential Care
Cambridgeshire County Council,03-Oct-19,51301014079,"-2,977.44",DECOY FARM,CARE ESTABLISHMENT,LD - East Locality - Cost of Care,LD - East Cambs - Special Needs,Residential Care
Cambridgeshire County Council,03-Oct-19,51301014129,"-2,977.44",DECOY FARM,CARE ESTABLISHMENT,LD - East Locality - Cost of Care,LD - East Cambs - Special Needs,Residential Care
Cambridgeshire County Council,03-Oct-19,51301023665,"-2,977.44",DECOY FARM,CARE ESTABLISHMENT,LD - East Locality - Cost of Care,LD - East Cambs - Special Needs,Residential Care
Cambridgeshire County Council,03-Oct-19,51301023522,"-2,977.44",DECOY FARM,CARE ESTABLISHMENT,LD - East Locality - Cost of Care,LD - East Cambs - Special Needs,Residential Care
Cambridgeshire County Council,03-Oct-19,51301023633,"-2,977.44",DECOY FARM,CARE ESTABLISHMENT,LD - East Locality - Cost of Care,LD - East Cambs - Special Needs,Residential Care
Cambridgeshire County Council,03-Oct-19,51301023690,"-2,977.44",DECOY FARM,CARE ESTABLISHMENT,LD - East Locality - Cost of Care,LD - East Cambs - Special Needs,Residential Care
Cambridgeshire County Council,03-Oct-19,51301023565,"-2,977.44",DECOY FARM,CARE ESTABLISHMENT,LD - East Locality - Cost of Care,LD - East Cambs - Special Needs,Residential Care
Cambridgeshire County Council,03-Oct-19,51301023525,"-2,977.44",DECOY FARM,CARE ESTABLISHMENT,LD - East Locality - Cost of Care,LD - East Cambs - Special Needs,Residential Care
Cambridgeshire County Council,03-Oct-19,51301033280,"-2,977.44",DECOY FARM,CARE ESTABLISHMENT,LD - East Locality - Cost of Care,LD - East Cambs - Special Needs,Residential Care
Cambridgeshire County Council,03-Oct-19,51301033263,"-2,977.44",DECOY FARM,CARE ESTABLISHMENT,LD - East Locality - Cost of Care,LD - East Cambs - Special Needs,Residential Care
Cambridgeshire County Council,03-Oct-19,51301043755,"-2,977.44",DECOY FARM,CARE ESTABLISHMENT,LD - East Locality - Cost of Care,LD - East Cambs - Special Needs,Residential Care
Cambridgeshire County Council,03-Oct-19,51301067051,"-2,977.44",DECOY FARM,CARE ESTABLISHMENT,LD - East Locality - Cost of Care,LD - East Cambs - Special Needs,Residential Care
Cambridgeshire County Council,03-Oct-19,51301067009,"-2,977.44",DECOY FARM,CARE ESTABLISHMENT,LD - East Locality - Cost of Care,LD - East Cambs - Special Needs,Residential Care
Cambridgeshire County Council,03-Oct-19,51301066937,"-2,977.44",DECOY FARM,CARE ESTABLISHMENT,LD - East Locality - Cost of Care,LD - East Cambs - Special Needs,Residential Care
Cambridgeshire County Council,03-Oct-19,51301014138,"-2,977.44",DECOY FARM,CARE ESTABLISHMENT,LD - East Locality - Cost of Care,LD - East Cambs - Special Needs,Residential Care
Cambridgeshire County Council,03-Oct-19,51301014070,"-2,977.44",DECOY FARM,CARE ESTABLISHMENT,LD - East Locality - Cost of Care,LD - East Cambs - Special Needs,Residential Care
Cambridgeshire County Council,03-Oct-19,51301014105,"-2,977.44",DECOY FARM,CARE ESTABLISHMENT,LD - East Locality - Cost of Care,LD - East Cambs - Special Needs,Residential Care
Cambridgeshire County Council,03-Oct-19,51300956486,"-2,977.44",DECOY FARM,CARE ESTABLISHMENT,LD - East Locality - Cost of Care,LD - East Cambs - Special Needs,Residential Care
Cambridgeshire County Council,03-Oct-19,51300956515,"-2,977.44",DECOY FARM,CARE ESTABLISHMENT,LD - East Locality - Cost of Care,LD - East Cambs - Special Needs,Residential Care
Cambridgeshire County Council,03-Oct-19,51301189774,"-2,977.44",DECOY FARM,CARE ESTABLISHMENT,LD - East Locality - Cost of Care,LD - East Cambs - Special Needs,Residential Care
Cambridgeshire County Council,03-Oct-19,51301196757,"-2,977.44",DECOY FARM,CARE ESTABLISHMENT,LD - East Locality - Cost of Care,LD - East Cambs - Special Needs,Residential Care
Cambridgeshire County Council,03-Oct-19,51301179582,"-2,977.44",DECOY FARM,CARE ESTABLISHMENT,LD - East Locality - Cost of Care,LD - East Cambs - Special Needs,Residential Care
Cambridgeshire County Council,03-Oct-19,51301189728,"-2,977.44",DECOY FARM,CARE ESTABLISHMENT,LD - East Locality - Cost of Care,LD - East Cambs - Special Needs,Residential Care
Cambridgeshire County Council,03-Oct-19,51301135251,"-2,977.44",DECOY FARM,CARE ESTABLISHMENT,LD - East Locality - Cost of Care,LD - East Cambs - Special Needs,Residential Care
Cambridgeshire County Council,03-Oct-19,51301135204,"-2,977.44",DECOY FARM,CARE ESTABLISHMENT,LD - East Locality - Cost of Care,LD - East Cambs - Special Needs,Residential Care
Cambridgeshire County Council,03-Oct-19,51300981209,"-2,977.44",DECOY FARM,CARE ESTABLISHMENT,LD - East Locality - Cost of Care,LD - East Cambs - Special Needs,Residential Care
Cambridgeshire County Council,03-Oct-19,51300956487,"-2,977.44",DECOY FARM,CARE ESTABLISHMENT,LD - East Locality - Cost of Care,LD - East Cambs - Special Needs,Residential Care
Cambridgeshire County Council,03-Oct-19,51300972956,"-2,977.44",DECOY FARM,CARE ESTABLISHMENT,LD - East Locality - Cost of Care,LD - East Cambs - Special Needs,Residential Care
Cambridgeshire County Council,03-Oct-19,51301165715,"-2,977.44",DECOY FARM,CARE ESTABLISHMENT,LD - East Locality - Cost of Care,LD - East Cambs - Special Needs,Residential Care
Cambridgeshire County Council,03-Oct-19,51300981220,"-2,977.44",DECOY FARM,CARE ESTABLISHMENT,LD - East Locality - Cost of Care,LD - East Cambs - Special Needs,Residential Care
Cambridgeshire County Council,03-Oct-19,51300956543,"-2,977.44",DECOY FARM,CARE ESTABLISHMENT,LD - East Locality - Cost of Care,LD - East Cambs - Special Needs,Residential Care
Cambridgeshire County Council,03-Oct-19,51301033338,"-2,977.44",DECOY FARM,CARE ESTABLISHMENT,LD - East Locality - Cost of Care,LD - East Cambs - Special Needs,Residential Care
Cambridgeshire County Council,03-Oct-19,51301033299,"-2,977.44",DECOY FARM,CARE ESTABLISHMENT,LD - East Locality - Cost of Care,LD - East Cambs - Special Needs,Residential Care
Cambridgeshire County Council,03-Oct-19,51301033228,"-2,977.44",DECOY FARM,CARE ESTABLISHMENT,LD - East Locality - Cost of Care,LD - East Cambs - Special Needs,Residential Care
Cambridgeshire County Council,03-Oct-19,51301043729,"-2,977.44",DECOY FARM,CARE ESTABLISHMENT,LD - East Locality - Cost of Care,LD - East Cambs - Special Needs,Residential Care
Cambridgeshire County Council,03-Oct-19,51301043848,"-2,977.44",DECOY FARM,CARE ESTABLISHMENT,LD - East Locality - Cost of Care,LD - East Cambs - Special Needs,Residential Care
Cambridgeshire County Council,03-Oct-19,51301033307,"-2,977.44",DECOY FARM,CARE ESTABLISHMENT,LD - East Locality - Cost of Care,LD - East Cambs - Special Needs,Residential Care
Cambridgeshire County Council,03-Oct-19,51301033358,"-2,977.44",DECOY FARM,CARE ESTABLISHMENT,LD - East Locality - Cost of Care,LD - East Cambs - Special Needs,Residential Care
Cambridgeshire County Council,03-Oct-19,51301043713,"-2,977.44",DECOY FARM,CARE ESTABLISHMENT,LD - East Locality - Cost of Care,LD - East Cambs - Special Needs,Residential Care
Cambridgeshire County Council,03-Oct-19,51301023554,"-2,977.44",DECOY FARM,CARE ESTABLISHMENT,LD - East Locality - Cost of Care,LD - East Cambs - Special Needs,Residential Care
Cambridgeshire County Council,03-Oct-19,51301066909,"-2,977.44",DECOY FARM,CARE ESTABLISHMENT,LD - East Locality - Cost of Care,LD - East Cambs - Special Needs,Residential Care
Cambridgeshire County Council,03-Oct-19,51301066932,"-2,977.44",DECOY FARM,CARE ESTABLISHMENT,LD - East Locality - Cost of Care,LD - East Cambs - Special Needs,Residential Care
Cambridgeshire County Council,03-Oct-19,51301135206,"-2,977.44",DECOY FARM,CARE ESTABLISHMENT,LD - East Locality - Cost of Care,LD - East Cambs - Special Needs,Residential Care
Cambridgeshire County Council,03-Oct-19,51300845114,"-2,977.44",DECOY FARM,CARE ESTABLISHMENT,LD - East Locality - Cost of Care,LD - East Cambs - Special Needs,Residential Care
Cambridgeshire County Council,03-Oct-19,51300845103,"-2,977.44",DECOY FARM,CARE ESTABLISHMENT,LD - East Locality - Cost of Care,LD - East Cambs - Special Needs,Residential Care
Cambridgeshire County Council,03-Oct-19,51300854189,"-2,977.44",DECOY FARM,CARE ESTABLISHMENT,LD - East Locality - Cost of Care,LD - East Cambs - Special Needs,Residential Care
Cambridgeshire County Council,03-Oct-19,51300897925,"-2,977.44",DECOY FARM,CARE ESTABLISHMENT,LD - East Locality - Cost of Care,LD - East Cambs - Special Needs,Residential Care
Cambridgeshire County Council,03-Oct-19,51300907881,"-2,977.44",DECOY FARM,CARE ESTABLISHMENT,LD - East Locality - Cost of Care,LD - East Cambs - Special Needs,Residential Care
Cambridgeshire County Council,03-Oct-19,51301135344,"-2,977.44",DECOY FARM,CARE ESTABLISHMENT,LD - East Locality - Cost of Care,LD - East Cambs - Special Needs,Residential Care
Cambridgeshire County Council,03-Oct-19,51301023506,"-2,977.44",DECOY FARM,CARE ESTABLISHMENT,LD - East Locality - Cost of Care,LD - East Cambs - Special Needs,Residential Care
Cambridgeshire County Council,03-Oct-19,51301124288,"-2,977.44",DECOY FARM,CARE ESTABLISHMENT,LD - East Locality - Cost of Care,LD - East Cambs - Special Needs,Residential Care
Cambridgeshire County Council,03-Oct-19,51301086745,"-2,977.44",DECOY FARM,CARE ESTABLISHMENT,LD - East Locality - Cost of Care,LD - East Cambs - Special Needs,Residential Care
Cambridgeshire County Council,03-Oct-19,51301146620,"-2,977.44",DECOY FARM,CARE ESTABLISHMENT,LD - East Locality - Cost of Care,LD - East Cambs - Special Needs,Residential Care
Cambridgeshire County Council,03-Oct-19,51301135255,"-2,977.44",DECOY FARM,CARE ESTABLISHMENT,LD - East Locality - Cost of Care,LD - East Cambs - Special Needs,Residential Care
Cambridgeshire County Council,03-Oct-19,51301066934,"-2,977.44",DECOY FARM,CARE ESTABLISHMENT,LD - East Locality - Cost of Care,LD - East Cambs - Special Needs,Residential Care
Cambridgeshire County Council,03-Oct-19,51301098833,"-2,977.44",DECOY FARM,CARE ESTABLISHMENT,LD - East Locality - Cost of Care,LD - East Cambs - Special Needs,Residential Care
Cambridgeshire County Council,03-Oct-19,51301179620,"-2,977.44",DECOY FARM,CARE ESTABLISHMENT,LD - East Locality - Cost of Care,LD - East Cambs - Special Needs,Residential Care
Cambridgeshire County Council,03-Oct-19,51301146589,"-2,977.44",DECOY FARM,CARE ESTABLISHMENT,LD - East Locality - Cost of Care,LD - East Cambs - Special Needs,Residential Care
Cambridgeshire County Council,03-Oct-19,51300990692,"-2,977.44",DECOY FARM,CARE ESTABLISHMENT,LD - East Locality - Cost of Care,LD - East Cambs - Special Needs,Residential Care
Cambridgeshire County Council,03-Oct-19,51300981300,"-2,977.44",DECOY FARM,CARE ESTABLISHMENT,LD - East Locality - Cost of Care,LD - East Cambs - Special Needs,Residential Care
Cambridgeshire County Council,03-Oct-19,51300917182,"-2,977.44",DECOY FARM,CARE ESTABLISHMENT,LD - East Locality - Cost of Care,LD - East Cambs - Special Needs,Residential Care
Cambridgeshire County Council,03-Oct-19,51300956504,"-2,977.44",DECOY FARM,CARE ESTABLISHMENT,LD - East Locality - Cost of Care,LD - East Cambs - Special Needs,Residential Care
Cambridgeshire County Council,03-Oct-19,51300845214,"-2,977.44",DECOY FARM,CARE ESTABLISHMENT,LD - East Locality - Cost of Care,LD - East Cambs - Special Needs,Residential Care
Cambridgeshire County Council,03-Oct-19,51300871892,"-2,977.44",DECOY FARM,CARE ESTABLISHMENT,LD - East Locality - Cost of Care,LD - East Cambs - Special Needs,Residential Care
Cambridgeshire County Council,03-Oct-19,51300981312,"-2,977.44",DECOY FARM,CARE ESTABLISHMENT,LD - East Locality - Cost of Care,LD - East Cambs - Special Needs,Residential Care
Cambridgeshire County Council,03-Oct-19,51301124218,"-2,977.44",DECOY FARM,CARE ESTABLISHMENT,LD - East Locality - Cost of Care,LD - East Cambs - Special Needs,Residential Care
Cambridgeshire County Council,03-Oct-19,51301135246,"-2,977.44",DECOY FARM,CARE ESTABLISHMENT,LD - East Locality - Cost of Care,LD - East Cambs - Special Needs,Residential Care
Cambridgeshire County Council,03-Oct-19,51300956593,"-2,977.44",DECOY FARM,CARE ESTABLISHMENT,LD - East Locality - Cost of Care,LD - East Cambs - Special Needs,Residential Care
Cambridgeshire County Council,03-Oct-19,51300956495,"-2,977.44",DECOY FARM,CARE ESTABLISHMENT,LD - East Locality - Cost of Care,LD - East Cambs - Special Needs,Residential Care
Cambridgeshire County Council,03-Oct-19,51300972977,"-2,977.44",DECOY FARM,CARE ESTABLISHMENT,LD - East Locality - Cost of Care,LD - East Cambs - Special Needs,Residential Care
Cambridgeshire County Council,03-Oct-19,51300973017,"-2,977.44",DECOY FARM,CARE ESTABLISHMENT,LD - East Locality - Cost of Care,LD - East Cambs - Special Needs,Residential Care
Cambridgeshire County Council,03-Oct-19,51301033301,"-2,977.44",DECOY FARM,CARE ESTABLISHMENT,LD - East Locality - Cost of Care,LD - East Cambs - Special Needs,Residential Care
Cambridgeshire County Council,03-Oct-19,51301033238,"-2,977.44",DECOY FARM,CARE ESTABLISHMENT,LD - East Locality - Cost of Care,LD - East Cambs - Special Needs,Residential Care
Cambridgeshire County Council,03-Oct-19,51300917257,"-2,977.44",DECOY FARM,CARE ESTABLISHMENT,LD - East Locality - Cost of Care,LD - East Cambs - Special Needs,Residential Care
Cambridgeshire County Council,03-Oct-19,51300938635,"-2,977.44",DECOY FARM,CARE ESTABLISHMENT,LD - East Locality - Cost of Care,LD - East Cambs - Special Needs,Residential Care
Cambridgeshire County Council,03-Oct-19,51300917168,"-2,977.44",DECOY FARM,CARE ESTABLISHMENT,LD - East Locality - Cost of Care,LD - East Cambs - Special Needs,Residential Care
Cambridgeshire County Council,03-Oct-19,51300956489,"-2,977.44",DECOY FARM,CARE ESTABLISHMENT,LD - East Locality - Cost of Care,LD - East Cambs - Special Needs,Residential Care
Cambridgeshire County Council,03-Oct-19,51301196725,"-2,977.44",DECOY FARM,CARE ESTABLISHMENT,LD - East Locality - Cost of Care,LD - East Cambs - Special Needs,Residential Care
Cambridgeshire County Council,03-Oct-19,51300917164,"-2,977.44",DECOY FARM,CARE ESTABLISHMENT,LD - East Locality - Cost of Care,LD - East Cambs - Special Needs,Residential Care
Cambridgeshire County Council,03-Oct-19,51300907788,"-2,977.44",DECOY FARM,CARE ESTABLISHMENT,LD - East Locality - Cost of Care,LD - East Cambs - Special Needs,Residential Care
Cambridgeshire County Council,03-Oct-19,51301086705,"-2,977.44",DECOY FARM,CARE ESTABLISHMENT,LD - East Locality - Cost of Care,LD - East Cambs - Special Needs,Residential Care
Cambridgeshire County Council,03-Oct-19,51301098827,"-2,977.44",DECOY FARM,CARE ESTABLISHMENT,LD - East Locality - Cost of Care,LD - East Cambs - Special Needs,Residential Care
Cambridgeshire County Council,03-Oct-19,51301196792,"-2,977.44",DECOY FARM,CARE ESTABLISHMENT,LD - East Locality - Cost of Care,LD - East Cambs - Special Needs,Residential Care
Cambridgeshire County Council,03-Oct-19,51301179636,"-2,977.44",DECOY FARM,CARE ESTABLISHMENT,LD - East Locality - Cost of Care,LD - East Cambs - Special Needs,Residential Care
Cambridgeshire County Council,03-Oct-19,51301078145,"-2,977.44",DECOY FARM,CARE ESTABLISHMENT,LD - East Locality - Cost of Care,LD - East Cambs - Special Needs,Residential Care
Cambridgeshire County Council,03-Oct-19,51301124221,"-2,977.44",DECOY FARM,CARE ESTABLISHMENT,LD - East Locality - Cost of Care,LD - East Cambs - Special Needs,Residential Care
Cambridgeshire County Council,03-Oct-19,51301033224,"-2,977.44",DECOY FARM,CARE ESTABLISHMENT,LD - East Locality - Cost of Care,LD - East Cambs - Special Needs,Residential Care
Cambridgeshire County Council,03-Oct-19,51301043698,"-2,977.44",DECOY FARM,CARE ESTABLISHMENT,LD - East Locality - Cost of Care,LD - East Cambs - Special Needs,Residential Care
Cambridgeshire County Council,03-Oct-19,51301086782,"-2,977.44",DECOY FARM,CARE ESTABLISHMENT,LD - East Locality - Cost of Care,LD - East Cambs - Special Needs,Residential Care
Cambridgeshire County Council,03-Oct-19,51301196679,"-2,977.44",DECOY FARM,CARE ESTABLISHMENT,LD - East Locality - Cost of Care,LD - East Cambs - Special Needs,Residential Care
Cambridgeshire County Council,03-Oct-19,51301179462,"-2,977.44",DECOY FARM,CARE ESTABLISHMENT,LD - East Locality - Cost of Care,LD - East Cambs - Special Needs,Residential Care
Cambridgeshire County Council,03-Oct-19,51300813266,"-2,977.44",DECOY FARM,CARE ESTABLISHMENT,LD - East Locality - Cost of Care,LD - East Cambs - Special Needs,Residential Care
Cambridgeshire County Council,03-Oct-19,51300845217,"-2,977.44",DECOY FARM,CARE ESTABLISHMENT,LD - East Locality - Cost of Care,LD - East Cambs - Special Needs,Residential Care
Cambridgeshire County Council,03-Oct-19,51301124296,"-2,977.44",DECOY FARM,CARE ESTABLISHMENT,LD - East Locality - Cost of Care,LD - East Cambs - Special Needs,Residential Care
Cambridgeshire County Council,03-Oct-19,51301086754,"-2,977.44",DECOY FARM,CARE ESTABLISHMENT,LD - East Locality - Cost of Care,LD - East Cambs - Special Needs,Residential Care
Cambridgeshire County Council,03-Oct-19,51301014141,"-2,977.44",DECOY FARM,CARE ESTABLISHMENT,LD - East Locality - Cost of Care,LD - East Cambs - Special Needs,Residential Care
Cambridgeshire County Council,03-Oct-19,51300990616,"-2,977.44",DECOY FARM,CARE ESTABLISHMENT,LD - East Locality - Cost of Care,LD - East Cambs - Special Needs,Residential Care
Cambridgeshire County Council,03-Oct-19,51300813226,"-2,977.44",DECOY FARM,CARE ESTABLISHMENT,LD - East Locality - Cost of Care,LD - East Cambs - Special Needs,Residential Care
Cambridgeshire County Council,03-Oct-19,51300854199,"-2,977.44",DECOY FARM,CARE ESTABLISHMENT,LD - East Locality - Cost of Care,LD - East Cambs - Special Needs,Residential Care
Cambridgeshire County Council,03-Oct-19,51300864579,"-2,977.44",DECOY FARM,CARE ESTABLISHMENT,LD - East Locality - Cost of Care,LD - East Cambs - Special Needs,Residential Care
Cambridgeshire County Council,03-Oct-19,51300973023,"-2,977.44",DECOY FARM,CARE ESTABLISHMENT,LD - East Locality - Cost of Care,LD - East Cambs - Special Needs,Residential Care
Cambridgeshire County Council,03-Oct-19,51300917191,"-2,977.44",DECOY FARM,CARE ESTABLISHMENT,LD - East Locality - Cost of Care,LD - East Cambs - Special Needs,Residential Care
Cambridgeshire County Council,03-Oct-19,51301033226,"-2,977.44",DECOY FARM,CARE ESTABLISHMENT,LD - East Locality - Cost of Care,LD - East Cambs - Special Needs,Residential Care
Cambridgeshire County Council,03-Oct-19,51301043782,"-2,977.44",DECOY FARM,CARE ESTABLISHMENT,LD - East Locality - Cost of Care,LD - East Cambs - Special Needs,Residential Care
Cambridgeshire County Council,03-Oct-19,51301043761,"-2,977.44",DECOY FARM,CARE ESTABLISHMENT,LD - East Locality - Cost of Care,LD - East Cambs - Special Needs,Residential Care
Cambridgeshire County Council,03-Oct-19,51301043704,"-2,977.44",DECOY FARM,CARE ESTABLISHMENT,LD - East Locality - Cost of Care,LD - East Cambs - Special Needs,Residential Care
Cambridgeshire County Council,03-Oct-19,51301066914,"-2,977.44",DECOY FARM,CARE ESTABLISHMENT,LD - East Locality - Cost of Care,LD - East Cambs - Special Needs,Residential Care
Cambridgeshire County Council,03-Oct-19,51301066945,"-2,977.44",DECOY FARM,CARE ESTABLISHMENT,LD - East Locality - Cost of Care,LD - East Cambs - Special Needs,Residential Care
Cambridgeshire County Council,03-Oct-19,51301078167,"-2,977.44",DECOY FARM,CARE ESTABLISHMENT,LD - East Locality - Cost of Care,LD - East Cambs - Special Needs,Residential Care
Cambridgeshire County Council,03-Oct-19,51301078182,"-2,977.44",DECOY FARM,CARE ESTABLISHMENT,LD - East Locality - Cost of Care,LD - East Cambs - Special Needs,Residential Care
Cambridgeshire County Council,03-Oct-19,51301098855,"-2,977.44",DECOY FARM,CARE ESTABLISHMENT,LD - East Locality - Cost of Care,LD - East Cambs - Special Needs,Residential Care
Cambridgeshire County Council,03-Oct-19,51301098870,"-2,977.44",DECOY FARM,CARE ESTABLISHMENT,LD - East Locality - Cost of Care,LD - East Cambs - Special Needs,Residential Care
Cambridgeshire County Council,03-Oct-19,51301098889,"-2,977.44",DECOY FARM,CARE ESTABLISHMENT,LD - East Locality - Cost of Care,LD - East Cambs - Special Needs,Residential Care
Cambridgeshire County Council,03-Oct-19,51301124245,"-2,977.44",DECOY FARM,CARE ESTABLISHMENT,LD - East Locality - Cost of Care,LD - East Cambs - Special Needs,Residential Care
Cambridgeshire County Council,03-Oct-19,51301098824,"-2,977.44",DECOY FARM,CARE ESTABLISHMENT,LD - East Locality - Cost of Care,LD - East Cambs - Special Needs,Residential Care
Cambridgeshire County Council,03-Oct-19,51301124144,"-2,977.44",DECOY FARM,CARE ESTABLISHMENT,LD - East Locality - Cost of Care,LD - East Cambs - Special Needs,Residential Care
Cambridgeshire County Council,03-Oct-19,51300981249,"-2,977.44",DECOY FARM,CARE ESTABLISHMENT,LD - East Locality - Cost of Care,LD - East Cambs - Special Needs,Residential Care
Cambridgeshire County Council,03-Oct-19,51301033317,"-2,977.44",DECOY FARM,CARE ESTABLISHMENT,LD - East Locality - Cost of Care,LD - East Cambs - Special Needs,Residential Care
Cambridgeshire County Council,03-Oct-19,51300990665,"-2,977.44",DECOY FARM,CARE ESTABLISHMENT,LD - East Locality - Cost of Care,LD - East Cambs - Special Needs,Residential Care
Cambridgeshire County Council,03-Oct-19,51300990691,"-2,977.44",DECOY FARM,CARE ESTABLISHMENT,LD - East Locality - Cost of Care,LD - East Cambs - Special Needs,Residential Care
Cambridgeshire County Council,03-Oct-19,51301135282,"-2,977.44",DECOY FARM,CARE ESTABLISHMENT,LD - East Locality - Cost of Care,LD - East Cambs - Special Needs,Residential Care
Cambridgeshire County Council,03-Oct-19,51301135289,"-2,977.44",DECOY FARM,CARE ESTABLISHMENT,LD - East Locality - Cost of Care,LD - East Cambs - Special Needs,Residential Care
Cambridgeshire County Council,03-Oct-19,51301135247,"-2,977.44",DECOY FARM,CARE ESTABLISHMENT,LD - East Locality - Cost of Care,LD - East Cambs - Special Needs,Residential Care
Cambridgeshire County Council,03-Oct-19,51301135328,"-2,977.44",DECOY FARM,CARE ESTABLISHMENT,LD - East Locality - Cost of Care,LD - East Cambs - Special Needs,Residential Care
Cambridgeshire County Council,03-Oct-19,51301023482,"-2,977.44",DECOY FARM,CARE ESTABLISHMENT,LD - East Locality - Cost of Care,LD - East Cambs - Special Needs,Residential Care
Cambridgeshire County Council,03-Oct-19,51301023495,"-2,977.44",DECOY FARM,CARE ESTABLISHMENT,LD - East Locality - Cost of Care,LD - East Cambs - Special Needs,Residential Care
Cambridgeshire County Council,03-Oct-19,51301023534,"-2,977.44",DECOY FARM,CARE ESTABLISHMENT,LD - East Locality - Cost of Care,LD - East Cambs - Special Needs,Residential Care
Cambridgeshire County Council,03-Oct-19,51301023546,"-2,977.44",DECOY FARM,CARE ESTABLISHMENT,LD - East Locality - Cost of Care,LD - East Cambs - Special Needs,Residential Care
Cambridgeshire County Council,03-Oct-19,51301146599,"-2,977.44",DECOY FARM,CARE ESTABLISHMENT,LD - East Locality - Cost of Care,LD - East Cambs - Special Needs,Residential Care
Cambridgeshire County Council,03-Oct-19,51301189691,"-2,977.44",DECOY FARM,CARE ESTABLISHMENT,LD - East Locality - Cost of Care,LD - East Cambs - Special Needs,Residential Care
Cambridgeshire County Council,03-Oct-19,51301189692,"-2,977.44",DECOY FARM,CARE ESTABLISHMENT,LD - East Locality - Cost of Care,LD - East Cambs - Special Needs,Residential Care
Cambridgeshire County Council,03-Oct-19,51301196712,"-2,977.44",DECOY FARM,CARE ESTABLISHMENT,LD - East Locality - Cost of Care,LD - East Cambs - Special Needs,Residential Care
Cambridgeshire County Council,03-Oct-19,51301196708,"-2,977.44",DECOY FARM,CARE ESTABLISHMENT,LD - East Locality - Cost of Care,LD - East Cambs - Special Needs,Residential Care
Cambridgeshire County Council,03-Oct-19,51300990733,"-2,977.44",DECOY FARM,CARE ESTABLISHMENT,LD - East Locality - Cost of Care,LD - East Cambs - Special Needs,Residential Care
Cambridgeshire County Council,03-Oct-19,51300990715,"-2,977.44",DECOY FARM,CARE ESTABLISHMENT,LD - East Locality - Cost of Care,LD - East Cambs - Special Needs,Residential Care
Cambridgeshire County Council,03-Oct-19,51301014005,"-2,977.44",DECOY FARM,CARE ESTABLISHMENT,LD - East Locality - Cost of Care,LD - East Cambs - Special Needs,Residential Care
Cambridgeshire County Council,03-Oct-19,51301124297,"-2,977.44",DECOY FARM,CARE ESTABLISHMENT,LD - East Locality - Cost of Care,LD - East Cambs - Special Needs,Residential Care
Cambridgeshire County Council,03-Oct-19,51300917275,"-2,977.44",DECOY FARM,CARE ESTABLISHMENT,LD - East Locality - Cost of Care,LD - East Cambs - Special Needs,Residential Care
Cambridgeshire County Council,03-Oct-19,51301146564,"-2,977.44",DECOY FARM,CARE ESTABLISHMENT,LD - East Locality - Cost of Care,LD - East Cambs - Special Needs,Residential Care
Cambridgeshire County Council,03-Oct-19,51301179567,"-2,977.44",DECOY FARM,CARE ESTABLISHMENT,LD - East Locality - Cost of Care,LD - East Cambs - Special Needs,Residential Care
Cambridgeshire County Council,03-Oct-19,51300907862,"-2,977.44",DECOY FARM,CARE ESTABLISHMENT,LD - East Locality - Cost of Care,LD - East Cambs - Special Needs,Residential Care
Cambridgeshire County Council,03-Oct-19,51301086731,"-2,977.44",DECOY FARM,CARE ESTABLISHMENT,LD - East Locality - Cost of Care,LD - East Cambs - Special Needs,Residential Care
Cambridgeshire County Council,03-Oct-19,51301086764,"-2,977.44",DECOY FARM,CARE ESTABLISHMENT,LD - East Locality - Cost of Care,LD - East Cambs - Special Needs,Residential Care
Cambridgeshire County Council,03-Oct-19,51300917267,"-2,977.44",DECOY FARM,CARE ESTABLISHMENT,LD - East Locality - Cost of Care,LD - East Cambs - Special Needs,Residential Care
Cambridgeshire County Council,03-Oct-19,51301066942,"-2,977.44",DECOY FARM,CARE ESTABLISHMENT,LD - East Locality - Cost of Care,LD - East Cambs - Special Needs,Residential Care
Cambridgeshire County Council,03-Oct-19,51300897870,"-2,977.44",DECOY FARM,CARE ESTABLISHMENT,LD - East Locality - Cost of Care,LD - East Cambs - Special Needs,Residential Care
Cambridgeshire County Council,03-Oct-19,51301078159,"-2,977.44",DECOY FARM,CARE ESTABLISHMENT,LD - East Locality - Cost of Care,LD - East Cambs - Special Needs,Residential Care
Cambridgeshire County Council,03-Oct-19,51301098811,"-2,977.44",DECOY FARM,CARE ESTABLISHMENT,LD - East Locality - Cost of Care,LD - East Cambs - Special Needs,Residential Care
Cambridgeshire County Council,03-Oct-19,51301086684,"-2,977.44",DECOY FARM,CARE ESTABLISHMENT,LD - East Locality - Cost of Care,LD - East Cambs - Special Needs,Residential Care
Cambridgeshire County Council,03-Oct-19,51301098892,"-2,977.44",DECOY FARM,CARE ESTABLISHMENT,LD - East Locality - Cost of Care,LD - East Cambs - Special Needs,Residential Care
Cambridgeshire County Council,03-Oct-19,51301098846,"-2,977.44",DECOY FARM,CARE ESTABLISHMENT,LD - East Locality - Cost of Care,LD - East Cambs - Special Needs,Residential Care
Cambridgeshire County Council,03-Oct-19,51300897803,"-2,977.44",DECOY FARM,CARE ESTABLISHMENT,LD - East Locality - Cost of Care,LD - East Cambs - Special Needs,Residential Care
Cambridgeshire County Council,03-Oct-19,51301078196,"-2,977.44",DECOY FARM,CARE ESTABLISHMENT,LD - East Locality - Cost of Care,LD - East Cambs - Special Needs,Residential Care
Cambridgeshire County Council,03-Oct-19,51301179626,"-2,977.44",DECOY FARM,CARE ESTABLISHMENT,LD - East Locality - Cost of Care,LD - East Cambs - Special Needs,Residential Care
Cambridgeshire County Council,03-Oct-19,51301179600,"-2,977.44",DECOY FARM,CARE ESTABLISHMENT,LD - East Locality - Cost of Care,LD - East Cambs - Special Needs,Residential Care
Cambridgeshire County Council,03-Oct-19,51300956619,"-2,977.44",DECOY FARM,CARE ESTABLISHMENT,LD - East Locality - Cost of Care,LD - East Cambs - Special Needs,Residential Care
Cambridgeshire County Council,03-Oct-19,51300956480,"-2,977.44",DECOY FARM,CARE ESTABLISHMENT,LD - East Locality - Cost of Care,LD - East Cambs - Special Needs,Residential Care
Cambridgeshire County Council,03-Oct-19,51301196784,"-2,977.44",DECOY FARM,CARE ESTABLISHMENT,LD - East Locality - Cost of Care,LD - East Cambs - Special Needs,Residential Care
Cambridgeshire County Council,03-Oct-19,51301196651,"-2,977.44",DECOY FARM,CARE ESTABLISHMENT,LD - East Locality - Cost of Care,LD - East Cambs - Special Needs,Residential Care
Cambridgeshire County Council,03-Oct-19,51301135259,"-2,977.44",DECOY FARM,CARE ESTABLISHMENT,LD - East Locality - Cost of Care,LD - East Cambs - Special Needs,Residential Care
Cambridgeshire County Council,03-Oct-19,51301135351,"-2,977.44",DECOY FARM,CARE ESTABLISHMENT,LD - East Locality - Cost of Care,LD - East Cambs - Special Needs,Residential Care
Cambridgeshire County Council,03-Oct-19,51301086759,"-2,977.44",DECOY FARM,CARE ESTABLISHMENT,LD - East Locality - Cost of Care,LD - East Cambs - Special Needs,Residential Care
Cambridgeshire County Council,03-Oct-19,51301043726,"-2,977.44",DECOY FARM,CARE ESTABLISHMENT,LD - East Locality - Cost of Care,LD - East Cambs - Special Needs,Residential Care
Cambridgeshire County Council,03-Oct-19,51301066946,"-2,977.44",DECOY FARM,CARE ESTABLISHMENT,LD - East Locality - Cost of Care,LD - East Cambs - Special Needs,Residential Care
Cambridgeshire County Council,03-Oct-19,51301067025,"-2,977.44",DECOY FARM,CARE ESTABLISHMENT,LD - East Locality - Cost of Care,LD - East Cambs - Special Needs,Residential Care
Cambridgeshire County Council,03-Oct-19,51301078158,"-2,977.44",DECOY FARM,CARE ESTABLISHMENT,LD - East Locality - Cost of Care,LD - East Cambs - Special Needs,Residential Care
Cambridgeshire County Council,03-Oct-19,51301078127,"-2,977.44",DECOY FARM,CARE ESTABLISHMENT,LD - East Locality - Cost of Care,LD - East Cambs - Special Needs,Residential Care
Cambridgeshire County Council,03-Oct-19,51301189786,"-2,977.44",DECOY FARM,CARE ESTABLISHMENT,LD - East Locality - Cost of Care,LD - East Cambs - Special Needs,Residential Care
Cambridgeshire County Council,03-Oct-19,51301189701,"-2,977.44",DECOY FARM,CARE ESTABLISHMENT,LD - East Locality - Cost of Care,LD - East Cambs - Special Needs,Residential Care
Cambridgeshire County Council,03-Oct-19,51301135291,"-2,977.44",DECOY FARM,CARE ESTABLISHMENT,LD - East Locality - Cost of Care,LD - East Cambs - Special Needs,Residential Care
Cambridgeshire County Council,03-Oct-19,51301124282,"-2,977.44",DECOY FARM,CARE ESTABLISHMENT,LD - East Locality - Cost of Care,LD - East Cambs - Special Needs,Residential Care
Cambridgeshire County Council,03-Oct-19,51301124290,"-2,977.44",DECOY FARM,CARE ESTABLISHMENT,LD - East Locality - Cost of Care,LD - East Cambs - Special Needs,Residential Care
Cambridgeshire County Council,03-Oct-19,51301124159,"-2,977.44",DECOY FARM,CARE ESTABLISHMENT,LD - East Locality - Cost of Care,LD - East Cambs - Special Needs,Residential Care
Cambridgeshire County Council,03-Oct-19,51301179505,"-2,977.44",DECOY FARM,CARE ESTABLISHMENT,LD - East Locality - Cost of Care,LD - East Cambs - Special Needs,Residential Care
Cambridgeshire County Council,03-Oct-19,51300938621,"-2,977.44",DECOY FARM,CARE ESTABLISHMENT,LD - East Locality - Cost of Care,LD - East Cambs - Special Needs,Residential Care
Cambridgeshire County Council,03-Oct-19,51300907867,"-2,977.44",DECOY FARM,CARE ESTABLISHMENT,LD - East Locality - Cost of Care,LD - East Cambs - Special Needs,Residential Care
Cambridgeshire County Council,03-Oct-19,51301086639,"-2,977.44",DECOY FARM,CARE ESTABLISHMENT,LD - East Locality - Cost of Care,LD - East Cambs - Special Needs,Residential Care
Cambridgeshire County Council,03-Oct-19,51301086739,"-2,977.44",DECOY FARM,CARE ESTABLISHMENT,LD - East Locality - Cost of Care,LD - East Cambs - Special Needs,Residential Care
Cambridgeshire County Council,03-Oct-19,51300917263,"-2,977.44",DECOY FARM,CARE ESTABLISHMENT,LD - East Locality - Cost of Care,LD - East Cambs - Special Needs,Residential Care
Cambridgeshire County Council,03-Oct-19,51300907796,"-2,977.44",DECOY FARM,CARE ESTABLISHMENT,LD - East Locality - Cost of Care,LD - East Cambs - Special Needs,Residential Care
Cambridgeshire County Council,03-Oct-19,51300917197,"-2,977.44",DECOY FARM,CARE ESTABLISHMENT,LD - East Locality - Cost of Care,LD - East Cambs - Special Needs,Residential Care
Cambridgeshire County Council,03-Oct-19,51301078236,"-2,977.44",DECOY FARM,CARE ESTABLISHMENT,LD - East Locality - Cost of Care,LD - East Cambs - Special Needs,Residential Care
Cambridgeshire County Council,03-Oct-19,51301078188,"-2,977.44",DECOY FARM,CARE ESTABLISHMENT,LD - East Locality - Cost of Care,LD - East Cambs - Special Needs,Residential Care
Cambridgeshire County Council,03-Oct-19,51301078131,"-2,977.44",DECOY FARM,CARE ESTABLISHMENT,LD - East Locality - Cost of Care,LD - East Cambs - Special Needs,Residential Care
Cambridgeshire County Council,03-Oct-19,51301179647,"-2,977.44",DECOY FARM,CARE ESTABLISHMENT,LD - East Locality - Cost of Care,LD - East Cambs - Special Needs,Residential Care
Cambridgeshire County Council,03-Oct-19,51301179572,"-2,977.44",DECOY FARM,CARE ESTABLISHMENT,LD - East Locality - Cost of Care,LD - East Cambs - Special Needs,Residential Care
Cambridgeshire County Council,03-Oct-19,51301196760,"-2,977.44",DECOY FARM,CARE ESTABLISHMENT,LD - East Locality - Cost of Care,LD - East Cambs - Special Needs,Residential Care
Cambridgeshire County Council,03-Oct-19,51301196772,"-2,977.44",DECOY FARM,CARE ESTABLISHMENT,LD - East Locality - Cost of Care,LD - East Cambs - Special Needs,Residential Care
Cambridgeshire County Council,03-Oct-19,51301196680,"-2,977.44",DECOY FARM,CARE ESTABLISHMENT,LD - East Locality - Cost of Care,LD - East Cambs - Special Needs,Residential Care
Cambridgeshire County Council,03-Oct-19,51301196745,"-2,977.44",DECOY FARM,CARE ESTABLISHMENT,LD - East Locality - Cost of Care,LD - East Cambs - Special Needs,Residential Care
Cambridgeshire County Council,03-Oct-19,51301196752,"-2,977.44",DECOY FARM,CARE ESTABLISHMENT,LD - East Locality - Cost of Care,LD - East Cambs - Special Needs,Residential Care
Cambridgeshire County Council,03-Oct-19,51301078225,"-2,977.44",DECOY FARM,CARE ESTABLISHMENT,LD - East Locality - Cost of Care,LD - East Cambs - Special Needs,Residential Care
Cambridgeshire County Council,03-Oct-19,51301086756,"-2,977.44",DECOY FARM,CARE ESTABLISHMENT,LD - East Locality - Cost of Care,LD - East Cambs - Special Needs,Residential Care
Cambridgeshire County Council,03-Oct-19,51301086774,"-2,977.44",DECOY FARM,CARE ESTABLISHMENT,LD - East Locality - Cost of Care,LD - East Cambs - Special Needs,Residential Care
Cambridgeshire County Council,03-Oct-19,51301098841,"-2,977.44",DECOY FARM,CARE ESTABLISHMENT,LD - East Locality - Cost of Care,LD - East Cambs - Special Needs,Residential Care
Cambridgeshire County Council,03-Oct-19,51301098817,"-2,977.44",DECOY FARM,CARE ESTABLISHMENT,LD - East Locality - Cost of Care,LD - East Cambs - Special Needs,Residential Care
Cambridgeshire County Council,03-Oct-19,51301124306,"-2,977.44",DECOY FARM,CARE ESTABLISHMENT,LD - East Locality - Cost of Care,LD - East Cambs - Special Needs,Residential Care
Cambridgeshire County Council,03-Oct-19,51301135265,"-2,977.44",DECOY FARM,CARE ESTABLISHMENT,LD - East Locality - Cost of Care,LD - East Cambs - Special Needs,Residential Care
Cambridgeshire County Council,03-Oct-19,51301135302,"-2,977.44",DECOY FARM,CARE ESTABLISHMENT,LD - East Locality - Cost of Care,LD - East Cambs - Special Needs,Residential Care
Cambridgeshire County Council,03-Oct-19,51301135244,"-2,977.44",DECOY FARM,CARE ESTABLISHMENT,LD - East Locality - Cost of Care,LD - East Cambs - Special Needs,Residential Care
Cambridgeshire County Council,03-Oct-19,51301135320,"-2,977.44",DECOY FARM,CARE ESTABLISHMENT,LD - East Locality - Cost of Care,LD - East Cambs - Special Needs,Residential Care
Cambridgeshire County Council,03-Oct-19,51301146575,"-2,977.44",DECOY FARM,CARE ESTABLISHMENT,LD - East Locality - Cost of Care,LD - East Cambs - Special Needs,Residential Care
Cambridgeshire County Council,03-Oct-19,51301067014,"-2,977.44",DECOY FARM,CARE ESTABLISHMENT,LD - East Locality - Cost of Care,LD - East Cambs - Special Needs,Residential Care
Cambridgeshire County Council,03-Oct-19,51301066977,"-2,977.44",DECOY FARM,CARE ESTABLISHMENT,LD - East Locality - Cost of Care,LD - East Cambs - Special Needs,Residential Care
Cambridgeshire County Council,03-Oct-19,51301066917,"-2,977.44",DECOY FARM,CARE ESTABLISHMENT,LD - East Locality - Cost of Care,LD - East Cambs - Special Needs,Residential Care
Cambridgeshire County Council,03-Oct-19,51300897880,"-2,977.44",DECOY FARM,CARE ESTABLISHMENT,LD - East Locality - Cost of Care,LD - East Cambs - Special Needs,Residential Care
Cambridgeshire County Council,03-Oct-19,51301078226,"-2,977.44",DECOY FARM,CARE ESTABLISHMENT,LD - East Locality - Cost of Care,LD - East Cambs - Special Needs,Residential Care
Cambridgeshire County Council,03-Oct-19,51301098851,"-2,977.44",DECOY FARM,CARE ESTABLISHMENT,LD - East Locality - Cost of Care,LD - East Cambs - Special Needs,Residential Care
Cambridgeshire County Council,03-Oct-19,51301098767,"-2,977.44",DECOY FARM,CARE ESTABLISHMENT,LD - East Locality - Cost of Care,LD - East Cambs - Special Needs,Residential Care
Cambridgeshire County Council,03-Oct-19,51300864487,"-2,977.44",DECOY FARM,CARE ESTABLISHMENT,LD - East Locality - Cost of Care,LD - East Cambs - Special Needs,Residential Care
Cambridgeshire County Council,03-Oct-19,51300864539,"-2,977.44",DECOY FARM,CARE ESTABLISHMENT,LD - East Locality - Cost of Care,LD - East Cambs - Special Needs,Residential Care
Cambridgeshire County Council,03-Oct-19,51300864545,"-2,977.44",DECOY FARM,CARE ESTABLISHMENT,LD - East Locality - Cost of Care,LD - East Cambs - Special Needs,Residential Care
Cambridgeshire County Council,03-Oct-19,51300871860,"-2,977.44",DECOY FARM,CARE ESTABLISHMENT,LD - East Locality - Cost of Care,LD - East Cambs - Special Needs,Residential Care
Cambridgeshire County Council,03-Oct-19,51300871814,"-2,977.44",DECOY FARM,CARE ESTABLISHMENT,LD - East Locality - Cost of Care,LD - East Cambs - Special Needs,Residential Care
Cambridgeshire County Council,03-Oct-19,51300897900,"-2,977.44",DECOY FARM,CARE ESTABLISHMENT,LD - East Locality - Cost of Care,LD - East Cambs - Special Needs,Residential Care
Cambridgeshire County Council,03-Oct-19,51300897810,"-2,977.44",DECOY FARM,CARE ESTABLISHMENT,LD - East Locality - Cost of Care,LD - East Cambs - Special Needs,Residential Care
Cambridgeshire County Council,03-Oct-19,51300981250,"-2,977.44",DECOY FARM,CARE ESTABLISHMENT,LD - East Locality - Cost of Care,LD - East Cambs - Special Needs,Residential Care
Cambridgeshire County Council,03-Oct-19,51300990705,"-2,977.44",DECOY FARM,CARE ESTABLISHMENT,LD - East Locality - Cost of Care,LD - East Cambs - Special Needs,Residential Care
Cambridgeshire County Council,03-Oct-19,51301014061,"-2,977.44",DECOY FARM,CARE ESTABLISHMENT,LD - East Locality - Cost of Care,LD - East Cambs - Special Needs,Residential Care
Cambridgeshire County Council,03-Oct-19,51301033306,"-2,977.44",DECOY FARM,CARE ESTABLISHMENT,LD - East Locality - Cost of Care,LD - East Cambs - Special Needs,Residential Care
Cambridgeshire County Council,03-Oct-19,51301033212,"-2,977.44",DECOY FARM,CARE ESTABLISHMENT,LD - East Locality - Cost of Care,LD - East Cambs - Special Needs,Residential Care
Cambridgeshire County Council,03-Oct-19,51301014090,"-2,977.44",DECOY FARM,CARE ESTABLISHMENT,LD - East Locality - Cost of Care,LD - East Cambs - Special Needs,Residential Care
Cambridgeshire County Council,03-Oct-19,51301066921,"-2,977.44",DECOY FARM,CARE ESTABLISHMENT,LD - East Locality - Cost of Care,LD - East Cambs - Special Needs,Residential Care
Cambridgeshire County Council,03-Oct-19,51301067015,"-2,977.44",DECOY FARM,CARE ESTABLISHMENT,LD - East Locality - Cost of Care,LD - East Cambs - Special Needs,Residential Care
Cambridgeshire County Council,03-Oct-19,51301043739,"-2,977.44",DECOY FARM,CARE ESTABLISHMENT,LD - East Locality - Cost of Care,LD - East Cambs - Special Needs,Residential Care
Cambridgeshire County Council,03-Oct-19,51301043794,"-2,977.44",DECOY FARM,CARE ESTABLISHMENT,LD - East Locality - Cost of Care,LD - East Cambs - Special Needs,Residential Care
Cambridgeshire County Council,03-Oct-19,51301078186,"-2,977.44",DECOY FARM,CARE ESTABLISHMENT,LD - East Locality - Cost of Care,LD - East Cambs - Special Needs,Residential Care
Cambridgeshire County Council,03-Oct-19,51301086685,"-2,977.44",DECOY FARM,CARE ESTABLISHMENT,LD - East Locality - Cost of Care,LD - East Cambs - Special Needs,Residential Care
Cambridgeshire County Council,03-Oct-19,51301086653,"-2,977.44",DECOY FARM,CARE ESTABLISHMENT,LD - East Locality - Cost of Care,LD - East Cambs - Special Needs,Residential Care
Cambridgeshire County Council,03-Oct-19,51301086715,"-2,977.44",DECOY FARM,CARE ESTABLISHMENT,LD - East Locality - Cost of Care,LD - East Cambs - Special Needs,Residential Care
Cambridgeshire County Council,03-Oct-19,51301078144,"-2,977.44",DECOY FARM,CARE ESTABLISHMENT,LD - East Locality - Cost of Care,LD - East Cambs - Special Needs,Residential Care
Cambridgeshire County Council,03-Oct-19,51301078160,"-2,977.44",DECOY FARM,CARE ESTABLISHMENT,LD - East Locality - Cost of Care,LD - East Cambs - Special Needs,Residential Care
Cambridgeshire County Council,03-Oct-19,51301146654,"-2,977.44",DECOY FARM,CARE ESTABLISHMENT,LD - East Locality - Cost of Care,LD - East Cambs - Special Needs,Residential Care
Cambridgeshire County Council,03-Oct-19,51301196702,"-2,977.44",DECOY FARM,CARE ESTABLISHMENT,LD - East Locality - Cost of Care,LD - East Cambs - Special Needs,Residential Care
Cambridgeshire County Council,03-Oct-19,51301196734,"-2,977.44",DECOY FARM,CARE ESTABLISHMENT,LD - East Locality - Cost of Care,LD - East Cambs - Special Needs,Residential Care
Cambridgeshire County Council,03-Oct-19,51301196737,"-2,977.44",DECOY FARM,CARE ESTABLISHMENT,LD - East Locality - Cost of Care,LD - East Cambs - Special Needs,Residential Care
Cambridgeshire County Council,03-Oct-19,51300854310,"-2,977.44",DECOY FARM,CARE ESTABLISHMENT,LD - East Locality - Cost of Care,LD - East Cambs - Special Needs,Residential Care
Cambridgeshire County Council,03-Oct-19,51300897824,"-2,977.44",DECOY FARM,CARE ESTABLISHMENT,LD - East Locality - Cost of Care,LD - East Cambs - Special Needs,Residential Care
Cambridgeshire County Council,03-Oct-19,51300897862,"-2,977.44",DECOY FARM,CARE ESTABLISHMENT,LD - East Locality - Cost of Care,LD - East Cambs - Special Needs,Residential Care
Cambridgeshire County Council,03-Oct-19,51300907749,"-2,977.44",DECOY FARM,CARE ESTABLISHMENT,LD - East Locality - Cost of Care,LD - East Cambs - Special Needs,Residential Care
Cambridgeshire County Council,03-Oct-19,51300917260,"-2,977.44",DECOY FARM,CARE ESTABLISHMENT,LD - East Locality - Cost of Care,LD - East Cambs - Special Needs,Residential Care
Cambridgeshire County Council,03-Oct-19,51301098845,"-2,977.44",DECOY FARM,CARE ESTABLISHMENT,LD - East Locality - Cost of Care,LD - East Cambs - Special Needs,Residential Care
Cambridgeshire County Council,03-Oct-19,51301098852,"-2,977.44",DECOY FARM,CARE ESTABLISHMENT,LD - East Locality - Cost of Care,LD - East Cambs - Special Needs,Residential Care
Cambridgeshire County Council,03-Oct-19,51301124175,"-2,977.44",DECOY FARM,CARE ESTABLISHMENT,LD - East Locality - Cost of Care,LD - East Cambs - Special Needs,Residential Care
Cambridgeshire County Council,03-Oct-19,51301124193,"-2,977.44",DECOY FARM,CARE ESTABLISHMENT,LD - East Locality - Cost of Care,LD - East Cambs - Special Needs,Residential Care
Cambridgeshire County Council,03-Oct-19,51301146534,"-2,977.44",DECOY FARM,CARE ESTABLISHMENT,LD - East Locality - Cost of Care,LD - East Cambs - Special Needs,Residential Care
Cambridgeshire County Council,03-Oct-19,51301146532,"-2,977.44",DECOY FARM,CARE ESTABLISHMENT,LD - East Locality - Cost of Care,LD - East Cambs - Special Needs,Residential Care
Cambridgeshire County Council,03-Oct-19,51301086681,"-2,977.44",DECOY FARM,CARE ESTABLISHMENT,LD - East Locality - Cost of Care,LD - East Cambs - Special Needs,Residential Care
Cambridgeshire County Council,03-Oct-19,51301066947,"-2,977.44",DECOY FARM,CARE ESTABLISHMENT,LD - East Locality - Cost of Care,LD - East Cambs - Special Needs,Residential Care
Cambridgeshire County Council,03-Oct-19,51301043793,"-2,977.44",DECOY FARM,CARE ESTABLISHMENT,LD - East Locality - Cost of Care,LD - East Cambs - Special Needs,Residential Care
Cambridgeshire County Council,03-Oct-19,51301043779,"-2,977.44",DECOY FARM,CARE ESTABLISHMENT,LD - East Locality - Cost of Care,LD - East Cambs - Special Needs,Residential Care
Cambridgeshire County Council,03-Oct-19,51301023573,"-2,977.44",DECOY FARM,CARE ESTABLISHMENT,LD - East Locality - Cost of Care,LD - East Cambs - Special Needs,Residential Care
Cambridgeshire County Council,03-Oct-19,51301023503,"-2,977.44",DECOY FARM,CARE ESTABLISHMENT,LD - East Locality - Cost of Care,LD - East Cambs - Special Needs,Residential Care
Cambridgeshire County Council,03-Oct-19,51300813332,"-2,977.44",DECOY FARM,CARE ESTABLISHMENT,LD - East Locality - Cost of Care,LD - East Cambs - Special Needs,Residential Care
Cambridgeshire County Council,03-Oct-19,51300973021,"-2,977.44",DECOY FARM,CARE ESTABLISHMENT,LD - East Locality - Cost of Care,LD - East Cambs - Special Needs,Residential Care
Cambridgeshire County Council,03-Oct-19,51300973048,"-2,977.44",DECOY FARM,CARE ESTABLISHMENT,LD - East Locality - Cost of Care,LD - East Cambs - Special Needs,Residential Care
Cambridgeshire County Council,03-Oct-19,51301014095,"-2,977.44",DECOY FARM,CARE ESTABLISHMENT,LD - East Locality - Cost of Care,LD - East Cambs - Special Needs,Residential Care
Cambridgeshire County Council,03-Oct-19,51300990713,"-2,977.44",DECOY FARM,CARE ESTABLISHMENT,LD - East Locality - Cost of Care,LD - East Cambs - Special Needs,Residential Care
Cambridgeshire County Council,03-Oct-19,51301135295,"-2,977.44",DECOY FARM,CARE ESTABLISHMENT,LD - East Locality - Cost of Care,LD - East Cambs - Special Needs,Residential Care
Cambridgeshire County Council,03-Oct-19,51301135237,"-2,977.44",DECOY FARM,CARE ESTABLISHMENT,LD - East Locality - Cost of Care,LD - East Cambs - Special Needs,Residential Care
Cambridgeshire County Council,03-Oct-19,51301179522,"-2,977.44",DECOY FARM,CARE ESTABLISHMENT,LD - East Locality - Cost of Care,LD - East Cambs - Special Needs,Residential Care
Cambridgeshire County Council,03-Oct-19,51300897840,"-2,977.44",DECOY FARM,CARE ESTABLISHMENT,LD - East Locality - Cost of Care,LD - East Cambs - Special Needs,Residential Care
Cambridgeshire County Council,03-Oct-19,51301196664,"-2,977.44",DECOY FARM,CARE ESTABLISHMENT,LD - East Locality - Cost of Care,LD - East Cambs - Special Needs,Residential Care
Cambridgeshire County Council,03-Oct-19,51301086724,"-2,977.44",DECOY FARM,CARE ESTABLISHMENT,LD - East Locality - Cost of Care,LD - East Cambs - Special Needs,Residential Care
Cambridgeshire County Council,03-Oct-19,51301135203,"-2,977.44",DECOY FARM,CARE ESTABLISHMENT,LD - East Locality - Cost of Care,LD - East Cambs - Special Needs,Residential Care
Cambridgeshire County Council,03-Oct-19,51300871858,"-2,977.44",DECOY FARM,CARE ESTABLISHMENT,LD - East Locality - Cost of Care,LD - East Cambs - Special Needs,Residential Care
Cambridgeshire County Council,03-Oct-19,51300854327,"-2,977.44",DECOY FARM,CARE ESTABLISHMENT,LD - East Locality - Cost of Care,LD - East Cambs - Special Needs,Residential Care
Cambridgeshire County Council,03-Oct-19,51300864570,"-2,977.44",DECOY FARM,CARE ESTABLISHMENT,LD - East Locality - Cost of Care,LD - East Cambs - Special Needs,Residential Care
Cambridgeshire County Council,03-Oct-19,51300864489,"-2,977.44",DECOY FARM,CARE ESTABLISHMENT,LD - East Locality - Cost of Care,LD - East Cambs - Special Needs,Residential Care
Cambridgeshire County Council,03-Oct-19,51300871879,"-2,977.44",DECOY FARM,CARE ESTABLISHMENT,LD - East Locality - Cost of Care,LD - East Cambs - Special Needs,Residential Care
Cambridgeshire County Council,03-Oct-19,51300871843,"-2,977.44",DECOY FARM,CARE ESTABLISHMENT,LD - East Locality - Cost of Care,LD - East Cambs - Special Needs,Residential Care
Cambridgeshire County Council,03-Oct-19,51300897894,"-2,977.44",DECOY FARM,CARE ESTABLISHMENT,LD - East Locality - Cost of Care,LD - East Cambs - Special Needs,Residential Care
Cambridgeshire County Council,03-Oct-19,51300917228,"-2,977.44",DECOY FARM,CARE ESTABLISHMENT,LD - East Locality - Cost of Care,LD - East Cambs - Special Needs,Residential Care
Cambridgeshire County Council,03-Oct-19,51300917254,"-2,977.44",DECOY FARM,CARE ESTABLISHMENT,LD - East Locality - Cost of Care,LD - East Cambs - Special Needs,Residential Care
Cambridgeshire County Council,03-Oct-19,51300981202,"-2,977.44",DECOY FARM,CARE ESTABLISHMENT,LD - East Locality - Cost of Care,LD - East Cambs - Special Needs,Residential Care
Cambridgeshire County Council,03-Oct-19,51300973059,"-2,977.44",DECOY FARM,CARE ESTABLISHMENT,LD - East Locality - Cost of Care,LD - East Cambs - Special Needs,Residential Care
Cambridgeshire County Council,03-Oct-19,51301086675,"-2,977.44",DECOY FARM,CARE ESTABLISHMENT,LD - East Locality - Cost of Care,LD - East Cambs - Special Needs,Residential Care
Cambridgeshire County Council,03-Oct-19,51301146530,"-2,977.44",DECOY FARM,CARE ESTABLISHMENT,LD - East Locality - Cost of Care,LD - East Cambs - Special Needs,Residential Care
Cambridgeshire County Council,03-Oct-19,51301146578,"-2,977.44",DECOY FARM,CARE ESTABLISHMENT,LD - East Locality - Cost of Care,LD - East Cambs - Special Needs,Residential Care
Cambridgeshire County Council,03-Oct-19,51301066974,"-2,977.44",DECOY FARM,CARE ESTABLISHMENT,LD - East Locality - Cost of Care,LD - East Cambs - Special Needs,Residential Care
Cambridgeshire County Council,03-Oct-19,51301196789,"-2,977.44",DECOY FARM,CARE ESTABLISHMENT,LD - East Locality - Cost of Care,LD - East Cambs - Special Needs,Residential Care
Cambridgeshire County Council,03-Oct-19,51301189726,"-2,977.44",DECOY FARM,CARE ESTABLISHMENT,LD - East Locality - Cost of Care,LD - East Cambs - Special Needs,Residential Care
Cambridgeshire County Council,03-Oct-19,51300864497,"-2,977.44",DECOY FARM,CARE ESTABLISHMENT,LD - East Locality - Cost of Care,LD - East Cambs - Special Needs,Residential Care
Cambridgeshire County Council,03-Oct-19,51301135313,"-2,977.44",DECOY FARM,CARE ESTABLISHMENT,LD - East Locality - Cost of Care,LD - East Cambs - Special Needs,Residential Care
Cambridgeshire County Council,03-Oct-19,51301033336,"-2,977.44",DECOY FARM,CARE ESTABLISHMENT,LD - East Locality - Cost of Care,LD - East Cambs - Special Needs,Residential Care
Cambridgeshire County Council,03-Oct-19,51301014036,"-2,977.44",DECOY FARM,CARE ESTABLISHMENT,LD - East Locality - Cost of Care,LD - East Cambs - Special Needs,Residential Care
Cambridgeshire County Council,03-Oct-19,51301124269,"-2,977.44",DECOY FARM,CARE ESTABLISHMENT,LD - East Locality - Cost of Care,LD - East Cambs - Special Needs,Residential Care
Cambridgeshire County Council,03-Oct-19,51301033260,"-2,977.44",DECOY FARM,CARE ESTABLISHMENT,LD - East Locality - Cost of Care,LD - East Cambs - Special Needs,Residential Care
Cambridgeshire County Council,03-Oct-19,51300972965,"-2,977.44",DECOY FARM,CARE ESTABLISHMENT,LD - East Locality - Cost of Care,LD - East Cambs - Special Needs,Residential Care
Cambridgeshire County Council,03-Oct-19,51300813209,"-2,977.44",DECOY FARM,CARE ESTABLISHMENT,LD - East Locality - Cost of Care,LD - East Cambs - Special Needs,Residential Care
Cambridgeshire County Council,03-Oct-19,51300813265,"-2,977.44",DECOY FARM,CARE ESTABLISHMENT,LD - East Locality - Cost of Care,LD - East Cambs - Special Needs,Residential Care
Cambridgeshire County Council,03-Oct-19,51300845196,"-2,977.44",DECOY FARM,CARE ESTABLISHMENT,LD - East Locality - Cost of Care,LD - East Cambs - Special Needs,Residential Care
Cambridgeshire County Council,03-Oct-19,51300897794,"-2,977.44",DECOY FARM,CARE ESTABLISHMENT,LD - East Locality - Cost of Care,LD - East Cambs - Special Needs,Residential Care
Cambridgeshire County Council,03-Oct-19,51300871749,"-2,977.44",DECOY FARM,CARE ESTABLISHMENT,LD - East Locality - Cost of Care,LD - East Cambs - Special Needs,Residential Care
Cambridgeshire County Council,03-Oct-19,51300917201,"-2,977.44",DECOY FARM,CARE ESTABLISHMENT,LD - East Locality - Cost of Care,LD - East Cambs - Special Needs,Residential Care
Cambridgeshire County Council,03-Oct-19,51301196764,"-2,977.44",DECOY FARM,CARE ESTABLISHMENT,LD - East Locality - Cost of Care,LD - East Cambs - Special Needs,Residential Care
Cambridgeshire County Council,03-Oct-19,51301179541,"-2,977.44",DECOY FARM,CARE ESTABLISHMENT,LD - East Locality - Cost of Care,LD - East Cambs - Special Needs,Residential Care
Cambridgeshire County Council,03-Oct-19,51301146626,"-2,977.44",DECOY FARM,CARE ESTABLISHMENT,LD - East Locality - Cost of Care,LD - East Cambs - Special Needs,Residential Care
Cambridgeshire County Council,03-Oct-19,51301086771,"-2,977.44",DECOY FARM,CARE ESTABLISHMENT,LD - East Locality - Cost of Care,LD - East Cambs - Special Needs,Residential Care
Cambridgeshire County Council,03-Oct-19,51300907781,"-2,977.44",DECOY FARM,CARE ESTABLISHMENT,LD - East Locality - Cost of Care,LD - East Cambs - Special Needs,Residential Care
Cambridgeshire County Council,03-Oct-19,51300907818,"-2,977.44",DECOY FARM,CARE ESTABLISHMENT,LD - East Locality - Cost of Care,LD - East Cambs - Special Needs,Residential Care
Cambridgeshire County Council,03-Oct-19,51300917240,"-2,977.44",DECOY FARM,CARE ESTABLISHMENT,LD - East Locality - Cost of Care,LD - East Cambs - Special Needs,Residential Care
Cambridgeshire County Council,03-Oct-19,51300871844,"-2,977.44",DECOY FARM,CARE ESTABLISHMENT,LD - East Locality - Cost of Care,LD - East Cambs - Special Needs,Residential Care
Cambridgeshire County Council,03-Oct-19,51301078193,"-2,977.44",DECOY FARM,CARE ESTABLISHMENT,LD - East Locality - Cost of Care,LD - East Cambs - Special Needs,Residential Care
Cambridgeshire County Council,03-Oct-19,51301179538,"-2,977.44",DECOY FARM,CARE ESTABLISHMENT,LD - East Locality - Cost of Care,LD - East Cambs - Special Needs,Residential Care
Cambridgeshire County Council,03-Oct-19,51301179581,"-2,977.44",DECOY FARM,CARE ESTABLISHMENT,LD - East Locality - Cost of Care,LD - East Cambs - Special Needs,Residential Care
Cambridgeshire County Council,03-Oct-19,51300871807,"-2,977.44",DECOY FARM,CARE ESTABLISHMENT,LD - East Locality - Cost of Care,LD - East Cambs - Special Needs,Residential Care
Cambridgeshire County Council,03-Oct-19,51300871896,"-2,977.44",DECOY FARM,CARE ESTABLISHMENT,LD - East Locality - Cost of Care,LD - East Cambs - Special Needs,Residential Care
Cambridgeshire County Council,03-Oct-19,51300854249,"-2,977.44",DECOY FARM,CARE ESTABLISHMENT,LD - East Locality - Cost of Care,LD - East Cambs - Special Needs,Residential Care
Cambridgeshire County Council,03-Oct-19,51301043743,"-2,977.44",DECOY FARM,CARE ESTABLISHMENT,LD - East Locality - Cost of Care,LD - East Cambs - Special Needs,Residential Care
Cambridgeshire County Council,03-Oct-19,51301098873,"-2,977.44",DECOY FARM,CARE ESTABLISHMENT,LD - East Locality - Cost of Care,LD - East Cambs - Special Needs,Residential Care
Cambridgeshire County Council,03-Oct-19,51301043710,"-2,977.44",DECOY FARM,CARE ESTABLISHMENT,LD - East Locality - Cost of Care,LD - East Cambs - Special Needs,Residential Care
Cambridgeshire County Council,03-Oct-19,51301043780,"-2,977.44",DECOY FARM,CARE ESTABLISHMENT,LD - East Locality - Cost of Care,LD - East Cambs - Special Needs,Residential Care
Cambridgeshire County Council,03-Oct-19,51301067050,"-2,977.44",DECOY FARM,CARE ESTABLISHMENT,LD - East Locality - Cost of Care,LD - East Cambs - Special Needs,Residential Care
Cambridgeshire County Council,03-Oct-19,51300871767,"-2,977.44",DECOY FARM,CARE ESTABLISHMENT,LD - East Locality - Cost of Care,LD - East Cambs - Special Needs,Residential Care
Cambridgeshire County Council,03-Oct-19,51300845150,"-2,977.44",DECOY FARM,CARE ESTABLISHMENT,LD - East Locality - Cost of Care,LD - East Cambs - Special Needs,Residential Care
Cambridgeshire County Council,03-Oct-19,51300990655,"-2,977.44",DECOY FARM,CARE ESTABLISHMENT,LD - East Locality - Cost of Care,LD - East Cambs - Special Needs,Residential Care
Cambridgeshire County Council,03-Oct-19,51301098866,"-2,977.44",DECOY FARM,CARE ESTABLISHMENT,LD - East Locality - Cost of Care,LD - East Cambs - Special Needs,Residential Care
Cambridgeshire County Council,03-Oct-19,51300871753,"-2,977.44",DECOY FARM,CARE ESTABLISHMENT,LD - East Locality - Cost of Care,LD - East Cambs - Special Needs,Residential Care
Cambridgeshire County Council,03-Oct-19,51300907775,"-2,977.44",DECOY FARM,CARE ESTABLISHMENT,LD - East Locality - Cost of Care,LD - East Cambs - Special Needs,Residential Care
Cambridgeshire County Council,03-Oct-19,51300990634,"-2,977.44",DECOY FARM,CARE ESTABLISHMENT,LD - East Locality - Cost of Care,LD - East Cambs - Special Needs,Residential Care
Cambridgeshire County Council,03-Oct-19,51301014002,"-2,977.44",DECOY FARM,CARE ESTABLISHMENT,LD - East Locality - Cost of Care,LD - East Cambs - Special Needs,Residential Care
Cambridgeshire County Council,03-Oct-19,51300981172,"-2,977.44",DECOY FARM,CARE ESTABLISHMENT,LD - East Locality - Cost of Care,LD - East Cambs - Special Needs,Residential Care
Cambridgeshire County Council,03-Oct-19,51301124212,"-2,977.44",DECOY FARM,CARE ESTABLISHMENT,LD - East Locality - Cost of Care,LD - East Cambs - Special Needs,Residential Care
Cambridgeshire County Council,03-Oct-19,51300917243,"-2,977.44",DECOY FARM,CARE ESTABLISHMENT,LD - East Locality - Cost of Care,LD - East Cambs - Special Needs,Residential Care
Cambridgeshire County Council,03-Oct-19,51300907851,"-2,977.44",DECOY FARM,CARE ESTABLISHMENT,LD - East Locality - Cost of Care,LD - East Cambs - Special Needs,Residential Care
Cambridgeshire County Council,03-Oct-19,51300897886,"-2,977.44",DECOY FARM,CARE ESTABLISHMENT,LD - East Locality - Cost of Care,LD - East Cambs - Special Needs,Residential Care
Cambridgeshire County Council,03-Oct-19,51301146563,"-2,977.44",DECOY FARM,CARE ESTABLISHMENT,LD - East Locality - Cost of Care,LD - East Cambs - Special Needs,Residential Care
Cambridgeshire County Council,03-Oct-19,51300990694,"-2,977.44",DECOY FARM,CARE ESTABLISHMENT,LD - East Locality - Cost of Care,LD - East Cambs - Special Needs,Residential Care
Cambridgeshire County Council,03-Oct-19,51301189690,"-2,977.44",DECOY FARM,CARE ESTABLISHMENT,LD - East Locality - Cost of Care,LD - East Cambs - Special Needs,Residential Care
Cambridgeshire County Council,03-Oct-19,51301135307,"-2,977.44",DECOY FARM,CARE ESTABLISHMENT,LD - East Locality - Cost of Care,LD - East Cambs - Special Needs,Residential Care
Cambridgeshire County Council,03-Oct-19,51300897869,"-2,977.44",DECOY FARM,CARE ESTABLISHMENT,LD - East Locality - Cost of Care,LD - East Cambs - Special Needs,Residential Care
Cambridgeshire County Council,03-Oct-19,51301086678,"-2,977.44",DECOY FARM,CARE ESTABLISHMENT,LD - East Locality - Cost of Care,LD - East Cambs - Special Needs,Residential Care
Cambridgeshire County Council,03-Oct-19,51301014103,"-2,977.44",DECOY FARM,CARE ESTABLISHMENT,LD - East Locality - Cost of Care,LD - East Cambs - Special Needs,Residential Care
Cambridgeshire County Council,03-Oct-19,51301086682,"-2,977.44",DECOY FARM,CARE ESTABLISHMENT,LD - East Locality - Cost of Care,LD - East Cambs - Special Needs,Residential Care
Cambridgeshire County Council,03-Oct-19,51301098751,"-2,977.44",DECOY FARM,CARE ESTABLISHMENT,LD - East Locality - Cost of Care,LD - East Cambs - Special Needs,Residential Care
Cambridgeshire County Council,03-Oct-19,51301196743,"-2,977.44",DECOY FARM,CARE ESTABLISHMENT,LD - East Locality - Cost of Care,LD - East Cambs - Special Needs,Residential Care
Cambridgeshire County Council,03-Oct-19,51301189754,"-2,977.44",DECOY FARM,CARE ESTABLISHMENT,LD - East Locality - Cost of Care,LD - East Cambs - Special Needs,Residential Care
Cambridgeshire County Council,03-Oct-19,51300845193,"-2,977.44",DECOY FARM,CARE ESTABLISHMENT,LD - East Locality - Cost of Care,LD - East Cambs - Special Needs,Residential Care
Cambridgeshire County Council,03-Oct-19,51301135208,"-2,977.44",DECOY FARM,CARE ESTABLISHMENT,LD - East Locality - Cost of Care,LD - East Cambs - Special Needs,Residential Care
Cambridgeshire County Council,03-Oct-19,51301146591,"-2,977.44",DECOY FARM,CARE ESTABLISHMENT,LD - East Locality - Cost of Care,LD - East Cambs - Special Needs,Residential Care
Cambridgeshire County Council,03-Oct-19,51301146533,"-2,977.44",DECOY FARM,CARE ESTABLISHMENT,LD - East Locality - Cost of Care,LD - East Cambs - Special Needs,Residential Care
Cambridgeshire County Council,03-Oct-19,51301043748,"-2,977.44",DECOY FARM,CARE ESTABLISHMENT,LD - East Locality - Cost of Care,LD - East Cambs - Special Needs,Residential Care
Cambridgeshire County Council,03-Oct-19,51301043773,"-2,977.44",DECOY FARM,CARE ESTABLISHMENT,LD - East Locality - Cost of Care,LD - East Cambs - Special Needs,Residential Care
Cambridgeshire County Council,03-Oct-19,51301033330,"-2,977.44",DECOY FARM,CARE ESTABLISHMENT,LD - East Locality - Cost of Care,LD - East Cambs - Special Needs,Residential Care
Cambridgeshire County Council,03-Oct-19,51300854255,"-2,977.44",DECOY FARM,CARE ESTABLISHMENT,LD - East Locality - Cost of Care,LD - East Cambs - Special Needs,Residential Care
Cambridgeshire County Council,03-Oct-19,51300864465,"-2,977.44",DECOY FARM,CARE ESTABLISHMENT,LD - East Locality - Cost of Care,LD - East Cambs - Special Needs,Residential Care
Cambridgeshire County Council,03-Oct-19,51300871880,"-2,977.44",DECOY FARM,CARE ESTABLISHMENT,LD - East Locality - Cost of Care,LD - East Cambs - Special Needs,Residential Care
Cambridgeshire County Council,03-Oct-19,51300871828,"-2,977.44",DECOY FARM,CARE ESTABLISHMENT,LD - East Locality - Cost of Care,LD - East Cambs - Special Needs,Residential Care
Cambridgeshire County Council,03-Oct-19,51300897890,"-2,977.44",DECOY FARM,CARE ESTABLISHMENT,LD - East Locality - Cost of Care,LD - East Cambs - Special Needs,Residential Care
Cambridgeshire County Council,03-Oct-19,51300897859,"-2,977.44",DECOY FARM,CARE ESTABLISHMENT,LD - East Locality - Cost of Care,LD - East Cambs - Special Needs,Residential Care
Cambridgeshire County Council,03-Oct-19,51300907856,"-2,977.44",DECOY FARM,CARE ESTABLISHMENT,LD - East Locality - Cost of Care,LD - East Cambs - Special Needs,Residential Care
Cambridgeshire County Council,03-Oct-19,51300907877,"-2,977.44",DECOY FARM,CARE ESTABLISHMENT,LD - East Locality - Cost of Care,LD - East Cambs - Special Needs,Residential Care
Cambridgeshire County Council,03-Oct-19,51300938619,"-2,977.44",DECOY FARM,CARE ESTABLISHMENT,LD - East Locality - Cost of Care,LD - East Cambs - Special Needs,Residential Care
Cambridgeshire County Council,03-Oct-19,51300990675,"-2,977.44",DECOY FARM,CARE ESTABLISHMENT,LD - East Locality - Cost of Care,LD - East Cambs - Special Needs,Residential Care
Cambridgeshire County Council,03-Oct-19,51300990650,"-2,977.44",DECOY FARM,CARE ESTABLISHMENT,LD - East Locality - Cost of Care,LD - East Cambs - Special Needs,Residential Care
Cambridgeshire County Council,03-Oct-19,51300990660,"-2,977.44",DECOY FARM,CARE ESTABLISHMENT,LD - East Locality - Cost of Care,LD - East Cambs - Special Needs,Residential Care
Cambridgeshire County Council,03-Oct-19,51300990633,"-2,977.44",DECOY FARM,CARE ESTABLISHMENT,LD - East Locality - Cost of Care,LD - East Cambs - Special Needs,Residential Care
Cambridgeshire County Council,03-Oct-19,51301078197,"-2,977.44",DECOY FARM,CARE ESTABLISHMENT,LD - East Locality - Cost of Care,LD - East Cambs - Special Needs,Residential Care
Cambridgeshire County Council,03-Oct-19,51301078134,"-2,977.44",DECOY FARM,CARE ESTABLISHMENT,LD - East Locality - Cost of Care,LD - East Cambs - Special Needs,Residential Care
Cambridgeshire County Council,03-Oct-19,51301179447,"-2,977.44",DECOY FARM,CARE ESTABLISHMENT,LD - East Locality - Cost of Care,LD - East Cambs - Special Needs,Residential Care
Cambridgeshire County Council,03-Oct-19,51301179618,"-2,977.44",DECOY FARM,CARE ESTABLISHMENT,LD - East Locality - Cost of Care,LD - East Cambs - Special Needs,Residential Care
Cambridgeshire County Council,03-Oct-19,51300917256,"-2,977.44",DECOY FARM,CARE ESTABLISHMENT,LD - East Locality - Cost of Care,LD - East Cambs - Special Needs,Residential Care
Cambridgeshire County Council,03-Oct-19,51300917135,"-2,977.44",DECOY FARM,CARE ESTABLISHMENT,LD - East Locality - Cost of Care,LD - East Cambs - Special Needs,Residential Care
Cambridgeshire County Council,03-Oct-19,51301014097,"-2,977.44",DECOY FARM,CARE ESTABLISHMENT,LD - East Locality - Cost of Care,LD - East Cambs - Special Needs,Residential Care
Cambridgeshire County Council,03-Oct-19,51300956499,"-2,977.44",DECOY FARM,CARE ESTABLISHMENT,LD - East Locality - Cost of Care,LD - East Cambs - Special Needs,Residential Care
Cambridgeshire County Council,03-Oct-19,51300845183,"-2,977.44",DECOY FARM,CARE ESTABLISHMENT,LD - East Locality - Cost of Care,LD - East Cambs - Special Needs,Residential Care
Cambridgeshire County Council,03-Oct-19,51300845192,"-2,977.44",DECOY FARM,CARE ESTABLISHMENT,LD - East Locality - Cost of Care,LD - East Cambs - Special Needs,Residential Care
Cambridgeshire County Council,03-Oct-19,51300973077,"-2,977.44",DECOY FARM,CARE ESTABLISHMENT,LD - East Locality - Cost of Care,LD - East Cambs - Special Needs,Residential Care
Cambridgeshire County Council,03-Oct-19,51300917154,"-2,977.44",DECOY FARM,CARE ESTABLISHMENT,LD - East Locality - Cost of Care,LD - East Cambs - Special Needs,Residential Care
Cambridgeshire County Council,03-Oct-19,51300854240,"-2,977.44",DECOY FARM,CARE ESTABLISHMENT,LD - East Locality - Cost of Care,LD - East Cambs - Special Needs,Residential Care
Cambridgeshire County Council,03-Oct-19,51300813346,"-2,977.44",DECOY FARM,CARE ESTABLISHMENT,LD - East Locality - Cost of Care,LD - East Cambs - Special Needs,Residential Care
Cambridgeshire County Council,03-Oct-19,51300973010,"-2,977.44",DECOY FARM,CARE ESTABLISHMENT,LD - East Locality - Cost of Care,LD - East Cambs - Special Needs,Residential Care
Cambridgeshire County Council,03-Oct-19,51300990674,"-2,977.44",DECOY FARM,CARE ESTABLISHMENT,LD - East Locality - Cost of Care,LD - East Cambs - Special Needs,Residential Care
Cambridgeshire County Council,03-Oct-19,51301014083,"-2,977.44",DECOY FARM,CARE ESTABLISHMENT,LD - East Locality - Cost of Care,LD - East Cambs - Special Needs,Residential Care
Cambridgeshire County Council,03-Oct-19,51301033241,"-2,977.44",DECOY FARM,CARE ESTABLISHMENT,LD - East Locality - Cost of Care,LD - East Cambs - Special Needs,Residential Care
Cambridgeshire County Council,03-Oct-19,51301066923,"-2,977.44",DECOY FARM,CARE ESTABLISHMENT,LD - East Locality - Cost of Care,LD - East Cambs - Special Needs,Residential Care
Cambridgeshire County Council,03-Oct-19,51300907828,"-2,977.44",DECOY FARM,CARE ESTABLISHMENT,LD - East Locality - Cost of Care,LD - East Cambs - Special Needs,Residential Care
Cambridgeshire County Council,03-Oct-19,51300917158,"-2,977.44",DECOY FARM,CARE ESTABLISHMENT,LD - East Locality - Cost of Care,LD - East Cambs - Special Needs,Residential Care
Cambridgeshire County Council,03-Oct-19,51300854294,"-2,977.44",DECOY FARM,CARE ESTABLISHMENT,LD - East Locality - Cost of Care,LD - East Cambs - Special Needs,Residential Care
Cambridgeshire County Council,03-Oct-19,51301135216,"-2,977.44",DECOY FARM,CARE ESTABLISHMENT,LD - East Locality - Cost of Care,LD - East Cambs - Special Needs,Residential Care
Cambridgeshire County Council,03-Oct-19,51301086664,"-2,977.44",DECOY FARM,CARE ESTABLISHMENT,LD - East Locality - Cost of Care,LD - East Cambs - Special Needs,Residential Care
Cambridgeshire County Council,03-Oct-19,51300871853,"-2,977.44",DECOY FARM,CARE ESTABLISHMENT,LD - East Locality - Cost of Care,LD - East Cambs - Special Needs,Residential Care
Cambridgeshire County Council,03-Oct-19,51300973062,"-2,977.44",DECOY FARM,CARE ESTABLISHMENT,LD - East Locality - Cost of Care,LD - East Cambs - Special Needs,Residential Care
Cambridgeshire County Council,03-Oct-19,51300871798,"-2,977.44",DECOY FARM,CARE ESTABLISHMENT,LD - East Locality - Cost of Care,LD - East Cambs - Special Needs,Residential Care
Cambridgeshire County Council,03-Oct-19,51300973097,"-2,977.44",DECOY FARM,CARE ESTABLISHMENT,LD - East Locality - Cost of Care,LD - East Cambs - Special Needs,Residential Care
Cambridgeshire County Council,03-Oct-19,51301135232,"-2,977.44",DECOY FARM,CARE ESTABLISHMENT,LD - East Locality - Cost of Care,LD - East Cambs - Special Needs,Residential Care
Cambridgeshire County Council,03-Oct-19,51301098881,"-2,977.44",DECOY FARM,CARE ESTABLISHMENT,LD - East Locality - Cost of Care,LD - East Cambs - Special Needs,Residential Care
Cambridgeshire County Council,03-Oct-19,51300854309,"-2,977.44",DECOY FARM,CARE ESTABLISHMENT,LD - East Locality - Cost of Care,LD - East Cambs - Special Needs,Residential Care
Cambridgeshire County Council,03-Oct-19,51300973029,"-2,977.44",DECOY FARM,CARE ESTABLISHMENT,LD - East Locality - Cost of Care,LD - East Cambs - Special Needs,Residential Care
Cambridgeshire County Council,03-Oct-19,51301033232,"-2,977.44",DECOY FARM,CARE ESTABLISHMENT,LD - East Locality - Cost of Care,LD - East Cambs - Special Needs,Residential Care
Cambridgeshire County Council,03-Oct-19,51300813298,"-2,977.44",DECOY FARM,CARE ESTABLISHMENT,LD - East Locality - Cost of Care,LD - East Cambs - Special Needs,Residential Care
Cambridgeshire County Council,03-Oct-19,51300981173,"-2,977.44",DECOY FARM,CARE ESTABLISHMENT,LD - East Locality - Cost of Care,LD - East Cambs - Special Needs,Residential Care
Cambridgeshire County Council,03-Oct-19,51300907812,"-2,977.44",DECOY FARM,CARE ESTABLISHMENT,LD - East Locality - Cost of Care,LD - East Cambs - Special Needs,Residential Care
Cambridgeshire County Council,03-Oct-19,51301124173,"-2,977.44",DECOY FARM,CARE ESTABLISHMENT,LD - East Locality - Cost of Care,LD - East Cambs - Special Needs,Residential Care
Cambridgeshire County Council,03-Oct-19,51301124208,"-2,977.44",DECOY FARM,CARE ESTABLISHMENT,LD - East Locality - Cost of Care,LD - East Cambs - Special Needs,Residential Care
Cambridgeshire County Council,03-Oct-19,51301189793,"-2,977.44",DECOY FARM,CARE ESTABLISHMENT,LD - East Locality - Cost of Care,LD - East Cambs - Special Needs,Residential Care
Cambridgeshire County Council,03-Oct-19,51301023484,"-2,977.44",DECOY FARM,CARE ESTABLISHMENT,LD - East Locality - Cost of Care,LD - East Cambs - Special Needs,Residential Care
Cambridgeshire County Council,03-Oct-19,51300990590,"-2,977.44",DECOY FARM,CARE ESTABLISHMENT,LD - East Locality - Cost of Care,LD - East Cambs - Special Needs,Residential Care
Cambridgeshire County Council,03-Oct-19,51301033230,"-2,977.44",DECOY FARM,CARE ESTABLISHMENT,LD - East Locality - Cost of Care,LD - East Cambs - Special Needs,Residential Care
Cambridgeshire County Council,03-Oct-19,51300854252,"-2,977.44",DECOY FARM,CARE ESTABLISHMENT,LD - East Locality - Cost of Care,LD - East Cambs - Special Needs,Residential Care
Cambridgeshire County Council,03-Oct-19,51300813351,"-2,977.44",DECOY FARM,CARE ESTABLISHMENT,LD - East Locality - Cost of Care,LD - East Cambs - Special Needs,Residential Care
Cambridgeshire County Council,03-Oct-19,51300845188,"-2,977.44",DECOY FARM,CARE ESTABLISHMENT,LD - East Locality - Cost of Care,LD - East Cambs - Special Needs,Residential Care
Cambridgeshire County Council,03-Oct-19,51300845121,"-2,977.44",DECOY FARM,CARE ESTABLISHMENT,LD - East Locality - Cost of Care,LD - East Cambs - Special Needs,Residential Care
Cambridgeshire County Council,03-Oct-19,51300864519,"-2,977.44",DECOY FARM,CARE ESTABLISHMENT,LD - East Locality - Cost of Care,LD - East Cambs - Special Needs,Residential Care
Cambridgeshire County Council,03-Oct-19,51300864486,"-2,977.44",DECOY FARM,CARE ESTABLISHMENT,LD - East Locality - Cost of Care,LD - East Cambs - Special Needs,Residential Care
Cambridgeshire County Council,03-Oct-19,51301066948,"-2,977.44",DECOY FARM,CARE ESTABLISHMENT,LD - East Locality - Cost of Care,LD - East Cambs - Special Needs,Residential Care
Cambridgeshire County Council,03-Oct-19,51301014119,"-2,977.44",DECOY FARM,CARE ESTABLISHMENT,LD - East Locality - Cost of Care,LD - East Cambs - Special Needs,Residential Care
Cambridgeshire County Council,03-Oct-19,51300981246,"-2,977.44",DECOY FARM,CARE ESTABLISHMENT,LD - East Locality - Cost of Care,LD - East Cambs - Special Needs,Residential Care
Cambridgeshire County Council,03-Oct-19,51300864483,"-2,977.44",DECOY FARM,CARE ESTABLISHMENT,LD - East Locality - Cost of Care,LD - East Cambs - Special Needs,Residential Care
Cambridgeshire County Council,03-Oct-19,51300897873,"-2,977.44",DECOY FARM,CARE ESTABLISHMENT,LD - East Locality - Cost of Care,LD - East Cambs - Special Needs,Residential Care
Cambridgeshire County Council,03-Oct-19,51300897821,"-2,977.44",DECOY FARM,CARE ESTABLISHMENT,LD - East Locality - Cost of Care,LD - East Cambs - Special Needs,Residential Care
Cambridgeshire County Council,03-Oct-19,51300897917,"-2,977.44",DECOY FARM,CARE ESTABLISHMENT,LD - East Locality - Cost of Care,LD - East Cambs - Special Needs,Residential Care
Cambridgeshire County Council,03-Oct-19,51300973058,"-2,977.44",DECOY FARM,CARE ESTABLISHMENT,LD - East Locality - Cost of Care,LD - East Cambs - Special Needs,Residential Care
Cambridgeshire County Council,03-Oct-19,51300917178,"-2,977.44",DECOY FARM,CARE ESTABLISHMENT,LD - East Locality - Cost of Care,LD - East Cambs - Special Needs,Residential Care
Cambridgeshire County Council,03-Oct-19,51301179467,"-2,977.44",DECOY FARM,CARE ESTABLISHMENT,LD - East Locality - Cost of Care,LD - East Cambs - Special Needs,Residential Care
Cambridgeshire County Council,03-Oct-19,51300871781,"-2,977.44",DECOY FARM,CARE ESTABLISHMENT,LD - East Locality - Cost of Care,LD - East Cambs - Special Needs,Residential Care
Cambridgeshire County Council,03-Oct-19,51301086694,"-2,977.44",DECOY FARM,CARE ESTABLISHMENT,LD - East Locality - Cost of Care,LD - East Cambs - Special Needs,Residential Care
Cambridgeshire County Council,03-Oct-19,51301098885,"-2,977.44",DECOY FARM,CARE ESTABLISHMENT,LD - East Locality - Cost of Care,LD - East Cambs - Special Needs,Residential Care
Cambridgeshire County Council,03-Oct-19,51301043778,"-2,977.44",DECOY FARM,CARE ESTABLISHMENT,LD - East Locality - Cost of Care,LD - East Cambs - Special Needs,Residential Care
Cambridgeshire County Council,03-Oct-19,51301078122,"-2,977.44",DECOY FARM,CARE ESTABLISHMENT,LD - East Locality - Cost of Care,LD - East Cambs - Special Needs,Residential Care
Cambridgeshire County Council,03-Oct-19,51301078172,"-2,977.44",DECOY FARM,CARE ESTABLISHMENT,LD - East Locality - Cost of Care,LD - East Cambs - Special Needs,Residential Care
Cambridgeshire County Council,03-Oct-19,51301124253,"-2,977.44",DECOY FARM,CARE ESTABLISHMENT,LD - East Locality - Cost of Care,LD - East Cambs - Special Needs,Residential Care
Cambridgeshire County Council,03-Oct-19,51301086730,"-2,977.44",DECOY FARM,CARE ESTABLISHMENT,LD - East Locality - Cost of Care,LD - East Cambs - Special Needs,Residential Care
Cambridgeshire County Council,03-Oct-19,51300981200,"-2,977.44",DECOY FARM,CARE ESTABLISHMENT,LD - East Locality - Cost of Care,LD - East Cambs - Special Needs,Residential Care
Cambridgeshire County Council,03-Oct-19,51300845087,"-2,977.44",DECOY FARM,CARE ESTABLISHMENT,LD - East Locality - Cost of Care,LD - East Cambs - Special Needs,Residential Care
Cambridgeshire County Council,03-Oct-19,51300981208,"-2,977.44",DECOY FARM,CARE ESTABLISHMENT,LD - East Locality - Cost of Care,LD - East Cambs - Special Needs,Residential Care
Cambridgeshire County Council,03-Oct-19,51300956617,"-2,977.44",DECOY FARM,CARE ESTABLISHMENT,LD - East Locality - Cost of Care,LD - East Cambs - Special Needs,Residential Care
Cambridgeshire County Council,03-Oct-19,51300981174,"-2,977.44",DECOY FARM,CARE ESTABLISHMENT,LD - East Locality - Cost of Care,LD - East Cambs - Special Needs,Residential Care
Cambridgeshire County Council,03-Oct-19,51301023556,"-2,977.44",DECOY FARM,CARE ESTABLISHMENT,LD - East Locality - Cost of Care,LD - East Cambs - Special Needs,Residential Care
Cambridgeshire County Council,03-Oct-19,51300990700,"-2,977.44",DECOY FARM,CARE ESTABLISHMENT,LD - East Locality - Cost of Care,LD - East Cambs - Special Needs,Residential Care
Cambridgeshire County Council,03-Oct-19,51301033239,"-2,977.44",DECOY FARM,CARE ESTABLISHMENT,LD - East Locality - Cost of Care,LD - East Cambs - Special Needs,Residential Care
Cambridgeshire County Council,03-Oct-19,51300990728,"-2,977.44",DECOY FARM,CARE ESTABLISHMENT,LD - East Locality - Cost of Care,LD - East Cambs - Special Needs,Residential Care
Cambridgeshire County Council,03-Oct-19,51300907838,"-2,977.44",DECOY FARM,CARE ESTABLISHMENT,LD - East Locality - Cost of Care,LD - East Cambs - Special Needs,Residential Care
Cambridgeshire County Council,03-Oct-19,51301179619,"-2,977.44",DECOY FARM,CARE ESTABLISHMENT,LD - East Locality - Cost of Care,LD - East Cambs - Special Needs,Residential Care
Cambridgeshire County Council,03-Oct-19,51301098782,"-2,977.44",DECOY FARM,CARE ESTABLISHMENT,LD - East Locality - Cost of Care,LD - East Cambs - Special Needs,Residential Care
Cambridgeshire County Council,03-Oct-19,51300854261,"-2,977.44",DECOY FARM,CARE ESTABLISHMENT,LD - East Locality - Cost of Care,LD - East Cambs - Special Needs,Residential Care
Cambridgeshire County Council,03-Oct-19,51300990666,"-2,977.44",DECOY FARM,CARE ESTABLISHMENT,LD - East Locality - Cost of Care,LD - East Cambs - Special Needs,Residential Care
Cambridgeshire County Council,03-Oct-19,51300990708,"-2,977.44",DECOY FARM,CARE ESTABLISHMENT,LD - East Locality - Cost of Care,LD - East Cambs - Special Needs,Residential Care
Cambridgeshire County Council,03-Oct-19,51301033310,"-2,977.44",DECOY FARM,CARE ESTABLISHMENT,LD - East Locality - Cost of Care,LD - East Cambs - Special Needs,Residential Care
Cambridgeshire County Council,03-Oct-19,51301023574,"-2,977.44",DECOY FARM,CARE ESTABLISHMENT,LD - East Locality - Cost of Care,LD - East Cambs - Special Needs,Residential Care
Cambridgeshire County Council,03-Oct-19,51300973047,"-2,977.44",DECOY FARM,CARE ESTABLISHMENT,LD - East Locality - Cost of Care,LD - East Cambs - Special Needs,Residential Care
Cambridgeshire County Council,03-Oct-19,51300956517,"-2,977.44",DECOY FARM,CARE ESTABLISHMENT,LD - East Locality - Cost of Care,LD - East Cambs - Special Needs,Residential Care
Cambridgeshire County Council,03-Oct-19,51301098867,"-2,977.44",DECOY FARM,CARE ESTABLISHMENT,LD - East Locality - Cost of Care,LD - East Cambs - Special Needs,Residential Care
Cambridgeshire County Council,03-Oct-19,51301124260,"-2,977.44",DECOY FARM,CARE ESTABLISHMENT,LD - East Locality - Cost of Care,LD - East Cambs - Special Needs,Residential Care
Cambridgeshire County Council,03-Oct-19,51301067008,"-2,977.44",DECOY FARM,CARE ESTABLISHMENT,LD - East Locality - Cost of Care,LD - East Cambs - Special Needs,Residential Care
Cambridgeshire County Council,03-Oct-19,51301078126,"-2,977.44",DECOY FARM,CARE ESTABLISHMENT,LD - East Locality - Cost of Care,LD - East Cambs - Special Needs,Residential Care
Cambridgeshire County Council,03-Oct-19,51301098789,"-2,977.44",DECOY FARM,CARE ESTABLISHMENT,LD - East Locality - Cost of Care,LD - East Cambs - Special Needs,Residential Care
Cambridgeshire County Council,03-Oct-19,51301043841,"-2,977.44",DECOY FARM,CARE ESTABLISHMENT,LD - East Locality - Cost of Care,LD - East Cambs - Special Needs,Residential Care
Cambridgeshire County Council,03-Oct-19,51301146614,"-2,977.44",DECOY FARM,CARE ESTABLISHMENT,LD - East Locality - Cost of Care,LD - East Cambs - Special Needs,Residential Care
Cambridgeshire County Council,03-Oct-19,51300845097,"-2,977.44",DECOY FARM,CARE ESTABLISHMENT,LD - East Locality - Cost of Care,LD - East Cambs - Special Needs,Residential Care
Cambridgeshire County Council,03-Oct-19,51300864532,"-2,977.44",DECOY FARM,CARE ESTABLISHMENT,LD - East Locality - Cost of Care,LD - East Cambs - Special Needs,Residential Care
Cambridgeshire County Council,03-Oct-19,51300864472,"-2,977.44",DECOY FARM,CARE ESTABLISHMENT,LD - East Locality - Cost of Care,LD - East Cambs - Special Needs,Residential Care
Cambridgeshire County Council,03-Oct-19,51300864525,"-2,977.44",DECOY FARM,CARE ESTABLISHMENT,LD - East Locality - Cost of Care,LD - East Cambs - Special Needs,Residential Care
Cambridgeshire County Council,03-Oct-19,51300907797,"-2,977.44",DECOY FARM,CARE ESTABLISHMENT,LD - East Locality - Cost of Care,LD - East Cambs - Special Needs,Residential Care
Cambridgeshire County Council,03-Oct-19,51300854236,"-2,977.44",DECOY FARM,CARE ESTABLISHMENT,LD - East Locality - Cost of Care,LD - East Cambs - Special Needs,Residential Care
Cambridgeshire County Council,03-Oct-19,51300897796,"-2,977.44",DECOY FARM,CARE ESTABLISHMENT,LD - East Locality - Cost of Care,LD - East Cambs - Special Needs,Residential Care
Cambridgeshire County Council,03-Oct-19,51300907825,"-2,977.44",DECOY FARM,CARE ESTABLISHMENT,LD - East Locality - Cost of Care,LD - East Cambs - Special Needs,Residential Care
Cambridgeshire County Council,03-Oct-19,51301033266,"-2,977.44",DECOY FARM,CARE ESTABLISHMENT,LD - East Locality - Cost of Care,LD - East Cambs - Special Needs,Residential Care
Cambridgeshire County Council,03-Oct-19,51300845088,"-2,977.44",DECOY FARM,CARE ESTABLISHMENT,LD - East Locality - Cost of Care,LD - East Cambs - Special Needs,Residential Care
Cambridgeshire County Council,03-Oct-19,51300956612,"-2,977.44",DECOY FARM,CARE ESTABLISHMENT,LD - East Locality - Cost of Care,LD - East Cambs - Special Needs,Residential Care
Cambridgeshire County Council,03-Oct-19,51300973084,"-2,977.44",DECOY FARM,CARE ESTABLISHMENT,LD - East Locality - Cost of Care,LD - East Cambs - Special Needs,Residential Care
Cambridgeshire County Council,03-Oct-19,51300990610,"-2,977.44",DECOY FARM,CARE ESTABLISHMENT,LD - East Locality - Cost of Care,LD - East Cambs - Special Needs,Residential Care
Cambridgeshire County Council,03-Oct-19,51301033214,"-2,977.44",DECOY FARM,CARE ESTABLISHMENT,LD - East Locality - Cost of Care,LD - East Cambs - Special Needs,Residential Care
Cambridgeshire County Council,03-Oct-19,51300813324,"-2,977.44",DECOY FARM,CARE ESTABLISHMENT,LD - East Locality - Cost of Care,LD - East Cambs - Special Needs,Residential Care
Cambridgeshire County Council,03-Oct-19,51300990731,"-2,977.44",DECOY FARM,CARE ESTABLISHMENT,LD - East Locality - Cost of Care,LD - East Cambs - Special Needs,Residential Care
Cambridgeshire County Council,03-Oct-19,51300907742,"-2,977.44",DECOY FARM,CARE ESTABLISHMENT,LD - East Locality - Cost of Care,LD - East Cambs - Special Needs,Residential Care
Cambridgeshire County Council,03-Oct-19,51300871774,"-2,977.44",DECOY FARM,CARE ESTABLISHMENT,LD - East Locality - Cost of Care,LD - East Cambs - Special Needs,Residential Care
Cambridgeshire County Council,03-Oct-19,51300981290,"-2,977.44",DECOY FARM,CARE ESTABLISHMENT,LD - East Locality - Cost of Care,LD - East Cambs - Special Needs,Residential Care
Cambridgeshire County Council,03-Oct-19,51300917272,"-2,977.44",DECOY FARM,CARE ESTABLISHMENT,LD - East Locality - Cost of Care,LD - East Cambs - Special Needs,Residential Care
Cambridgeshire County Council,03-Oct-19,51301078120,"-2,977.44",DECOY FARM,CARE ESTABLISHMENT,LD - East Locality - Cost of Care,LD - East Cambs - Special Needs,Residential Care
Cambridgeshire County Council,03-Oct-19,51301078205,"-2,977.44",DECOY FARM,CARE ESTABLISHMENT,LD - East Locality - Cost of Care,LD - East Cambs - Special Needs,Residential Care
Cambridgeshire County Council,03-Oct-19,51300972954,"-2,977.44",DECOY FARM,CARE ESTABLISHMENT,LD - East Locality - Cost of Care,LD - East Cambs - Special Needs,Residential Care
Cambridgeshire County Council,03-Oct-19,51301179628,"-2,977.44",DECOY FARM,CARE ESTABLISHMENT,LD - East Locality - Cost of Care,LD - East Cambs - Special Needs,Residential Care
Cambridgeshire County Council,03-Oct-19,51301066924,"-2,977.44",DECOY FARM,CARE ESTABLISHMENT,LD - East Locality - Cost of Care,LD - East Cambs - Special Needs,Residential Care
Cambridgeshire County Council,03-Oct-19,51301179523,"-2,977.44",DECOY FARM,CARE ESTABLISHMENT,LD - East Locality - Cost of Care,LD - East Cambs - Special Needs,Residential Care
Cambridgeshire County Council,03-Oct-19,51301078118,"-2,977.44",DECOY FARM,CARE ESTABLISHMENT,LD - East Locality - Cost of Care,LD - East Cambs - Special Needs,Residential Care
Cambridgeshire County Council,03-Oct-19,51301135217,"-2,977.44",DECOY FARM,CARE ESTABLISHMENT,LD - East Locality - Cost of Care,LD - East Cambs - Special Needs,Residential Care
Cambridgeshire County Council,03-Oct-19,51300897808,"-2,977.44",DECOY FARM,CARE ESTABLISHMENT,LD - East Locality - Cost of Care,LD - East Cambs - Special Needs,Residential Care
Cambridgeshire County Council,03-Oct-19,51300990613,"-2,977.44",DECOY FARM,CARE ESTABLISHMENT,LD - East Locality - Cost of Care,LD - East Cambs - Special Needs,Residential Care
Cambridgeshire County Council,03-Oct-19,51301014062,"-2,977.44",DECOY FARM,CARE ESTABLISHMENT,LD - East Locality - Cost of Care,LD - East Cambs - Special Needs,Residential Care
Cambridgeshire County Council,03-Oct-19,51301146537,"-2,977.44",DECOY FARM,CARE ESTABLISHMENT,LD - East Locality - Cost of Care,LD - East Cambs - Special Needs,Residential Care
Cambridgeshire County Council,03-Oct-19,51301196667,"-2,977.44",DECOY FARM,CARE ESTABLISHMENT,LD - East Locality - Cost of Care,LD - East Cambs - Special Needs,Residential Care
Cambridgeshire County Council,03-Oct-19,51300897916,"-2,977.44",DECOY FARM,CARE ESTABLISHMENT,LD - East Locality - Cost of Care,LD - East Cambs - Special Needs,Residential Care
Cambridgeshire County Council,03-Oct-19,51300897919,"-2,977.44",DECOY FARM,CARE ESTABLISHMENT,LD - East Locality - Cost of Care,LD - East Cambs - Special Needs,Residential Care
Cambridgeshire County Council,03-Oct-19,51301135245,"-2,977.44",DECOY FARM,CARE ESTABLISHMENT,LD - East Locality - Cost of Care,LD - East Cambs - Special Needs,Residential Care
Cambridgeshire County Council,03-Oct-19,51300956585,"-2,977.44",DECOY FARM,CARE ESTABLISHMENT,LD - East Locality - Cost of Care,LD - East Cambs - Special Needs,Residential Care
Cambridgeshire County Council,03-Oct-19,51300871881,"-2,977.44",DECOY FARM,CARE ESTABLISHMENT,LD - East Locality - Cost of Care,LD - East Cambs - Special Needs,Residential Care
Cambridgeshire County Council,03-Oct-19,51301014101,"-2,977.44",DECOY FARM,CARE ESTABLISHMENT,LD - East Locality - Cost of Care,LD - East Cambs - Special Needs,Residential Care
Cambridgeshire County Council,03-Oct-19,51300864540,"-2,977.44",DECOY FARM,CARE ESTABLISHMENT,LD - East Locality - Cost of Care,LD - East Cambs - Special Needs,Residential Care
Cambridgeshire County Council,03-Oct-19,51300972972,"-2,977.44",DECOY FARM,CARE ESTABLISHMENT,LD - East Locality - Cost of Care,LD - East Cambs - Special Needs,Residential Care
Cambridgeshire County Council,03-Oct-19,51301135278,"-2,977.44",DECOY FARM,CARE ESTABLISHMENT,LD - East Locality - Cost of Care,LD - East Cambs - Special Needs,Residential Care
Cambridgeshire County Council,03-Oct-19,51300845181,"-2,977.44",DECOY FARM,CARE ESTABLISHMENT,LD - East Locality - Cost of Care,LD - East Cambs - Special Needs,Residential Care
Cambridgeshire County Council,03-Oct-19,51300973054,"-2,977.44",DECOY FARM,CARE ESTABLISHMENT,LD - East Locality - Cost of Care,LD - East Cambs - Special Needs,Residential Care
Cambridgeshire County Council,03-Oct-19,51300973026,"-2,977.44",DECOY FARM,CARE ESTABLISHMENT,LD - East Locality - Cost of Care,LD - East Cambs - Special Needs,Residential Care
Cambridgeshire County Council,03-Oct-19,51301146600,"-2,977.44",DECOY FARM,CARE ESTABLISHMENT,LD - East Locality - Cost of Care,LD - East Cambs - Special Needs,Residential Care
Cambridgeshire County Council,03-Oct-19,51301135249,"-2,977.44",DECOY FARM,CARE ESTABLISHMENT,LD - East Locality - Cost of Care,LD - East Cambs - Special Needs,Residential Care
Cambridgeshire County Council,03-Oct-19,51300845122,"-2,977.44",DECOY FARM,CARE ESTABLISHMENT,LD - East Locality - Cost of Care,LD - East Cambs - Special Needs,Residential Care
Cambridgeshire County Council,03-Oct-19,51300864485,"-2,977.44",DECOY FARM,CARE ESTABLISHMENT,LD - East Locality - Cost of Care,LD - East Cambs - Special Needs,Residential Care
Cambridgeshire County Council,03-Oct-19,51301067056,"-2,977.44",DECOY FARM,CARE ESTABLISHMENT,LD - East Locality - Cost of Care,LD - East Cambs - Special Needs,Residential Care
Cambridgeshire County Council,03-Oct-19,51301014041,"-2,977.44",DECOY FARM,CARE ESTABLISHMENT,LD - East Locality - Cost of Care,LD - East Cambs - Special Needs,Residential Care
Cambridgeshire County Council,03-Oct-19,51300907864,"-2,977.44",DECOY FARM,CARE ESTABLISHMENT,LD - East Locality - Cost of Care,LD - East Cambs - Special Needs,Residential Care
Cambridgeshire County Council,03-Oct-19,51301014043,"-2,977.44",DECOY FARM,CARE ESTABLISHMENT,LD - East Locality - Cost of Care,LD - East Cambs - Special Needs,Residential Care
Cambridgeshire County Council,03-Oct-19,51301086776,"-2,977.44",DECOY FARM,CARE ESTABLISHMENT,LD - East Locality - Cost of Care,LD - East Cambs - Special Needs,Residential Care
Cambridgeshire County Council,03-Oct-19,51300981248,"-2,977.44",DECOY FARM,CARE ESTABLISHMENT,LD - East Locality - Cost of Care,LD - East Cambs - Special Needs,Residential Care
Cambridgeshire County Council,03-Oct-19,51301124268,"-2,977.44",DECOY FARM,CARE ESTABLISHMENT,LD - East Locality - Cost of Care,LD - East Cambs - Special Needs,Residential Care
Cambridgeshire County Council,03-Oct-19,51301135223,"-2,977.44",DECOY FARM,CARE ESTABLISHMENT,LD - East Locality - Cost of Care,LD - East Cambs - Special Needs,Residential Care
Cambridgeshire County Council,03-Oct-19,51300917192,"-2,977.44",DECOY FARM,CARE ESTABLISHMENT,LD - East Locality - Cost of Care,LD - East Cambs - Special Needs,Residential Care
Cambridgeshire County Council,03-Oct-19,51300854218,"-2,977.44",DECOY FARM,CARE ESTABLISHMENT,LD - East Locality - Cost of Care,LD - East Cambs - Special Needs,Residential Care
Cambridgeshire County Council,03-Oct-19,51300907743,"-2,977.44",DECOY FARM,CARE ESTABLISHMENT,LD - East Locality - Cost of Care,LD - East Cambs - Special Needs,Residential Care
Cambridgeshire County Council,03-Oct-19,51300990699,"-2,977.44",DECOY FARM,CARE ESTABLISHMENT,LD - East Locality - Cost of Care,LD - East Cambs - Special Needs,Residential Care
Cambridgeshire County Council,03-Oct-19,51301179508,"-2,977.44",DECOY FARM,CARE ESTABLISHMENT,LD - East Locality - Cost of Care,LD - East Cambs - Special Needs,Residential Care
Cambridgeshire County Council,03-Oct-19,51300956508,"-2,977.44",DECOY FARM,CARE ESTABLISHMENT,LD - East Locality - Cost of Care,LD - East Cambs - Special Needs,Residential Care
Cambridgeshire County Council,03-Oct-19,51300956621,"-2,977.44",DECOY FARM,CARE ESTABLISHMENT,LD - East Locality - Cost of Care,LD - East Cambs - Special Needs,Residential Care
Cambridgeshire County Council,03-Oct-19,51301135239,"-2,977.44",DECOY FARM,CARE ESTABLISHMENT,LD - East Locality - Cost of Care,LD - East Cambs - Special Needs,Residential Care
Cambridgeshire County Council,03-Oct-19,51301135306,"-2,977.44",DECOY FARM,CARE ESTABLISHMENT,LD - East Locality - Cost of Care,LD - East Cambs - Special Needs,Residential Care
Cambridgeshire County Council,03-Oct-19,51300907835,"-2,977.44",DECOY FARM,CARE ESTABLISHMENT,LD - East Locality - Cost of Care,LD - East Cambs - Special Needs,Residential Care
Cambridgeshire County Council,03-Oct-19,51301086674,"-2,977.44",DECOY FARM,CARE ESTABLISHMENT,LD - East Locality - Cost of Care,LD - East Cambs - Special Needs,Residential Care
Cambridgeshire County Council,03-Oct-19,51301098741,"-2,977.44",DECOY FARM,CARE ESTABLISHMENT,LD - East Locality - Cost of Care,LD - East Cambs - Special Needs,Residential Care
Cambridgeshire County Council,03-Oct-19,51300897783,"-2,977.44",DECOY FARM,CARE ESTABLISHMENT,LD - East Locality - Cost of Care,LD - East Cambs - Special Needs,Residential Care
Cambridgeshire County Council,03-Oct-19,51301078211,"-2,977.44",DECOY FARM,CARE ESTABLISHMENT,LD - East Locality - Cost of Care,LD - East Cambs - Special Needs,Residential Care
Cambridgeshire County Council,03-Oct-19,51301124183,"-2,977.44",DECOY FARM,CARE ESTABLISHMENT,LD - East Locality - Cost of Care,LD - East Cambs - Special Needs,Residential Care
Cambridgeshire County Council,03-Oct-19,51301124249,"-2,977.44",DECOY FARM,CARE ESTABLISHMENT,LD - East Locality - Cost of Care,LD - East Cambs - Special Needs,Residential Care
Cambridgeshire County Council,03-Oct-19,51300813206,"-2,977.44",DECOY FARM,CARE ESTABLISHMENT,LD - East Locality - Cost of Care,LD - East Cambs - Special Needs,Residential Care
Cambridgeshire County Council,03-Oct-19,51300813217,"-2,977.44",DECOY FARM,CARE ESTABLISHMENT,LD - East Locality - Cost of Care,LD - East Cambs - Special Needs,Residential Care
Cambridgeshire County Council,03-Oct-19,51301023675,"-2,977.44",DECOY FARM,CARE ESTABLISHMENT,LD - East Locality - Cost of Care,LD - East Cambs - Special Needs,Residential Care
Cambridgeshire County Council,03-Oct-19,51300990639,"-2,977.44",DECOY FARM,CARE ESTABLISHMENT,LD - East Locality - Cost of Care,LD - East Cambs - Special Needs,Residential Care
Cambridgeshire County Council,03-Oct-19,51300990593,"-2,977.44",DECOY FARM,CARE ESTABLISHMENT,LD - East Locality - Cost of Care,LD - East Cambs - Special Needs,Residential Care
Cambridgeshire County Council,03-Oct-19,51301098787,"-2,977.44",DECOY FARM,CARE ESTABLISHMENT,LD - East Locality - Cost of Care,LD - East Cambs - Special Needs,Residential Care
Cambridgeshire County Council,03-Oct-19,51301086760,"-2,977.44",DECOY FARM,CARE ESTABLISHMENT,LD - East Locality - Cost of Care,LD - East Cambs - Special Needs,Residential Care
Cambridgeshire County Council,03-Oct-19,51301179642,"-2,977.44",DECOY FARM,CARE ESTABLISHMENT,LD - East Locality - Cost of Care,LD - East Cambs - Special Needs,Residential Care
Cambridgeshire County Council,03-Oct-19,51301043843,"-2,977.44",DECOY FARM,CARE ESTABLISHMENT,LD - East Locality - Cost of Care,LD - East Cambs - Special Needs,Residential Care
Cambridgeshire County Council,03-Oct-19,51300871889,"-2,977.44",DECOY FARM,CARE ESTABLISHMENT,LD - East Locality - Cost of Care,LD - East Cambs - Special Needs,Residential Care
Cambridgeshire County Council,03-Oct-19,51301146576,"-2,977.44",DECOY FARM,CARE ESTABLISHMENT,LD - East Locality - Cost of Care,LD - East Cambs - Special Needs,Residential Care
Cambridgeshire County Council,03-Oct-19,51301179481,"-2,977.44",DECOY FARM,CARE ESTABLISHMENT,LD - East Locality - Cost of Care,LD - East Cambs - Special Needs,Residential Care
Cambridgeshire County Council,03-Oct-19,51301124302,"-2,977.44",DECOY FARM,CARE ESTABLISHMENT,LD - East Locality - Cost of Care,LD - East Cambs - Special Needs,Residential Care
Cambridgeshire County Council,03-Oct-19,51300871786,"-2,977.44",DECOY FARM,CARE ESTABLISHMENT,LD - East Locality - Cost of Care,LD - East Cambs - Special Needs,Residential Care
Cambridgeshire County Council,03-Oct-19,51301023575,"-2,977.44",DECOY FARM,CARE ESTABLISHMENT,LD - East Locality - Cost of Care,LD - East Cambs - Special Needs,Residential Care
Cambridgeshire County Council,03-Oct-19,51300813227,"-2,977.44",DECOY FARM,CARE ESTABLISHMENT,LD - East Locality - Cost of Care,LD - East Cambs - Special Needs,Residential Care
Cambridgeshire County Council,03-Oct-19,51300981240,"-2,977.44",DECOY FARM,CARE ESTABLISHMENT,LD - East Locality - Cost of Care,LD - East Cambs - Special Needs,Residential Care
Cambridgeshire County Council,03-Oct-19,51301189724,"-2,977.44",DECOY FARM,CARE ESTABLISHMENT,LD - East Locality - Cost of Care,LD - East Cambs - Special Needs,Residential Care
Cambridgeshire County Council,03-Oct-19,51300813295,"-2,977.44",DECOY FARM,CARE ESTABLISHMENT,LD - East Locality - Cost of Care,LD - East Cambs - Special Needs,Residential Care
Cambridgeshire County Council,03-Oct-19,51300813204,"-2,977.44",DECOY FARM,CARE ESTABLISHMENT,LD - East Locality - Cost of Care,LD - East Cambs - Special Needs,Residential Care
Cambridgeshire County Council,03-Oct-19,51300813317,"-2,977.44",DECOY FARM,CARE ESTABLISHMENT,LD - East Locality - Cost of Care,LD - East Cambs - Special Needs,Residential Care
Cambridgeshire County Council,03-Oct-19,51300845090,"-2,977.44",DECOY FARM,CARE ESTABLISHMENT,LD - East Locality - Cost of Care,LD - East Cambs - Special Needs,Residential Care
Cambridgeshire County Council,03-Oct-19,51300871796,"-2,977.44",DECOY FARM,CARE ESTABLISHMENT,LD - East Locality - Cost of Care,LD - East Cambs - Special Needs,Residential Care
Cambridgeshire County Council,03-Oct-19,51300864471,"-2,977.44",DECOY FARM,CARE ESTABLISHMENT,LD - East Locality - Cost of Care,LD - East Cambs - Special Needs,Residential Care
Cambridgeshire County Council,03-Oct-19,51300907763,"-2,977.44",DECOY FARM,CARE ESTABLISHMENT,LD - East Locality - Cost of Care,LD - East Cambs - Special Needs,Residential Care
Cambridgeshire County Council,03-Oct-19,51300854208,"-2,977.44",DECOY FARM,CARE ESTABLISHMENT,LD - East Locality - Cost of Care,LD - East Cambs - Special Needs,Residential Care
Cambridgeshire County Council,03-Oct-19,51301179566,"-2,977.44",DECOY FARM,CARE ESTABLISHMENT,LD - East Locality - Cost of Care,LD - East Cambs - Special Needs,Residential Care
Cambridgeshire County Council,03-Oct-19,51301023502,"-2,977.44",DECOY FARM,CARE ESTABLISHMENT,LD - East Locality - Cost of Care,LD - East Cambs - Special Needs,Residential Care
Cambridgeshire County Council,03-Oct-19,51300864444,"-2,977.44",DECOY FARM,CARE ESTABLISHMENT,LD - East Locality - Cost of Care,LD - East Cambs - Special Needs,Residential Care
Cambridgeshire County Council,03-Oct-19,51300864516,"-2,977.44",DECOY FARM,CARE ESTABLISHMENT,LD - East Locality - Cost of Care,LD - East Cambs - Special Needs,Residential Care
Cambridgeshire County Council,03-Oct-19,51301189831,"-2,977.44",DECOY FARM,CARE ESTABLISHMENT,LD - East Locality - Cost of Care,LD - East Cambs - Special Needs,Residential Care
Cambridgeshire County Council,03-Oct-19,51301124162,"-2,977.44",DECOY FARM,CARE ESTABLISHMENT,LD - East Locality - Cost of Care,LD - East Cambs - Special Needs,Residential Care
Cambridgeshire County Council,03-Oct-19,51301179476,"-2,977.44",DECOY FARM,CARE ESTABLISHMENT,LD - East Locality - Cost of Care,LD - East Cambs - Special Needs,Residential Care
Cambridgeshire County Council,03-Oct-19,51301179500,"-2,977.44",DECOY FARM,CARE ESTABLISHMENT,LD - East Locality - Cost of Care,LD - East Cambs - Special Needs,Residential Care
Cambridgeshire County Council,03-Oct-19,51301086753,"-2,977.44",DECOY FARM,CARE ESTABLISHMENT,LD - East Locality - Cost of Care,LD - East Cambs - Special Needs,Residential Care
Cambridgeshire County Council,03-Oct-19,51301086775,"-2,977.44",DECOY FARM,CARE ESTABLISHMENT,LD - East Locality - Cost of Care,LD - East Cambs - Special Needs,Residential Care
Cambridgeshire County Council,03-Oct-19,51301078132,"-2,977.44",DECOY FARM,CARE ESTABLISHMENT,LD - East Locality - Cost of Care,LD - East Cambs - Special Needs,Residential Care
Cambridgeshire County Council,03-Oct-19,51301146625,"-2,977.44",DECOY FARM,CARE ESTABLISHMENT,LD - East Locality - Cost of Care,LD - East Cambs - Special Needs,Residential Care
Cambridgeshire County Council,03-Oct-19,51301033331,"-2,977.44",DECOY FARM,CARE ESTABLISHMENT,LD - East Locality - Cost of Care,LD - East Cambs - Special Needs,Residential Care
Cambridgeshire County Council,03-Oct-19,51301043703,"-2,977.44",DECOY FARM,CARE ESTABLISHMENT,LD - East Locality - Cost of Care,LD - East Cambs - Special Needs,Residential Care
Cambridgeshire County Council,03-Oct-19,51301098832,"-2,977.44",DECOY FARM,CARE ESTABLISHMENT,LD - East Locality - Cost of Care,LD - East Cambs - Special Needs,Residential Care
Cambridgeshire County Council,03-Oct-19,51300864468,"-2,977.44",DECOY FARM,CARE ESTABLISHMENT,LD - East Locality - Cost of Care,LD - East Cambs - Special Needs,Residential Care
Cambridgeshire County Council,03-Oct-19,51300907757,"-2,977.44",DECOY FARM,CARE ESTABLISHMENT,LD - East Locality - Cost of Care,LD - East Cambs - Special Needs,Residential Care
Cambridgeshire County Council,03-Oct-19,51301124194,"-2,977.44",DECOY FARM,CARE ESTABLISHMENT,LD - East Locality - Cost of Care,LD - East Cambs - Special Needs,Residential Care
Cambridgeshire County Council,03-Oct-19,51301124143,"-2,977.44",DECOY FARM,CARE ESTABLISHMENT,LD - East Locality - Cost of Care,LD - East Cambs - Special Needs,Residential Care
Cambridgeshire County Council,03-Oct-19,51301033225,"-2,977.44",DECOY FARM,CARE ESTABLISHMENT,LD - East Locality - Cost of Care,LD - East Cambs - Special Needs,Residential Care
Cambridgeshire County Council,03-Oct-19,51301043774,"-2,977.44",DECOY FARM,CARE ESTABLISHMENT,LD - East Locality - Cost of Care,LD - East Cambs - Special Needs,Residential Care
Cambridgeshire County Council,03-Oct-19,51301066980,"-2,977.44",DECOY FARM,CARE ESTABLISHMENT,LD - East Locality - Cost of Care,LD - East Cambs - Special Needs,Residential Care
Cambridgeshire County Council,03-Oct-19,51300871771,"-2,977.44",DECOY FARM,CARE ESTABLISHMENT,LD - East Locality - Cost of Care,LD - East Cambs - Special Needs,Residential Care
Cambridgeshire County Council,03-Oct-19,51300938637,"-2,977.44",DECOY FARM,CARE ESTABLISHMENT,LD - East Locality - Cost of Care,LD - East Cambs - Special Needs,Residential Care
Cambridgeshire County Council,03-Oct-19,51300854203,"-2,977.44",DECOY FARM,CARE ESTABLISHMENT,LD - East Locality - Cost of Care,LD - East Cambs - Special Needs,Residential Care
Cambridgeshire County Council,03-Oct-19,51301135324,"-2,977.44",DECOY FARM,CARE ESTABLISHMENT,LD - East Locality - Cost of Care,LD - East Cambs - Special Needs,Residential Care
Cambridgeshire County Council,03-Oct-19,51300864578,"-2,977.44",DECOY FARM,CARE ESTABLISHMENT,LD - East Locality - Cost of Care,LD - East Cambs - Special Needs,Residential Care
Cambridgeshire County Council,03-Oct-19,51301067010,"-2,977.44",DECOY FARM,CARE ESTABLISHMENT,LD - East Locality - Cost of Care,LD - East Cambs - Special Needs,Residential Care
Cambridgeshire County Council,03-Oct-19,51300917202,"-2,977.44",DECOY FARM,CARE ESTABLISHMENT,LD - East Locality - Cost of Care,LD - East Cambs - Special Needs,Residential Care
Cambridgeshire County Council,03-Oct-19,51300864500,"-2,977.44",DECOY FARM,CARE ESTABLISHMENT,LD - East Locality - Cost of Care,LD - East Cambs - Special Needs,Residential Care
Cambridgeshire County Council,03-Oct-19,51301086728,"-2,977.44",DECOY FARM,CARE ESTABLISHMENT,LD - East Locality - Cost of Care,LD - East Cambs - Special Needs,Residential Care
Cambridgeshire County Council,03-Oct-19,51300981203,"-2,977.44",DECOY FARM,CARE ESTABLISHMENT,LD - East Locality - Cost of Care,LD - East Cambs - Special Needs,Residential Care
Cambridgeshire County Council,03-Oct-19,51301043798,"-2,977.44",DECOY FARM,CARE ESTABLISHMENT,LD - East Locality - Cost of Care,LD - East Cambs - Special Needs,Residential Care
Cambridgeshire County Council,03-Oct-19,51301196678,"-2,977.44",DECOY FARM,CARE ESTABLISHMENT,LD - East Locality - Cost of Care,LD - East Cambs - Special Needs,Residential Care
Cambridgeshire County Council,03-Oct-19,51301179529,"-2,977.44",DECOY FARM,CARE ESTABLISHMENT,LD - East Locality - Cost of Care,LD - East Cambs - Special Needs,Residential Care
Cambridgeshire County Council,03-Oct-19,51301086718,"-2,977.44",DECOY FARM,CARE ESTABLISHMENT,LD - East Locality - Cost of Care,LD - East Cambs - Special Needs,Residential Care
Cambridgeshire County Council,03-Oct-19,51300990658,"-2,977.44",DECOY FARM,CARE ESTABLISHMENT,LD - East Locality - Cost of Care,LD - East Cambs - Special Needs,Residential Care
Cambridgeshire County Council,03-Oct-19,51301066951,"-2,977.44",DECOY FARM,CARE ESTABLISHMENT,LD - East Locality - Cost of Care,LD - East Cambs - Special Needs,Residential Care
Cambridgeshire County Council,03-Oct-19,51301078243,"-2,977.44",DECOY FARM,CARE ESTABLISHMENT,LD - East Locality - Cost of Care,LD - East Cambs - Special Needs,Residential Care
Cambridgeshire County Council,03-Oct-19,51301146567,"-2,977.44",DECOY FARM,CARE ESTABLISHMENT,LD - East Locality - Cost of Care,LD - East Cambs - Special Needs,Residential Care
Cambridgeshire County Council,03-Oct-19,51300972960,"-2,977.44",DECOY FARM,CARE ESTABLISHMENT,LD - East Locality - Cost of Care,LD - East Cambs - Special Needs,Residential Care
Cambridgeshire County Council,03-Oct-19,51300917205,"-2,977.44",DECOY FARM,CARE ESTABLISHMENT,LD - East Locality - Cost of Care,LD - East Cambs - Special Needs,Residential Care
Cambridgeshire County Council,03-Oct-19,51300917146,"-2,977.44",DECOY FARM,CARE ESTABLISHMENT,LD - East Locality - Cost of Care,LD - East Cambs - Special Needs,Residential Care
Cambridgeshire County Council,03-Oct-19,51300854178,"-2,977.44",DECOY FARM,CARE ESTABLISHMENT,LD - East Locality - Cost of Care,LD - East Cambs - Special Needs,Residential Care
Cambridgeshire County Council,03-Oct-19,51300854291,"-2,977.44",DECOY FARM,CARE ESTABLISHMENT,LD - East Locality - Cost of Care,LD - East Cambs - Special Needs,Residential Care
Cambridgeshire County Council,03-Oct-19,51300897814,"-2,977.44",DECOY FARM,CARE ESTABLISHMENT,LD - East Locality - Cost of Care,LD - East Cambs - Special Needs,Residential Care
Cambridgeshire County Council,03-Oct-19,51300813230,"-2,977.44",DECOY FARM,CARE ESTABLISHMENT,LD - East Locality - Cost of Care,LD - East Cambs - Special Needs,Residential Care
Cambridgeshire County Council,03-Oct-19,51300956477,"-2,977.44",DECOY FARM,CARE ESTABLISHMENT,LD - East Locality - Cost of Care,LD - East Cambs - Special Needs,Residential Care
Cambridgeshire County Council,03-Oct-19,51301014065,"-2,977.44",DECOY FARM,CARE ESTABLISHMENT,LD - East Locality - Cost of Care,LD - East Cambs - Special Needs,Residential Care
Cambridgeshire County Council,03-Oct-19,51301014071,"-2,977.44",DECOY FARM,CARE ESTABLISHMENT,LD - East Locality - Cost of Care,LD - East Cambs - Special Needs,Residential Care
Cambridgeshire County Council,03-Oct-19,51300981257,"-2,977.44",DECOY FARM,CARE ESTABLISHMENT,LD - East Locality - Cost of Care,LD - East Cambs - Special Needs,Residential Care
Cambridgeshire County Council,03-Oct-19,51300871821,"-2,977.44",DECOY FARM,CARE ESTABLISHMENT,LD - East Locality - Cost of Care,LD - East Cambs - Special Needs,Residential Care
Cambridgeshire County Council,03-Oct-19,51301078198,"-2,977.44",DECOY FARM,CARE ESTABLISHMENT,LD - East Locality - Cost of Care,LD - East Cambs - Special Needs,Residential Care
Cambridgeshire County Council,03-Oct-19,51301179573,"-2,977.44",DECOY FARM,CARE ESTABLISHMENT,LD - East Locality - Cost of Care,LD - East Cambs - Special Needs,Residential Care
Cambridgeshire County Council,03-Oct-19,51301146584,"-2,977.44",DECOY FARM,CARE ESTABLISHMENT,LD - East Locality - Cost of Care,LD - East Cambs - Special Needs,Residential Care
Cambridgeshire County Council,03-Oct-19,51300956531,"-2,977.44",DECOY FARM,CARE ESTABLISHMENT,LD - East Locality - Cost of Care,LD - East Cambs - Special Needs,Residential Care
Cambridgeshire County Council,03-Oct-19,51301023557,"-2,977.44",DECOY FARM,CARE ESTABLISHMENT,LD - East Locality - Cost of Care,LD - East Cambs - Special Needs,Residential Care
Cambridgeshire County Council,03-Oct-19,51301196719,"-2,977.44",DECOY FARM,CARE ESTABLISHMENT,LD - East Locality - Cost of Care,LD - East Cambs - Special Needs,Residential Care
Cambridgeshire County Council,03-Oct-19,51300897785,"-2,977.44",DECOY FARM,CARE ESTABLISHMENT,LD - East Locality - Cost of Care,LD - East Cambs - Special Needs,Residential Care
Cambridgeshire County Council,03-Oct-19,51301067048,"-2,977.44",DECOY FARM,CARE ESTABLISHMENT,LD - East Locality - Cost of Care,LD - East Cambs - Special Needs,Residential Care
Cambridgeshire County Council,03-Oct-19,51300845084,"-2,977.44",DECOY FARM,CARE ESTABLISHMENT,LD - East Locality - Cost of Care,LD - East Cambs - Special Needs,Residential Care
Cambridgeshire County Council,03-Oct-19,51300907884,"-2,977.44",DECOY FARM,CARE ESTABLISHMENT,LD - East Locality - Cost of Care,LD - East Cambs - Special Needs,Residential Care
Cambridgeshire County Council,03-Oct-19,51301066929,"-2,977.44",DECOY FARM,CARE ESTABLISHMENT,LD - East Locality - Cost of Care,LD - East Cambs - Special Needs,Residential Care
Cambridgeshire County Council,03-Oct-19,51301135279,"-2,977.44",DECOY FARM,CARE ESTABLISHMENT,LD - East Locality - Cost of Care,LD - East Cambs - Special Needs,Residential Care
Cambridgeshire County Council,03-Oct-19,51301146642,"-2,977.44",DECOY FARM,CARE ESTABLISHMENT,LD - East Locality - Cost of Care,LD - East Cambs - Special Needs,Residential Care
Cambridgeshire County Council,03-Oct-19,51300813225,"-2,977.44",DECOY FARM,CARE ESTABLISHMENT,LD - East Locality - Cost of Care,LD - East Cambs - Special Needs,Residential Care
Cambridgeshire County Council,03-Oct-19,51300897781,"-2,977.44",DECOY FARM,CARE ESTABLISHMENT,LD - East Locality - Cost of Care,LD - East Cambs - Special Needs,Residential Care
Cambridgeshire County Council,03-Oct-19,51300845158,"-2,977.44",DECOY FARM,CARE ESTABLISHMENT,LD - East Locality - Cost of Care,LD - East Cambs - Special Needs,Residential Care
Cambridgeshire County Council,03-Oct-19,51300917139,"-2,977.44",DECOY FARM,CARE ESTABLISHMENT,LD - East Locality - Cost of Care,LD - East Cambs - Special Needs,Residential Care
Cambridgeshire County Council,03-Oct-19,51300917236,"-2,977.44",DECOY FARM,CARE ESTABLISHMENT,LD - East Locality - Cost of Care,LD - East Cambs - Special Needs,Residential Care
Cambridgeshire County Council,03-Oct-19,51301196671,"-2,977.44",DECOY FARM,CARE ESTABLISHMENT,LD - East Locality - Cost of Care,LD - East Cambs - Special Needs,Residential Care
Cambridgeshire County Council,03-Oct-19,51300917190,"-2,977.44",DECOY FARM,CARE ESTABLISHMENT,LD - East Locality - Cost of Care,LD - East Cambs - Special Needs,Residential Care
Cambridgeshire County Council,03-Oct-19,51300813327,"-2,977.44",DECOY FARM,CARE ESTABLISHMENT,LD - East Locality - Cost of Care,LD - East Cambs - Special Needs,Residential Care
Cambridgeshire County Council,03-Oct-19,51301196781,"-2,977.44",DECOY FARM,CARE ESTABLISHMENT,LD - East Locality - Cost of Care,LD - East Cambs - Special Needs,Residential Care
Cambridgeshire County Council,03-Oct-19,51301086690,"-2,977.44",DECOY FARM,CARE ESTABLISHMENT,LD - East Locality - Cost of Care,LD - East Cambs - Special Needs,Residential Care
Cambridgeshire County Council,03-Oct-19,51301066999,"-2,977.44",DECOY FARM,CARE ESTABLISHMENT,LD - East Locality - Cost of Care,LD - East Cambs - Special Needs,Residential Care
Cambridgeshire County Council,03-Oct-19,51300854256,"-2,977.44",DECOY FARM,CARE ESTABLISHMENT,LD - East Locality - Cost of Care,LD - East Cambs - Special Needs,Residential Care
Cambridgeshire County Council,03-Oct-19,51300854328,"-2,977.44",DECOY FARM,CARE ESTABLISHMENT,LD - East Locality - Cost of Care,LD - East Cambs - Special Needs,Residential Care
Cambridgeshire County Council,03-Oct-19,51300956611,"-2,977.44",DECOY FARM,CARE ESTABLISHMENT,LD - East Locality - Cost of Care,LD - East Cambs - Special Needs,Residential Care
Cambridgeshire County Council,03-Oct-19,51301023567,"-2,977.44",DECOY FARM,CARE ESTABLISHMENT,LD - East Locality - Cost of Care,LD - East Cambs - Special Needs,Residential Care
Cambridgeshire County Council,03-Oct-19,51300897868,"-2,977.44",DECOY FARM,CARE ESTABLISHMENT,LD - East Locality - Cost of Care,LD - East Cambs - Special Needs,Residential Care
Cambridgeshire County Council,03-Oct-19,51301146670,"-2,977.44",DECOY FARM,CARE ESTABLISHMENT,LD - East Locality - Cost of Care,LD - East Cambs - Special Needs,Residential Care
Cambridgeshire County Council,03-Oct-19,51300864441,"-2,977.44",DECOY FARM,CARE ESTABLISHMENT,LD - East Locality - Cost of Care,LD - East Cambs - Special Needs,Residential Care
Cambridgeshire County Council,03-Oct-19,51301078154,"-2,977.44",DECOY FARM,CARE ESTABLISHMENT,LD - East Locality - Cost of Care,LD - East Cambs - Special Needs,Residential Care
Cambridgeshire County Council,03-Oct-19,51301078233,"-2,977.44",DECOY FARM,CARE ESTABLISHMENT,LD - East Locality - Cost of Care,LD - East Cambs - Special Needs,Residential Care
Cambridgeshire County Council,03-Oct-19,51301067001,"-2,977.44",DECOY FARM,CARE ESTABLISHMENT,LD - East Locality - Cost of Care,LD - East Cambs - Special Needs,Residential Care
Cambridgeshire County Council,03-Oct-19,51301086781,"-2,977.44",DECOY FARM,CARE ESTABLISHMENT,LD - East Locality - Cost of Care,LD - East Cambs - Special Needs,Residential Care
Cambridgeshire County Council,03-Oct-19,51301033305,"-2,977.44",DECOY FARM,CARE ESTABLISHMENT,LD - East Locality - Cost of Care,LD - East Cambs - Special Needs,Residential Care
Cambridgeshire County Council,03-Oct-19,51300845112,"-2,977.44",DECOY FARM,CARE ESTABLISHMENT,LD - East Locality - Cost of Care,LD - East Cambs - Special Needs,Residential Care
Cambridgeshire County Council,03-Oct-19,51300917276,"-2,977.44",DECOY FARM,CARE ESTABLISHMENT,LD - East Locality - Cost of Care,LD - East Cambs - Special Needs,Residential Care
Cambridgeshire County Council,03-Oct-19,51301023618,"-2,977.44",DECOY FARM,CARE ESTABLISHMENT,LD - East Locality - Cost of Care,LD - East Cambs - Special Needs,Residential Care
Cambridgeshire County Council,03-Oct-19,51300981296,"-2,977.44",DECOY FARM,CARE ESTABLISHMENT,LD - East Locality - Cost of Care,LD - East Cambs - Special Needs,Residential Care
Cambridgeshire County Council,03-Oct-19,51300990594,"-2,977.44",DECOY FARM,CARE ESTABLISHMENT,LD - East Locality - Cost of Care,LD - East Cambs - Special Needs,Residential Care
Cambridgeshire County Council,03-Oct-19,51301043747,"-2,977.44",DECOY FARM,CARE ESTABLISHMENT,LD - East Locality - Cost of Care,LD - East Cambs - Special Needs,Residential Care
Cambridgeshire County Council,03-Oct-19,51300990630,"-2,977.44",DECOY FARM,CARE ESTABLISHMENT,LD - East Locality - Cost of Care,LD - East Cambs - Special Needs,Residential Care
Cambridgeshire County Council,03-Oct-19,51300871775,"-2,977.44",DECOY FARM,CARE ESTABLISHMENT,LD - East Locality - Cost of Care,LD - East Cambs - Special Needs,Residential Care
Cambridgeshire County Council,03-Oct-19,51300871769,"-2,977.44",DECOY FARM,CARE ESTABLISHMENT,LD - East Locality - Cost of Care,LD - East Cambs - Special Needs,Residential Care
Cambridgeshire County Council,03-Oct-19,51300907740,"-2,977.44",DECOY FARM,CARE ESTABLISHMENT,LD - East Locality - Cost of Care,LD - East Cambs - Special Needs,Residential Care
Cambridgeshire County Council,03-Oct-19,51300972994,"-2,977.44",DECOY FARM,CARE ESTABLISHMENT,LD - East Locality - Cost of Care,LD - East Cambs - Special Needs,Residential Care
Cambridgeshire County Council,03-Oct-19,51300973088,"-2,977.44",DECOY FARM,CARE ESTABLISHMENT,LD - East Locality - Cost of Care,LD - East Cambs - Special Needs,Residential Care
Cambridgeshire County Council,03-Oct-19,51300973016,"-2,977.44",DECOY FARM,CARE ESTABLISHMENT,LD - East Locality - Cost of Care,LD - East Cambs - Special Needs,Residential Care
Cambridgeshire County Council,03-Oct-19,51300973080,"-2,977.44",DECOY FARM,CARE ESTABLISHMENT,LD - East Locality - Cost of Care,LD - East Cambs - Special Needs,Residential Care
Cambridgeshire County Council,03-Oct-19,51300956608,"-2,977.44",DECOY FARM,CARE ESTABLISHMENT,LD - East Locality - Cost of Care,LD - East Cambs - Special Needs,Residential Care
Cambridgeshire County Council,03-Oct-19,51300917284,"-2,977.44",DECOY FARM,CARE ESTABLISHMENT,LD - East Locality - Cost of Care,LD - East Cambs - Special Needs,Residential Care
Cambridgeshire County Council,03-Oct-19,51301196694,"-2,977.44",DECOY FARM,CARE ESTABLISHMENT,LD - East Locality - Cost of Care,LD - East Cambs - Special Needs,Residential Care
Cambridgeshire County Council,03-Oct-19,51300845101,"-2,977.44",DECOY FARM,CARE ESTABLISHMENT,LD - East Locality - Cost of Care,LD - East Cambs - Special Needs,Residential Care
Cambridgeshire County Council,03-Oct-19,51301078173,"-2,977.44",DECOY FARM,CARE ESTABLISHMENT,LD - East Locality - Cost of Care,LD - East Cambs - Special Needs,Residential Care
Cambridgeshire County Council,03-Oct-19,51301179453,"-2,977.44",DECOY FARM,CARE ESTABLISHMENT,LD - East Locality - Cost of Care,LD - East Cambs - Special Needs,Residential Care
Cambridgeshire County Council,03-Oct-19,51300854271,"-2,977.44",DECOY FARM,CARE ESTABLISHMENT,LD - East Locality - Cost of Care,LD - East Cambs - Special Needs,Residential Care
Cambridgeshire County Council,03-Oct-19,51300990706,"-2,977.44",DECOY FARM,CARE ESTABLISHMENT,LD - East Locality - Cost of Care,LD - East Cambs - Special Needs,Residential Care
Cambridgeshire County Council,03-Oct-19,51301014019,"-2,977.44",DECOY FARM,CARE ESTABLISHMENT,LD - East Locality - Cost of Care,LD - East Cambs - Special Needs,Residential Care
Cambridgeshire County Council,03-Oct-19,51301179644,"-2,977.44",DECOY FARM,CARE ESTABLISHMENT,LD - East Locality - Cost of Care,LD - East Cambs - Special Needs,Residential Care
Cambridgeshire County Council,03-Oct-19,51300871782,"-2,977.44",DECOY FARM,CARE ESTABLISHMENT,LD - East Locality - Cost of Care,LD - East Cambs - Special Needs,Residential Care
Cambridgeshire County Council,03-Oct-19,51301033296,"-2,977.44",DECOY FARM,CARE ESTABLISHMENT,LD - East Locality - Cost of Care,LD - East Cambs - Special Needs,Residential Care
Cambridgeshire County Council,03-Oct-19,51301078230,"-2,977.44",DECOY FARM,CARE ESTABLISHMENT,LD - East Locality - Cost of Care,LD - East Cambs - Special Needs,Residential Care
Cambridgeshire County Council,03-Oct-19,51300990597,"-2,977.44",DECOY FARM,CARE ESTABLISHMENT,LD - East Locality - Cost of Care,LD - East Cambs - Special Needs,Residential Care
Cambridgeshire County Council,03-Oct-19,51300854211,"-2,977.44",DECOY FARM,CARE ESTABLISHMENT,LD - East Locality - Cost of Care,LD - East Cambs - Special Needs,Residential Care
Cambridgeshire County Council,03-Oct-19,51301033253,"-2,977.44",DECOY FARM,CARE ESTABLISHMENT,LD - East Locality - Cost of Care,LD - East Cambs - Special Needs,Residential Care
Cambridgeshire County Council,03-Oct-19,51300917230,"-2,977.44",DECOY FARM,CARE ESTABLISHMENT,LD - East Locality - Cost of Care,LD - East Cambs - Special Needs,Residential Care
Cambridgeshire County Council,03-Oct-19,51301146673,"-2,977.44",DECOY FARM,CARE ESTABLISHMENT,LD - East Locality - Cost of Care,LD - East Cambs - Special Needs,Residential Care
Cambridgeshire County Council,03-Oct-19,51301179448,"-2,977.44",DECOY FARM,CARE ESTABLISHMENT,LD - East Locality - Cost of Care,LD - East Cambs - Special Needs,Residential Care
Cambridgeshire County Council,03-Oct-19,51301146627,"-2,977.44",DECOY FARM,CARE ESTABLISHMENT,LD - East Locality - Cost of Care,LD - East Cambs - Special Needs,Residential Care
Cambridgeshire County Council,03-Oct-19,51300854196,"-2,977.44",DECOY FARM,CARE ESTABLISHMENT,LD - East Locality - Cost of Care,LD - East Cambs - Special Needs,Residential Care
Cambridgeshire County Council,03-Oct-19,51301023485,"-2,977.44",DECOY FARM,CARE ESTABLISHMENT,LD - East Locality - Cost of Care,LD - East Cambs - Special Needs,Residential Care
Cambridgeshire County Council,03-Oct-19,51301067012,"-2,977.44",DECOY FARM,CARE ESTABLISHMENT,LD - East Locality - Cost of Care,LD - East Cambs - Special Needs,Residential Care
Cambridgeshire County Council,03-Oct-19,51301098880,"-2,977.44",DECOY FARM,CARE ESTABLISHMENT,LD - East Locality - Cost of Care,LD - East Cambs - Special Needs,Residential Care
Cambridgeshire County Council,03-Oct-19,51301196751,"-2,977.44",DECOY FARM,CARE ESTABLISHMENT,LD - East Locality - Cost of Care,LD - East Cambs - Special Needs,Residential Care
Cambridgeshire County Council,03-Oct-19,51300981310,"-2,977.44",DECOY FARM,CARE ESTABLISHMENT,LD - East Locality - Cost of Care,LD - East Cambs - Special Needs,Residential Care
Cambridgeshire County Council,03-Oct-19,51300972991,"-2,977.44",DECOY FARM,CARE ESTABLISHMENT,LD - East Locality - Cost of Care,LD - East Cambs - Special Needs,Residential Care
Cambridgeshire County Council,03-Oct-19,51301086651,"-2,977.44",DECOY FARM,CARE ESTABLISHMENT,LD - East Locality - Cost of Care,LD - East Cambs - Special Needs,Residential Care
Cambridgeshire County Council,03-Oct-19,51301196756,"-2,977.44",DECOY FARM,CARE ESTABLISHMENT,LD - East Locality - Cost of Care,LD - East Cambs - Special Needs,Residential Care
Cambridgeshire County Council,03-Oct-19,51301146636,"-2,977.44",DECOY FARM,CARE ESTABLISHMENT,LD - East Locality - Cost of Care,LD - East Cambs - Special Needs,Residential Care
Cambridgeshire County Council,03-Oct-19,51301033213,"-2,977.44",DECOY FARM,CARE ESTABLISHMENT,LD - East Locality - Cost of Care,LD - East Cambs - Special Needs,Residential Care
Cambridgeshire County Council,03-Oct-19,51300917213,"-2,977.44",DECOY FARM,CARE ESTABLISHMENT,LD - East Locality - Cost of Care,LD - East Cambs - Special Needs,Residential Care
Cambridgeshire County Council,03-Oct-19,51300845167,"-2,977.44",DECOY FARM,CARE ESTABLISHMENT,LD - East Locality - Cost of Care,LD - East Cambs - Special Needs,Residential Care
Cambridgeshire County Council,03-Oct-19,51300972959,"-2,977.44",DECOY FARM,CARE ESTABLISHMENT,LD - East Locality - Cost of Care,LD - East Cambs - Special Needs,Residential Care
Cambridgeshire County Council,03-Oct-19,51301043787,"-2,977.44",DECOY FARM,CARE ESTABLISHMENT,LD - East Locality - Cost of Care,LD - East Cambs - Special Needs,Residential Care
Cambridgeshire County Council,03-Oct-19,51301043706,"-2,977.44",DECOY FARM,CARE ESTABLISHMENT,LD - East Locality - Cost of Care,LD - East Cambs - Special Needs,Residential Care
Cambridgeshire County Council,03-Oct-19,51301196732,"-2,977.44",DECOY FARM,CARE ESTABLISHMENT,LD - East Locality - Cost of Care,LD - East Cambs - Special Needs,Residential Care
Cambridgeshire County Council,03-Oct-19,51301135261,"-2,977.44",DECOY FARM,CARE ESTABLISHMENT,LD - East Locality - Cost of Care,LD - East Cambs - Special Needs,Residential Care
Cambridgeshire County Council,03-Oct-19,51300917203,"-2,977.44",DECOY FARM,CARE ESTABLISHMENT,LD - East Locality - Cost of Care,LD - East Cambs - Special Needs,Residential Care
Cambridgeshire County Council,03-Oct-19,51301124197,"-2,977.44",DECOY FARM,CARE ESTABLISHMENT,LD - East Locality - Cost of Care,LD - East Cambs - Special Needs,Residential Care
Cambridgeshire County Council,03-Oct-19,51301146610,"-2,977.44",DECOY FARM,CARE ESTABLISHMENT,LD - East Locality - Cost of Care,LD - East Cambs - Special Needs,Residential Care
Cambridgeshire County Council,03-Oct-19,51301196787,"-2,977.44",DECOY FARM,CARE ESTABLISHMENT,LD - East Locality - Cost of Care,LD - East Cambs - Special Needs,Residential Care
Cambridgeshire County Council,03-Oct-19,51301086747,"-2,977.44",DECOY FARM,CARE ESTABLISHMENT,LD - East Locality - Cost of Care,LD - East Cambs - Special Needs,Residential Care
Cambridgeshire County Council,03-Oct-19,51301135252,"-2,977.44",DECOY FARM,CARE ESTABLISHMENT,LD - East Locality - Cost of Care,LD - East Cambs - Special Needs,Residential Care
Cambridgeshire County Council,03-Oct-19,51300981216,"-2,977.44",DECOY FARM,CARE ESTABLISHMENT,LD - East Locality - Cost of Care,LD - East Cambs - Special Needs,Residential Care
Cambridgeshire County Council,03-Oct-19,51300981232,"-2,977.44",DECOY FARM,CARE ESTABLISHMENT,LD - East Locality - Cost of Care,LD - East Cambs - Special Needs,Residential Care
Cambridgeshire County Council,03-Oct-19,51301014006,"-2,977.44",DECOY FARM,CARE ESTABLISHMENT,LD - East Locality - Cost of Care,LD - East Cambs - Special Needs,Residential Care
Cambridgeshire County Council,03-Oct-19,51301033335,"-2,977.44",DECOY FARM,CARE ESTABLISHMENT,LD - East Locality - Cost of Care,LD - East Cambs - Special Needs,Residential Care
Cambridgeshire County Council,03-Oct-19,51301023476,"-2,977.44",DECOY FARM,CARE ESTABLISHMENT,LD - East Locality - Cost of Care,LD - East Cambs - Special Needs,Residential Care
Cambridgeshire County Council,03-Oct-19,51300845098,"-2,977.44",DECOY FARM,CARE ESTABLISHMENT,LD - East Locality - Cost of Care,LD - East Cambs - Special Needs,Residential Care
Cambridgeshire County Council,03-Oct-19,51300956594,"-2,977.44",DECOY FARM,CARE ESTABLISHMENT,LD - East Locality - Cost of Care,LD - East Cambs - Special Needs,Residential Care
Cambridgeshire County Council,03-Oct-19,51300813325,"-2,977.44",DECOY FARM,CARE ESTABLISHMENT,LD - East Locality - Cost of Care,LD - East Cambs - Special Needs,Residential Care
Cambridgeshire County Council,03-Oct-19,51300981241,"-2,977.44",DECOY FARM,CARE ESTABLISHMENT,LD - East Locality - Cost of Care,LD - East Cambs - Special Needs,Residential Care
Cambridgeshire County Council,03-Oct-19,51301014064,"-2,977.44",DECOY FARM,CARE ESTABLISHMENT,LD - East Locality - Cost of Care,LD - East Cambs - Special Needs,Residential Care
Cambridgeshire County Council,03-Oct-19,51300981255,"-2,977.44",DECOY FARM,CARE ESTABLISHMENT,LD - East Locality - Cost of Care,LD - East Cambs - Special Needs,Residential Care
Cambridgeshire County Council,03-Oct-19,51300907754,"-2,977.44",DECOY FARM,CARE ESTABLISHMENT,LD - East Locality - Cost of Care,LD - East Cambs - Special Needs,Residential Care
Cambridgeshire County Council,03-Oct-19,51301135241,"-2,977.44",DECOY FARM,CARE ESTABLISHMENT,LD - East Locality - Cost of Care,LD - East Cambs - Special Needs,Residential Care
Cambridgeshire County Council,03-Oct-19,51300956604,"-2,977.44",DECOY FARM,CARE ESTABLISHMENT,LD - East Locality - Cost of Care,LD - East Cambs - Special Needs,Residential Care
Cambridgeshire County Council,03-Oct-19,51300956573,"-2,977.44",DECOY FARM,CARE ESTABLISHMENT,LD - East Locality - Cost of Care,LD - East Cambs - Special Needs,Residential Care
Cambridgeshire County Council,03-Oct-19,51300907878,"-2,977.44",DECOY FARM,CARE ESTABLISHMENT,LD - East Locality - Cost of Care,LD - East Cambs - Special Needs,Residential Care
Cambridgeshire County Council,03-Oct-19,51300813329,"-2,977.44",DECOY FARM,CARE ESTABLISHMENT,LD - East Locality - Cost of Care,LD - East Cambs - Special Needs,Residential Care
Cambridgeshire County Council,03-Oct-19,51301023564,"-2,977.44",DECOY FARM,CARE ESTABLISHMENT,LD - East Locality - Cost of Care,LD - East Cambs - Special Needs,Residential Care
Cambridgeshire County Council,03-Oct-19,51301033272,"-2,977.44",DECOY FARM,CARE ESTABLISHMENT,LD - East Locality - Cost of Care,LD - East Cambs - Special Needs,Residential Care
Cambridgeshire County Council,03-Oct-19,51301189814,"-2,977.44",DECOY FARM,CARE ESTABLISHMENT,LD - East Locality - Cost of Care,LD - East Cambs - Special Needs,Residential Care
Cambridgeshire County Council,03-Oct-19,51301146593,"-2,977.44",DECOY FARM,CARE ESTABLISHMENT,LD - East Locality - Cost of Care,LD - East Cambs - Special Needs,Residential Care
Cambridgeshire County Council,03-Oct-19,51301043737,"-2,977.44",DECOY FARM,CARE ESTABLISHMENT,LD - East Locality - Cost of Care,LD - East Cambs - Special Needs,Residential Care
Cambridgeshire County Council,03-Oct-19,51300854182,"-2,977.44",DECOY FARM,CARE ESTABLISHMENT,LD - East Locality - Cost of Care,LD - East Cambs - Special Needs,Residential Care
Cambridgeshire County Council,03-Oct-19,51301098784,"-2,977.44",DECOY FARM,CARE ESTABLISHMENT,LD - East Locality - Cost of Care,LD - East Cambs - Special Needs,Residential Care
Cambridgeshire County Council,03-Oct-19,51301146568,"-2,977.44",DECOY FARM,CARE ESTABLISHMENT,LD - East Locality - Cost of Care,LD - East Cambs - Special Needs,Residential Care
Cambridgeshire County Council,03-Oct-19,51300845153,"-2,977.44",DECOY FARM,CARE ESTABLISHMENT,LD - East Locality - Cost of Care,LD - East Cambs - Special Needs,Residential Care
Cambridgeshire County Council,03-Oct-19,51300813276,"-2,977.44",DECOY FARM,CARE ESTABLISHMENT,LD - East Locality - Cost of Care,LD - East Cambs - Special Needs,Residential Care
Cambridgeshire County Council,03-Oct-19,51301043820,"-2,977.44",DECOY FARM,CARE ESTABLISHMENT,LD - East Locality - Cost of Care,LD - East Cambs - Special Needs,Residential Care
Cambridgeshire County Council,03-Oct-19,51301086707,"-2,977.44",DECOY FARM,CARE ESTABLISHMENT,LD - East Locality - Cost of Care,LD - East Cambs - Special Needs,Residential Care
Cambridgeshire County Council,03-Oct-19,51301098869,"-2,977.44",DECOY FARM,CARE ESTABLISHMENT,LD - East Locality - Cost of Care,LD - East Cambs - Special Needs,Residential Care
Cambridgeshire County Council,03-Oct-19,51301146644,"-2,977.44",DECOY FARM,CARE ESTABLISHMENT,LD - East Locality - Cost of Care,LD - East Cambs - Special Needs,Residential Care
Cambridgeshire County Council,03-Oct-19,51300981190,"-2,977.44",DECOY FARM,CARE ESTABLISHMENT,LD - East Locality - Cost of Care,LD - East Cambs - Special Needs,Residential Care
Cambridgeshire County Council,03-Oct-19,51300973008,"-2,977.44",DECOY FARM,CARE ESTABLISHMENT,LD - East Locality - Cost of Care,LD - East Cambs - Special Needs,Residential Care
Cambridgeshire County Council,03-Oct-19,51301146629,"-2,977.44",DECOY FARM,CARE ESTABLISHMENT,LD - East Locality - Cost of Care,LD - East Cambs - Special Needs,Residential Care
Cambridgeshire County Council,03-Oct-19,51301146570,"-2,977.44",DECOY FARM,CARE ESTABLISHMENT,LD - East Locality - Cost of Care,LD - East Cambs - Special Needs,Residential Care
Cambridgeshire County Council,03-Oct-19,51300956527,"-2,977.44",DECOY FARM,CARE ESTABLISHMENT,LD - East Locality - Cost of Care,LD - East Cambs - Special Needs,Residential Care
Cambridgeshire County Council,03-Oct-19,51301196741,"-2,977.44",DECOY FARM,CARE ESTABLISHMENT,LD - East Locality - Cost of Care,LD - East Cambs - Special Needs,Residential Care
Cambridgeshire County Council,03-Oct-19,51301135318,"-2,977.44",DECOY FARM,CARE ESTABLISHMENT,LD - East Locality - Cost of Care,LD - East Cambs - Special Needs,Residential Care
Cambridgeshire County Council,03-Oct-19,51301043752,"-2,977.44",DECOY FARM,CARE ESTABLISHMENT,LD - East Locality - Cost of Care,LD - East Cambs - Special Needs,Residential Care
Cambridgeshire County Council,03-Oct-19,51301098783,"-2,977.44",DECOY FARM,CARE ESTABLISHMENT,LD - East Locality - Cost of Care,LD - East Cambs - Special Needs,Residential Care
Cambridgeshire County Council,03-Oct-19,51300813257,"-2,977.44",DECOY FARM,CARE ESTABLISHMENT,LD - East Locality - Cost of Care,LD - East Cambs - Special Needs,Residential Care
Cambridgeshire County Council,03-Oct-19,51300854248,"-2,977.44",DECOY FARM,CARE ESTABLISHMENT,LD - East Locality - Cost of Care,LD - East Cambs - Special Needs,Residential Care
Cambridgeshire County Council,03-Oct-19,51300813196,"-2,977.44",DECOY FARM,CARE ESTABLISHMENT,LD - East Locality - Cost of Care,LD - East Cambs - Special Needs,Residential Care
Cambridgeshire County Council,03-Oct-19,51300845236,"-2,977.44",DECOY FARM,CARE ESTABLISHMENT,LD - East Locality - Cost of Care,LD - East Cambs - Special Needs,Residential Care
Cambridgeshire County Council,03-Oct-19,51301014038,"-2,977.44",DECOY FARM,CARE ESTABLISHMENT,LD - East Locality - Cost of Care,LD - East Cambs - Special Needs,Residential Care
Cambridgeshire County Council,03-Oct-19,51301043827,"-2,977.44",DECOY FARM,CARE ESTABLISHMENT,LD - East Locality - Cost of Care,LD - East Cambs - Special Needs,Residential Care
Cambridgeshire County Council,03-Oct-19,51301067004,"-2,977.44",DECOY FARM,CARE ESTABLISHMENT,LD - East Locality - Cost of Care,LD - East Cambs - Special Needs,Residential Care
Cambridgeshire County Council,03-Oct-19,51300990586,"-2,977.44",DECOY FARM,CARE ESTABLISHMENT,LD - East Locality - Cost of Care,LD - East Cambs - Special Needs,Residential Care
Cambridgeshire County Council,03-Oct-19,51300990606,"-2,977.44",DECOY FARM,CARE ESTABLISHMENT,LD - East Locality - Cost of Care,LD - East Cambs - Special Needs,Residential Care
Cambridgeshire County Council,03-Oct-19,51301023598,"-2,977.44",DECOY FARM,CARE ESTABLISHMENT,LD - East Locality - Cost of Care,LD - East Cambs - Special Needs,Residential Care
Cambridgeshire County Council,03-Oct-19,51300871766,"-2,977.44",DECOY FARM,CARE ESTABLISHMENT,LD - East Locality - Cost of Care,LD - East Cambs - Special Needs,Residential Care
Cambridgeshire County Council,03-Oct-19,51301196655,"-2,977.44",DECOY FARM,CARE ESTABLISHMENT,LD - East Locality - Cost of Care,LD - East Cambs - Special Needs,Residential Care
Cambridgeshire County Council,03-Oct-19,51301124283,"-2,977.44",DECOY FARM,CARE ESTABLISHMENT,LD - East Locality - Cost of Care,LD - East Cambs - Special Needs,Residential Care
Cambridgeshire County Council,03-Oct-19,51301098755,"-2,977.44",DECOY FARM,CARE ESTABLISHMENT,LD - East Locality - Cost of Care,LD - East Cambs - Special Needs,Residential Care
Cambridgeshire County Council,03-Oct-19,51301078183,"-2,977.44",DECOY FARM,CARE ESTABLISHMENT,LD - East Locality - Cost of Care,LD - East Cambs - Special Needs,Residential Care
Cambridgeshire County Council,03-Oct-19,51300897864,"-2,977.44",DECOY FARM,CARE ESTABLISHMENT,LD - East Locality - Cost of Care,LD - East Cambs - Special Needs,Residential Care
Cambridgeshire County Council,03-Oct-19,51300897902,"-2,977.44",DECOY FARM,CARE ESTABLISHMENT,LD - East Locality - Cost of Care,LD - East Cambs - Special Needs,Residential Care
Cambridgeshire County Council,03-Oct-19,51300871868,"-2,977.44",DECOY FARM,CARE ESTABLISHMENT,LD - East Locality - Cost of Care,LD - East Cambs - Special Needs,Residential Care
Cambridgeshire County Council,03-Oct-19,51301066925,"-2,977.44",DECOY FARM,CARE ESTABLISHMENT,LD - East Locality - Cost of Care,LD - East Cambs - Special Needs,Residential Care
Cambridgeshire County Council,03-Oct-19,51301043839,"-2,977.44",DECOY FARM,CARE ESTABLISHMENT,LD - East Locality - Cost of Care,LD - East Cambs - Special Needs,Residential Care
Cambridgeshire County Council,03-Oct-19,51301098774,"-2,977.44",DECOY FARM,CARE ESTABLISHMENT,LD - East Locality - Cost of Care,LD - East Cambs - Special Needs,Residential Care
Cambridgeshire County Council,03-Oct-19,51301124236,"-2,977.44",DECOY FARM,CARE ESTABLISHMENT,LD - East Locality - Cost of Care,LD - East Cambs - Special Needs,Residential Care
Cambridgeshire County Council,03-Oct-19,51301179565,"-2,977.44",DECOY FARM,CARE ESTABLISHMENT,LD - East Locality - Cost of Care,LD - East Cambs - Special Needs,Residential Care
Cambridgeshire County Council,03-Oct-19,51301179588,"-2,977.44",DECOY FARM,CARE ESTABLISHMENT,LD - East Locality - Cost of Care,LD - East Cambs - Special Needs,Residential Care
Cambridgeshire County Council,03-Oct-19,51301189729,"-2,977.44",DECOY FARM,CARE ESTABLISHMENT,LD - East Locality - Cost of Care,LD - East Cambs - Special Needs,Residential Care
Cambridgeshire County Council,03-Oct-19,51301033334,"-2,977.44",DECOY FARM,CARE ESTABLISHMENT,LD - East Locality - Cost of Care,LD - East Cambs - Special Needs,Residential Care
Cambridgeshire County Council,03-Oct-19,51301146553,"-2,977.44",DECOY FARM,CARE ESTABLISHMENT,LD - East Locality - Cost of Care,LD - East Cambs - Special Needs,Residential Care
Cambridgeshire County Council,03-Oct-19,51300854221,"-2,977.44",DECOY FARM,CARE ESTABLISHMENT,LD - East Locality - Cost of Care,LD - East Cambs - Special Needs,Residential Care
Cambridgeshire County Council,03-Oct-19,51300938618,"-2,977.44",DECOY FARM,CARE ESTABLISHMENT,LD - East Locality - Cost of Care,LD - East Cambs - Special Needs,Residential Care
Cambridgeshire County Council,03-Oct-19,51300813303,"-2,977.44",DECOY FARM,CARE ESTABLISHMENT,LD - East Locality - Cost of Care,LD - East Cambs - Special Needs,Residential Care
Cambridgeshire County Council,03-Oct-19,51301014010,"-2,977.44",DECOY FARM,CARE ESTABLISHMENT,LD - East Locality - Cost of Care,LD - East Cambs - Special Needs,Residential Care
Cambridgeshire County Council,03-Oct-19,51300864462,"-2,977.44",DECOY FARM,CARE ESTABLISHMENT,LD - East Locality - Cost of Care,LD - East Cambs - Special Needs,Residential Care
Cambridgeshire County Council,03-Oct-19,51300990642,"-2,977.44",DECOY FARM,CARE ESTABLISHMENT,LD - East Locality - Cost of Care,LD - East Cambs - Special Needs,Residential Care
Cambridgeshire County Council,03-Oct-19,51301146528,"-2,977.44",DECOY FARM,CARE ESTABLISHMENT,LD - East Locality - Cost of Care,LD - East Cambs - Special Needs,Residential Care
Cambridgeshire County Council,03-Oct-19,51300972973,"-2,977.44",DECOY FARM,CARE ESTABLISHMENT,LD - East Locality - Cost of Care,LD - East Cambs - Special Needs,Residential Care
Cambridgeshire County Council,03-Oct-19,51300938612,"-2,977.44",DECOY FARM,CARE ESTABLISHMENT,LD - East Locality - Cost of Care,LD - East Cambs - Special Needs,Residential Care
Cambridgeshire County Council,03-Oct-19,51301179634,"-2,977.44",DECOY FARM,CARE ESTABLISHMENT,LD - East Locality - Cost of Care,LD - East Cambs - Special Needs,Residential Care
Cambridgeshire County Council,03-Oct-19,51300907809,"-2,977.44",DECOY FARM,CARE ESTABLISHMENT,LD - East Locality - Cost of Care,LD - East Cambs - Special Needs,Residential Care
Cambridgeshire County Council,03-Oct-19,51301067028,"-2,977.44",DECOY FARM,CARE ESTABLISHMENT,LD - East Locality - Cost of Care,LD - East Cambs - Special Needs,Residential Care
Cambridgeshire County Council,03-Oct-19,51301086679,"-2,977.44",DECOY FARM,CARE ESTABLISHMENT,LD - East Locality - Cost of Care,LD - East Cambs - Special Needs,Residential Care
Cambridgeshire County Council,03-Oct-19,51301023541,"-2,977.44",DECOY FARM,CARE ESTABLISHMENT,LD - East Locality - Cost of Care,LD - East Cambs - Special Needs,Residential Care
Cambridgeshire County Council,03-Oct-19,51301146663,"-2,977.44",DECOY FARM,CARE ESTABLISHMENT,LD - East Locality - Cost of Care,LD - East Cambs - Special Needs,Residential Care
Cambridgeshire County Council,03-Oct-19,51300990723,"-2,977.44",DECOY FARM,CARE ESTABLISHMENT,LD - East Locality - Cost of Care,LD - East Cambs - Special Needs,Residential Care
Cambridgeshire County Council,03-Oct-19,51300813284,"-2,977.44",DECOY FARM,CARE ESTABLISHMENT,LD - East Locality - Cost of Care,LD - East Cambs - Special Needs,Residential Care
Cambridgeshire County Council,03-Oct-19,51300897809,"-2,977.44",DECOY FARM,CARE ESTABLISHMENT,LD - East Locality - Cost of Care,LD - East Cambs - Special Needs,Residential Care
Cambridgeshire County Council,03-Oct-19,51300864526,"-2,977.44",DECOY FARM,CARE ESTABLISHMENT,LD - East Locality - Cost of Care,LD - East Cambs - Special Needs,Residential Care
Cambridgeshire County Council,03-Oct-19,51300854323,"-2,977.44",DECOY FARM,CARE ESTABLISHMENT,LD - East Locality - Cost of Care,LD - East Cambs - Special Needs,Residential Care
Cambridgeshire County Council,03-Oct-19,51300854269,"-2,977.44",DECOY FARM,CARE ESTABLISHMENT,LD - East Locality - Cost of Care,LD - East Cambs - Special Needs,Residential Care
Cambridgeshire County Council,03-Oct-19,51301014078,"-2,977.44",DECOY FARM,CARE ESTABLISHMENT,LD - East Locality - Cost of Care,LD - East Cambs - Special Needs,Residential Care
Cambridgeshire County Council,03-Oct-19,51301014055,"-2,977.44",DECOY FARM,CARE ESTABLISHMENT,LD - East Locality - Cost of Care,LD - East Cambs - Special Needs,Residential Care
Cambridgeshire County Council,03-Oct-19,51301014140,"-2,977.44",DECOY FARM,CARE ESTABLISHMENT,LD - East Locality - Cost of Care,LD - East Cambs - Special Needs,Residential Care
Cambridgeshire County Council,03-Oct-19,51300854229,"-2,977.44",DECOY FARM,CARE ESTABLISHMENT,LD - East Locality - Cost of Care,LD - East Cambs - Special Needs,Residential Care
Cambridgeshire County Council,03-Oct-19,51301196700,"-2,977.44",DECOY FARM,CARE ESTABLISHMENT,LD - East Locality - Cost of Care,LD - East Cambs - Special Needs,Residential Care
Cambridgeshire County Council,03-Oct-19,51301146605,"-2,977.44",DECOY FARM,CARE ESTABLISHMENT,LD - East Locality - Cost of Care,LD - East Cambs - Special Needs,Residential Care
Cambridgeshire County Council,03-Oct-19,51301067000,"-2,977.44",DECOY FARM,CARE ESTABLISHMENT,LD - East Locality - Cost of Care,LD - East Cambs - Special Needs,Residential Care
Cambridgeshire County Council,03-Oct-19,51300813345,"-2,977.44",DECOY FARM,CARE ESTABLISHMENT,LD - East Locality - Cost of Care,LD - East Cambs - Special Needs,Residential Care
Cambridgeshire County Council,03-Oct-19,51300813321,"-2,977.44",DECOY FARM,CARE ESTABLISHMENT,LD - East Locality - Cost of Care,LD - East Cambs - Special Needs,Residential Care
Cambridgeshire County Council,03-Oct-19,51300854251,"-2,977.44",DECOY FARM,CARE ESTABLISHMENT,LD - East Locality - Cost of Care,LD - East Cambs - Special Needs,Residential Care
Cambridgeshire County Council,03-Oct-19,51301023560,"-2,977.44",DECOY FARM,CARE ESTABLISHMENT,LD - East Locality - Cost of Care,LD - East Cambs - Special Needs,Residential Care
Cambridgeshire County Council,03-Oct-19,51301043700,"-2,977.44",DECOY FARM,CARE ESTABLISHMENT,LD - East Locality - Cost of Care,LD - East Cambs - Special Needs,Residential Care
Cambridgeshire County Council,03-Oct-19,51301098780,"-2,977.44",DECOY FARM,CARE ESTABLISHMENT,LD - East Locality - Cost of Care,LD - East Cambs - Special Needs,Residential Care
Cambridgeshire County Council,03-Oct-19,51301179632,"-2,977.44",DECOY FARM,CARE ESTABLISHMENT,LD - East Locality - Cost of Care,LD - East Cambs - Special Needs,Residential Care
Cambridgeshire County Council,03-Oct-19,51301146660,"-2,977.44",DECOY FARM,CARE ESTABLISHMENT,LD - East Locality - Cost of Care,LD - East Cambs - Special Needs,Residential Care
Cambridgeshire County Council,03-Oct-19,51301014133,"-2,977.44",DECOY FARM,CARE ESTABLISHMENT,LD - East Locality - Cost of Care,LD - East Cambs - Special Needs,Residential Care
Cambridgeshire County Council,03-Oct-19,51300845189,"-2,977.44",DECOY FARM,CARE ESTABLISHMENT,LD - East Locality - Cost of Care,LD - East Cambs - Special Needs,Residential Care
Cambridgeshire County Council,03-Oct-19,51300917214,"-2,977.44",DECOY FARM,CARE ESTABLISHMENT,LD - East Locality - Cost of Care,LD - East Cambs - Special Needs,Residential Care
Cambridgeshire County Council,03-Oct-19,51300897812,"-2,977.44",DECOY FARM,CARE ESTABLISHMENT,LD - East Locality - Cost of Care,LD - East Cambs - Special Needs,Residential Care
Cambridgeshire County Council,03-Oct-19,51301135209,"-2,977.44",DECOY FARM,CARE ESTABLISHMENT,LD - East Locality - Cost of Care,LD - East Cambs - Special Needs,Residential Care
Cambridgeshire County Council,03-Oct-19,51301146623,"-2,977.44",DECOY FARM,CARE ESTABLISHMENT,LD - East Locality - Cost of Care,LD - East Cambs - Special Needs,Residential Care
Cambridgeshire County Council,03-Oct-19,51301179470,"-2,977.44",DECOY FARM,CARE ESTABLISHMENT,LD - East Locality - Cost of Care,LD - East Cambs - Special Needs,Residential Care
Cambridgeshire County Council,03-Oct-19,51300871898,"-2,977.44",DECOY FARM,CARE ESTABLISHMENT,LD - East Locality - Cost of Care,LD - East Cambs - Special Needs,Residential Care
Cambridgeshire County Council,03-Oct-19,51301196686,"-2,977.44",DECOY FARM,CARE ESTABLISHMENT,LD - East Locality - Cost of Care,LD - East Cambs - Special Needs,Residential Care
Cambridgeshire County Council,03-Oct-19,51301196762,"-2,977.44",DECOY FARM,CARE ESTABLISHMENT,LD - East Locality - Cost of Care,LD - East Cambs - Special Needs,Residential Care
Cambridgeshire County Council,03-Oct-19,51301086725,"-2,977.44",DECOY FARM,CARE ESTABLISHMENT,LD - East Locality - Cost of Care,LD - East Cambs - Special Needs,Residential Care
Cambridgeshire County Council,03-Oct-19,51300981183,"-2,977.44",DECOY FARM,CARE ESTABLISHMENT,LD - East Locality - Cost of Care,LD - East Cambs - Special Needs,Residential Care
Cambridgeshire County Council,03-Oct-19,51301043799,"-2,977.44",DECOY FARM,CARE ESTABLISHMENT,LD - East Locality - Cost of Care,LD - East Cambs - Special Needs,Residential Care
Cambridgeshire County Council,03-Oct-19,51301014047,"-2,977.44",DECOY FARM,CARE ESTABLISHMENT,LD - East Locality - Cost of Care,LD - East Cambs - Special Needs,Residential Care
Cambridgeshire County Council,03-Oct-19,51300938610,"-2,977.44",DECOY FARM,CARE ESTABLISHMENT,LD - East Locality - Cost of Care,LD - East Cambs - Special Needs,Residential Care
Cambridgeshire County Council,03-Oct-19,51300917259,"-2,977.44",DECOY FARM,CARE ESTABLISHMENT,LD - East Locality - Cost of Care,LD - East Cambs - Special Needs,Residential Care
Cambridgeshire County Council,03-Oct-19,51300981303,"-2,977.44",DECOY FARM,CARE ESTABLISHMENT,LD - East Locality - Cost of Care,LD - East Cambs - Special Needs,Residential Care
Cambridgeshire County Council,03-Oct-19,51300813304,"-2,977.44",DECOY FARM,CARE ESTABLISHMENT,LD - East Locality - Cost of Care,LD - East Cambs - Special Needs,Residential Care
Cambridgeshire County Council,03-Oct-19,51301014085,"-2,977.44",DECOY FARM,CARE ESTABLISHMENT,LD - East Locality - Cost of Care,LD - East Cambs - Special Needs,Residential Care
Cambridgeshire County Council,03-Oct-19,51301043797,"-2,977.44",DECOY FARM,CARE ESTABLISHMENT,LD - East Locality - Cost of Care,LD - East Cambs - Special Needs,Residential Care
Cambridgeshire County Council,03-Oct-19,51301023660,"-2,977.44",DECOY FARM,CARE ESTABLISHMENT,LD - East Locality - Cost of Care,LD - East Cambs - Special Needs,Residential Care
Cambridgeshire County Council,03-Oct-19,51300981225,"-2,977.44",DECOY FARM,CARE ESTABLISHMENT,LD - East Locality - Cost of Care,LD - East Cambs - Special Needs,Residential Care
Cambridgeshire County Council,03-Oct-19,51300981253,"-2,977.44",DECOY FARM,CARE ESTABLISHMENT,LD - East Locality - Cost of Care,LD - East Cambs - Special Needs,Residential Care
Cambridgeshire County Council,03-Oct-19,51301098871,"-2,977.44",DECOY FARM,CARE ESTABLISHMENT,LD - East Locality - Cost of Care,LD - East Cambs - Special Needs,Residential Care
Cambridgeshire County Council,03-Oct-19,51301179486,"-2,977.44",DECOY FARM,CARE ESTABLISHMENT,LD - East Locality - Cost of Care,LD - East Cambs - Special Needs,Residential Care
Cambridgeshire County Council,03-Oct-19,51300897931,"-2,977.44",DECOY FARM,CARE ESTABLISHMENT,LD - East Locality - Cost of Care,LD - East Cambs - Special Needs,Residential Care
Cambridgeshire County Council,03-Oct-19,51301146549,"-2,977.44",DECOY FARM,CARE ESTABLISHMENT,LD - East Locality - Cost of Care,LD - East Cambs - Special Needs,Residential Care
Cambridgeshire County Council,03-Oct-19,51301179625,"-2,977.44",DECOY FARM,CARE ESTABLISHMENT,LD - East Locality - Cost of Care,LD - East Cambs - Special Needs,Residential Care
Cambridgeshire County Council,03-Oct-19,51301043786,"-2,977.44",DECOY FARM,CARE ESTABLISHMENT,LD - East Locality - Cost of Care,LD - East Cambs - Special Needs,Residential Care
Cambridgeshire County Council,03-Oct-19,51301067043,"-2,977.44",DECOY FARM,CARE ESTABLISHMENT,LD - East Locality - Cost of Care,LD - East Cambs - Special Needs,Residential Care
Cambridgeshire County Council,03-Oct-19,51301066910,"-2,977.44",DECOY FARM,CARE ESTABLISHMENT,LD - East Locality - Cost of Care,LD - East Cambs - Special Needs,Residential Care
Cambridgeshire County Council,03-Oct-19,51300938628,"-2,977.44",DECOY FARM,CARE ESTABLISHMENT,LD - East Locality - Cost of Care,LD - East Cambs - Special Needs,Residential Care
Cambridgeshire County Council,03-Oct-19,51301196736,"-2,977.44",DECOY FARM,CARE ESTABLISHMENT,LD - East Locality - Cost of Care,LD - East Cambs - Special Needs,Residential Care
Cambridgeshire County Council,03-Oct-19,51300813260,"-2,977.44",DECOY FARM,CARE ESTABLISHMENT,LD - East Locality - Cost of Care,LD - East Cambs - Special Needs,Residential Care
Cambridgeshire County Council,03-Oct-19,51300845226,"-2,977.44",DECOY FARM,CARE ESTABLISHMENT,LD - East Locality - Cost of Care,LD - East Cambs - Special Needs,Residential Care
Cambridgeshire County Council,03-Oct-19,51301135274,"-2,977.44",DECOY FARM,CARE ESTABLISHMENT,LD - East Locality - Cost of Care,LD - East Cambs - Special Needs,Residential Care
Cambridgeshire County Council,03-Oct-19,51301033302,"-2,977.44",DECOY FARM,CARE ESTABLISHMENT,LD - East Locality - Cost of Care,LD - East Cambs - Special Needs,Residential Care
Cambridgeshire County Council,03-Oct-19,51301146611,"-2,977.44",DECOY FARM,CARE ESTABLISHMENT,LD - East Locality - Cost of Care,LD - East Cambs - Special Needs,Residential Care
Cambridgeshire County Council,03-Oct-19,51301033252,"-2,977.44",DECOY FARM,CARE ESTABLISHMENT,LD - East Locality - Cost of Care,LD - East Cambs - Special Needs,Residential Care
Cambridgeshire County Council,03-Oct-19,51300917265,"-2,977.44",DECOY FARM,CARE ESTABLISHMENT,LD - East Locality - Cost of Care,LD - East Cambs - Special Needs,Residential Care
Cambridgeshire County Council,03-Oct-19,51300897908,"-2,977.44",DECOY FARM,CARE ESTABLISHMENT,LD - East Locality - Cost of Care,LD - East Cambs - Special Needs,Residential Care
Cambridgeshire County Council,03-Oct-19,51300956588,"-2,977.44",DECOY FARM,CARE ESTABLISHMENT,LD - East Locality - Cost of Care,LD - East Cambs - Special Needs,Residential Care
Cambridgeshire County Council,03-Oct-19,51301043701,"-2,977.44",DECOY FARM,CARE ESTABLISHMENT,LD - East Locality - Cost of Care,LD - East Cambs - Special Needs,Residential Care
Cambridgeshire County Council,03-Oct-19,51301078246,"-2,977.44",DECOY FARM,CARE ESTABLISHMENT,LD - East Locality - Cost of Care,LD - East Cambs - Special Needs,Residential Care
Cambridgeshire County Council,03-Oct-19,51301086757,"-2,977.44",DECOY FARM,CARE ESTABLISHMENT,LD - East Locality - Cost of Care,LD - East Cambs - Special Needs,Residential Care
Cambridgeshire County Council,03-Oct-19,51300897887,"-2,977.44",DECOY FARM,CARE ESTABLISHMENT,LD - East Locality - Cost of Care,LD - East Cambs - Special Needs,Residential Care
Cambridgeshire County Council,03-Oct-19,51300917279,"-2,977.44",DECOY FARM,CARE ESTABLISHMENT,LD - East Locality - Cost of Care,LD - East Cambs - Special Needs,Residential Care
Cambridgeshire County Council,03-Oct-19,51300938653,"-2,977.44",DECOY FARM,CARE ESTABLISHMENT,LD - East Locality - Cost of Care,LD - East Cambs - Special Needs,Residential Care
Cambridgeshire County Council,03-Oct-19,51301146606,"-2,977.44",DECOY FARM,CARE ESTABLISHMENT,LD - East Locality - Cost of Care,LD - East Cambs - Special Needs,Residential Care
Cambridgeshire County Council,03-Oct-19,51301086692,"-2,977.44",DECOY FARM,CARE ESTABLISHMENT,LD - East Locality - Cost of Care,LD - East Cambs - Special Needs,Residential Care
Cambridgeshire County Council,03-Oct-19,51300907817,"-2,977.44",DECOY FARM,CARE ESTABLISHMENT,LD - East Locality - Cost of Care,LD - East Cambs - Special Needs,Residential Care
Cambridgeshire County Council,03-Oct-19,51301078128,"-2,977.44",DECOY FARM,CARE ESTABLISHMENT,LD - East Locality - Cost of Care,LD - East Cambs - Special Needs,Residential Care
Cambridgeshire County Council,03-Oct-19,51301098800,"-2,977.44",DECOY FARM,CARE ESTABLISHMENT,LD - East Locality - Cost of Care,LD - East Cambs - Special Needs,Residential Care
Cambridgeshire County Council,03-Oct-19,51301098844,"-2,977.44",DECOY FARM,CARE ESTABLISHMENT,LD - East Locality - Cost of Care,LD - East Cambs - Special Needs,Residential Care
Cambridgeshire County Council,03-Oct-19,51301124223,"-2,977.44",DECOY FARM,CARE ESTABLISHMENT,LD - East Locality - Cost of Care,LD - East Cambs - Special Needs,Residential Care
Cambridgeshire County Council,03-Oct-19,51301146653,"-2,977.44",DECOY FARM,CARE ESTABLISHMENT,LD - East Locality - Cost of Care,LD - East Cambs - Special Needs,Residential Care
Cambridgeshire County Council,03-Oct-19,51300813320,"-2,977.44",DECOY FARM,CARE ESTABLISHMENT,LD - East Locality - Cost of Care,LD - East Cambs - Special Needs,Residential Care
Cambridgeshire County Council,03-Oct-19,51300897787,"-2,977.44",DECOY FARM,CARE ESTABLISHMENT,LD - East Locality - Cost of Care,LD - East Cambs - Special Needs,Residential Care
Cambridgeshire County Council,03-Oct-19,51300897788,"-2,977.44",DECOY FARM,CARE ESTABLISHMENT,LD - East Locality - Cost of Care,LD - East Cambs - Special Needs,Residential Care
Cambridgeshire County Council,03-Oct-19,51300845240,"-2,977.44",DECOY FARM,CARE ESTABLISHMENT,LD - East Locality - Cost of Care,LD - East Cambs - Special Needs,Residential Care
Cambridgeshire County Council,03-Oct-19,51301146665,"-2,977.44",DECOY FARM,CARE ESTABLISHMENT,LD - East Locality - Cost of Care,LD - East Cambs - Special Needs,Residential Care
Cambridgeshire County Council,03-Oct-19,51300845219,"-2,977.44",DECOY FARM,CARE ESTABLISHMENT,LD - East Locality - Cost of Care,LD - East Cambs - Special Needs,Residential Care
Cambridgeshire County Council,03-Oct-19,51300973041,"-2,977.44",DECOY FARM,CARE ESTABLISHMENT,LD - East Locality - Cost of Care,LD - East Cambs - Special Needs,Residential Care
Cambridgeshire County Council,03-Oct-19,51300897832,"-2,977.44",DECOY FARM,CARE ESTABLISHMENT,LD - East Locality - Cost of Care,LD - East Cambs - Special Needs,Residential Care
Cambridgeshire County Council,03-Oct-19,51300907748,"-2,977.44",DECOY FARM,CARE ESTABLISHMENT,LD - East Locality - Cost of Care,LD - East Cambs - Special Needs,Residential Care
Cambridgeshire County Council,03-Oct-19,51301086645,"-2,977.44",DECOY FARM,CARE ESTABLISHMENT,LD - East Locality - Cost of Care,LD - East Cambs - Special Needs,Residential Care
Cambridgeshire County Council,03-Oct-19,51301146557,"-2,977.44",DECOY FARM,CARE ESTABLISHMENT,LD - East Locality - Cost of Care,LD - East Cambs - Special Needs,Residential Care
Cambridgeshire County Council,03-Oct-19,51301179503,"-2,977.44",DECOY FARM,CARE ESTABLISHMENT,LD - East Locality - Cost of Care,LD - East Cambs - Special Needs,Residential Care
Cambridgeshire County Council,03-Oct-19,51301124207,"-2,977.44",DECOY FARM,CARE ESTABLISHMENT,LD - East Locality - Cost of Care,LD - East Cambs - Special Needs,Residential Care
Cambridgeshire County Council,03-Oct-19,51301179464,"-2,977.44",DECOY FARM,CARE ESTABLISHMENT,LD - East Locality - Cost of Care,LD - East Cambs - Special Needs,Residential Care
Cambridgeshire County Council,03-Oct-19,51300854279,"-2,977.44",DECOY FARM,CARE ESTABLISHMENT,LD - East Locality - Cost of Care,LD - East Cambs - Special Needs,Residential Care
Cambridgeshire County Council,03-Oct-19,51300917204,"-2,977.44",DECOY FARM,CARE ESTABLISHMENT,LD - East Locality - Cost of Care,LD - East Cambs - Special Needs,Residential Care
Cambridgeshire County Council,03-Oct-19,51300864548,"-2,977.44",DECOY FARM,CARE ESTABLISHMENT,LD - East Locality - Cost of Care,LD - East Cambs - Special Needs,Residential Care
Cambridgeshire County Council,03-Oct-19,51300845227,"-2,977.44",DECOY FARM,CARE ESTABLISHMENT,LD - East Locality - Cost of Care,LD - East Cambs - Special Needs,Residential Care
Cambridgeshire County Council,03-Oct-19,51300917181,"-2,977.44",DECOY FARM,CARE ESTABLISHMENT,LD - East Locality - Cost of Care,LD - East Cambs - Special Needs,Residential Care
Cambridgeshire County Council,03-Oct-19,51301014052,"-2,977.44",DECOY FARM,CARE ESTABLISHMENT,LD - East Locality - Cost of Care,LD - East Cambs - Special Needs,Residential Care
Cambridgeshire County Council,03-Oct-19,51300854217,"-2,977.44",DECOY FARM,CARE ESTABLISHMENT,LD - East Locality - Cost of Care,LD - East Cambs - Special Needs,Residential Care
Cambridgeshire County Council,03-Oct-19,51300864577,"-2,977.44",DECOY FARM,CARE ESTABLISHMENT,LD - East Locality - Cost of Care,LD - East Cambs - Special Needs,Residential Care
Cambridgeshire County Council,03-Oct-19,51300990677,"-2,977.44",DECOY FARM,CARE ESTABLISHMENT,LD - East Locality - Cost of Care,LD - East Cambs - Special Needs,Residential Care
Cambridgeshire County Council,03-Oct-19,51301078254,"-2,977.44",DECOY FARM,CARE ESTABLISHMENT,LD - East Locality - Cost of Care,LD - East Cambs - Special Needs,Residential Care
Cambridgeshire County Council,03-Oct-19,51301124154,"-2,977.44",DECOY FARM,CARE ESTABLISHMENT,LD - East Locality - Cost of Care,LD - East Cambs - Special Needs,Residential Care
Cambridgeshire County Council,03-Oct-19,51301179494,"-2,977.44",DECOY FARM,CARE ESTABLISHMENT,LD - East Locality - Cost of Care,LD - East Cambs - Special Needs,Residential Care
Cambridgeshire County Council,03-Oct-19,51301179497,"-2,977.44",DECOY FARM,CARE ESTABLISHMENT,LD - East Locality - Cost of Care,LD - East Cambs - Special Needs,Residential Care
Cambridgeshire County Council,03-Oct-19,51301135309,"-2,977.44",DECOY FARM,CARE ESTABLISHMENT,LD - East Locality - Cost of Care,LD - East Cambs - Special Needs,Residential Care
Cambridgeshire County Council,03-Oct-19,51301078232,"-2,977.44",DECOY FARM,CARE ESTABLISHMENT,LD - East Locality - Cost of Care,LD - East Cambs - Special Needs,Residential Care
Cambridgeshire County Council,03-Oct-19,51301098809,"-2,977.44",DECOY FARM,CARE ESTABLISHMENT,LD - East Locality - Cost of Care,LD - East Cambs - Special Needs,Residential Care
Cambridgeshire County Council,03-Oct-19,51300871869,"-2,977.44",DECOY FARM,CARE ESTABLISHMENT,LD - East Locality - Cost of Care,LD - East Cambs - Special Needs,Residential Care
Cambridgeshire County Council,03-Oct-19,51300990661,"-2,977.44",DECOY FARM,CARE ESTABLISHMENT,LD - East Locality - Cost of Care,LD - East Cambs - Special Needs,Residential Care
Cambridgeshire County Council,03-Oct-19,51301023545,"-2,977.44",DECOY FARM,CARE ESTABLISHMENT,LD - East Locality - Cost of Care,LD - East Cambs - Special Needs,Residential Care
Cambridgeshire County Council,03-Oct-19,51301043775,"-2,977.44",DECOY FARM,CARE ESTABLISHMENT,LD - East Locality - Cost of Care,LD - East Cambs - Special Needs,Residential Care
Cambridgeshire County Council,03-Oct-19,51301196763,"-2,977.44",DECOY FARM,CARE ESTABLISHMENT,LD - East Locality - Cost of Care,LD - East Cambs - Special Needs,Residential Care
Cambridgeshire County Council,03-Oct-19,51300845102,"-2,977.44",DECOY FARM,CARE ESTABLISHMENT,LD - East Locality - Cost of Care,LD - East Cambs - Special Needs,Residential Care
Cambridgeshire County Council,03-Oct-19,51301078139,"-2,977.44",DECOY FARM,CARE ESTABLISHMENT,LD - East Locality - Cost of Care,LD - East Cambs - Special Needs,Residential Care
Cambridgeshire County Council,03-Oct-19,51301086738,"-2,977.44",DECOY FARM,CARE ESTABLISHMENT,LD - East Locality - Cost of Care,LD - East Cambs - Special Needs,Residential Care
Cambridgeshire County Council,03-Oct-19,51300956530,"-2,977.44",DECOY FARM,CARE ESTABLISHMENT,LD - East Locality - Cost of Care,LD - East Cambs - Special Needs,Residential Care
Cambridgeshire County Council,03-Oct-19,51300864549,"-2,977.44",DECOY FARM,CARE ESTABLISHMENT,LD - East Locality - Cost of Care,LD - East Cambs - Special Needs,Residential Care
Cambridgeshire County Council,03-Oct-19,51301066995,"-2,977.44",DECOY FARM,CARE ESTABLISHMENT,LD - East Locality - Cost of Care,LD - East Cambs - Special Needs,Residential Care
Cambridgeshire County Council,03-Oct-19,51301086773,"-2,977.44",DECOY FARM,CARE ESTABLISHMENT,LD - East Locality - Cost of Care,LD - East Cambs - Special Needs,Residential Care
Cambridgeshire County Council,03-Oct-19,51301098744,"-2,977.44",DECOY FARM,CARE ESTABLISHMENT,LD - East Locality - Cost of Care,LD - East Cambs - Special Needs,Residential Care
Cambridgeshire County Council,03-Oct-19,51300907846,"-2,977.44",DECOY FARM,CARE ESTABLISHMENT,LD - East Locality - Cost of Care,LD - East Cambs - Special Needs,Residential Care
Cambridgeshire County Council,03-Oct-19,51301086671,"-2,977.44",DECOY FARM,CARE ESTABLISHMENT,LD - East Locality - Cost of Care,LD - East Cambs - Special Needs,Residential Care
Cambridgeshire County Council,03-Oct-19,51301033346,"-2,977.44",DECOY FARM,CARE ESTABLISHMENT,LD - East Locality - Cost of Care,LD - East Cambs - Special Needs,Residential Care
Cambridgeshire County Council,03-Oct-19,51300956584,"-2,977.44",DECOY FARM,CARE ESTABLISHMENT,LD - East Locality - Cost of Care,LD - East Cambs - Special Needs,Residential Care
Cambridgeshire County Council,03-Oct-19,51300973042,"-2,977.44",DECOY FARM,CARE ESTABLISHMENT,LD - East Locality - Cost of Care,LD - East Cambs - Special Needs,Residential Care
Cambridgeshire County Council,03-Oct-19,51301033243,"-2,977.44",DECOY FARM,CARE ESTABLISHMENT,LD - East Locality - Cost of Care,LD - East Cambs - Special Needs,Residential Care
Cambridgeshire County Council,03-Oct-19,51301067016,"-2,977.44",DECOY FARM,CARE ESTABLISHMENT,LD - East Locality - Cost of Care,LD - East Cambs - Special Needs,Residential Care
Cambridgeshire County Council,03-Oct-19,51301078151,"-2,977.44",DECOY FARM,CARE ESTABLISHMENT,LD - East Locality - Cost of Care,LD - East Cambs - Special Needs,Residential Care
Cambridgeshire County Council,03-Oct-19,51300981187,"-2,977.44",DECOY FARM,CARE ESTABLISHMENT,LD - East Locality - Cost of Care,LD - East Cambs - Special Needs,Residential Care
Cambridgeshire County Council,03-Oct-19,51300917218,"-2,977.44",DECOY FARM,CARE ESTABLISHMENT,LD - East Locality - Cost of Care,LD - East Cambs - Special Needs,Residential Care
Cambridgeshire County Council,03-Oct-19,51300956529,"-2,977.44",DECOY FARM,CARE ESTABLISHMENT,LD - East Locality - Cost of Care,LD - East Cambs - Special Needs,Residential Care
Cambridgeshire County Council,03-Oct-19,51300845172,"-2,977.44",DECOY FARM,CARE ESTABLISHMENT,LD - East Locality - Cost of Care,LD - East Cambs - Special Needs,Residential Care
Cambridgeshire County Council,03-Oct-19,51301014021,"-2,977.44",DECOY FARM,CARE ESTABLISHMENT,LD - East Locality - Cost of Care,LD - East Cambs - Special Needs,Residential Care
Cambridgeshire County Council,03-Oct-19,51301033270,"-2,977.44",DECOY FARM,CARE ESTABLISHMENT,LD - East Locality - Cost of Care,LD - East Cambs - Special Needs,Residential Care
Cambridgeshire County Council,03-Oct-19,51301078149,"-2,977.44",DECOY FARM,CARE ESTABLISHMENT,LD - East Locality - Cost of Care,LD - East Cambs - Special Needs,Residential Care
Cambridgeshire County Council,03-Oct-19,51301196690,"-2,977.44",DECOY FARM,CARE ESTABLISHMENT,LD - East Locality - Cost of Care,LD - East Cambs - Special Needs,Residential Care
Cambridgeshire County Council,03-Oct-19,51301196724,"-2,977.44",DECOY FARM,CARE ESTABLISHMENT,LD - East Locality - Cost of Care,LD - East Cambs - Special Needs,Residential Care
Cambridgeshire County Council,03-Oct-19,51301124248,"-2,977.44",DECOY FARM,CARE ESTABLISHMENT,LD - East Locality - Cost of Care,LD - East Cambs - Special Needs,Residential Care
Cambridgeshire County Council,03-Oct-19,51300871846,"-2,977.44",DECOY FARM,CARE ESTABLISHMENT,LD - East Locality - Cost of Care,LD - East Cambs - Special Needs,Residential Care
Cambridgeshire County Council,03-Oct-19,51301023651,"-2,977.44",DECOY FARM,CARE ESTABLISHMENT,LD - East Locality - Cost of Care,LD - East Cambs - Special Needs,Residential Care
Cambridgeshire County Council,03-Oct-19,51300981177,"-2,977.44",DECOY FARM,CARE ESTABLISHMENT,LD - East Locality - Cost of Care,LD - East Cambs - Special Needs,Residential Care
